Workbook

Sheet Input (hidden)
A1: Benefit Illustration - SUD Life Immediate Annuity Plus (142N048V0X) | E1: Option Name | F1: Plan Options | G1: SA | H1: Certainity Period
E2: Annuity Option 1 - Life Annuity. | F2: 1 | G2: 0 | H2: 0
A3: Date of Quotation | B3: =TODAY() -> 2021-10-22 | E3: Annuity Option 2 - Life Annuity with Return of Purchase Price. | F3: 2 | G3: =B22 -> 982318.2711 | H3: 0 | I3: Annuity Option 2 - Life Annuity with Return of Purchase Price.
A4: Name of Prospect/Policyholder: | E4: Annuity Option 3 - Increasing Life Annuity (5% Simple) with Return of Purchase Price | F4: 3 | G4: =G3 -> 982318.2711 | H4: 0 | I4: Annuity Option 6 - Joint Life Annuity (100%) with Return of Purchase Price
A5: Age: | E5: Annuity Option 4 - Joint Life Annuity (50%) | F5: 4 | G5: 0 | H5: 0
A6: Name of the Annuitant | B6: XYZ | E6: Annuity Option 5 - Joint Life Annuity (100%) | F6: 5 | G6: 0 | H6: 0
A7: Gender | B7: Male | E7: Annuity Option 6 - Joint Life Annuity (100%) with Return of Purchase Price | F7: 6 | G7: =G3 -> 982318.2711 | H7: 0
A8: Plan Type | B8: Plan A | E8: Annuity Option 7 - Annuity certain for 10 years and for life thereafter | F8: 7 | G8: 0 | H8: 10
A9: Plan Option | B9: ='Annuity Calculator'!D8 -> Annuity Option 5 - Joint Life Annuity (100%) | E9: Annuity Option 8 - Annuity certain for 15 years and for life thereafter | F9: 8 | G9: 0 | H9: 15
A10: Plan A | B10: Open Market and New Proposal | E10: Annuity Option 9 - Annuity certain for 20 years and for life thereafter | F10: 9 | G10: 0 | H10: 20
A11: Option Reference | B11: =VLOOKUP(B9,$E$2:$F$10,2,0) -> 5
A12: Date of Birth of Primary Annuitant
A13: Age of the Primary Annuitant | B13: ='Annuity Calculator'!D6 -> 45 | C13: =IF(OR(B13<B36,B13>B37),"Age criteria not met","") -> 
A14: Name of Secondary Annuitant: | E14: Purchase Price | F14: Higher Purchase Benefit
A15: Date of Birth of Secondary Annuitant | E15: 0 | F15: 0 | I15: SUD Life's Pension Policy
A16: Age of the Secondary Annuitant | B16: ='Annuity Calculator'!D7 -> 55 | C16: =IF(OR(B16<18,B16>B37),"Age criteria not met","") ->  | E16: 1000000 | F16: 0.03 | I16: Open Market and New Proposal
A17: Premium Paying Term | B17: Single Premium | E17: 2500000 | F17: 0.04 | I17: National Pension Scheme
A18: Standard Age Proof? | B18: Yes
A19: Annuity Payment Frequency | B19: Annual
A20: Distribution Channel | B20: Direct Marketing
A21: Kerala Flood Cess (applicable only for the State of Kerala) | B21: No | E21: Direct Marketing Rebate | F21: 0.02 | I21: Mode of Annuity Payment | J21: Minimum Annuity Amount
A22: Purchase Price (Excluding Goods and Services Tax and cess,if any ) | B22: ='Annuity Calculator'!D9-'Annuity Calculator'!G12 -> 982318.2711
A23: Death Benefit | B23: =VLOOKUP(B11,$F$2:$H$10,2,0) -> 0 | I23: Annual | J23: 12000
A24: Tabular Annuity Rates | B24: =IF(AND(B18="No",B11<>2),"Only Annuity Option 2 will be available in case of NSAP",IF(B11=4,VLOOKUP(B13,JL_Ann_Rate!$A$8:$CF$91,MATCH(B16,JL_Ann_Rate!$A$8:$CF$8,0),0),IF(B11=5,VLOOKUP(B13,JL_Ann_Rate!$A$101:$CF$184,MATCH(B16,JL_Ann_Rate!$A$101:$CF$101,0),0),IF(B11=6,VLOOKUP(B13,JL_Ann_Rate!$A$193:$CF$276,MATCH(B16,JL_Ann_Rate!$A$193:$CF$193,0),0),VLOOKUP(B13,Annuity_Rates!$A$5:$G$105,MATCH(B11,Annuity_Rates!$A$4:$G$4,0),0))))) -> 56.9 | E24: Goods and Services Tax and cess,if any | F24: SBC | G24: KKC | H24: Cess | I24: Half-Yearly | J24: 6000
A25: High Purchase Price Benefit | B25: =VLOOKUP(B22,E15:F17,2,1) -> 0 | C25: 39192 | E25: 0.018 | F25: 0 | G25: 0 | H25: =IF($B$21="Yes",0.1%,0%) -> 0 | I25: Quarterly | J25: 3000
A26: NSAP Charges | B26: =IF(B18="No",2,0) -> 0 | I26: Monthly | J26: 1000
A27: Direct Marketing Rebate | B27: =IF(B20="Direct Marketing",ROUND(B24*$F$21,2),0) -> 1.14
A28: Annuity Rates | B28: =B24+ROUND(B24*B25,2)+B27-B26 -> 58.04 | E28: Mode | F28: Modal Factor | G28: No of Paymenrs p.a. | I28: =VLOOKUP(B19,I22:J26,2,0) -> 12000
A29: Installment Annuity Payout | B29: =IF(C30="Ok",ROUND(B28/1000*B22*VLOOKUP(B19,$E$29:$F$32,2,0),0),"Error") -> 59294 | D29: 1.0375 | E29: Annual | F29: 1.04 | G29: 1
A30: Annual Annuity Payout | B30: =IFERROR(B29*VLOOKUP(B19,$E$29:$G$32,3,0),"Minimum Annuity is 12,000") -> 59294 | C30: =IF(ROUND(B28/1000*B22*VLOOKUP(B19,$E$29:$F$32,2,0),0)<I28,"Error","Ok") -> Ok | D30: 0.51 | E30: Half-Yearly | F30: 0.509 | G30: 2
A31: Goods and Services Tax and cess,if any on Purchase Price | B31: =IF(OR(B8="Plan C",AND(B8="Plan A",$B$10=$I$17)),0,ROUND(ROUND(B22*E25,2),0)+ROUND(ROUND(B22*F25,2),0)+ROUND(ROUND(B22*G25,2),0)+ROUND(ROUND(B22*H25,2),0)) -> 17682 | D31: 0.252 | E31: Quarterly | F31: 0.2518 | G31: 4
A32: Purchase Price with Goods and Services Tax and cess,if any | B32: =IF(B29="Error","NA",B22+B31) -> 1000000.271 | D32: 0.0833 | E32: Monthly | F32: 0.0833 | G32: 12
A33: Surrender Option | B33: On Complete foreclosure of loan
A35: For Primary Annuitant | E35: Annuity Inflation | F35: 0.05
A36: Min. Entry Age | B36: =IF(B8="Plan A",IF(B10="SUD Life's Pension Policy",0,45),IF(B8="Plan B",60,45)) -> 45
A37: Max. Entry Age | B37: 99
E39: =B20 -> Direct Marketing | F39: =VLOOKUP(E39,$E$40:$F$44,2,0) -> Direct Channel:
E40: Corporate Agency | F40: Corporate Agent of SUD Life :
E41: Agency | F41: Agent:
E42: Broker | F42: Broker:
E43: Direct Marketing | F43: Direct Channel:
A44: Annual | B44: 36026 | E44: Insurance Marketing Firm | F44: Insurance Marketing Firm:
A45: Half-Yearly | B45: 17632
A46: Quarterly | B46: 8722
A47: Monthly | B47: 2886 | E47: Surrender Option: | F47: =IF(AND($B$11<>2,$B$11<>3,$B$11<>6),0,1) -> 0
E48: Diagnosed with Critical Illness
E49: On Complete foreclosure of loan
D52: PY | E52: Diagnosed with Critical Illness | F52: On Complete foreclosure of loan | G52: SV Factor
D53: 1 | E53: 0.95 | F53: 0.95 | G53: =INDEX($E$53:$F$55,1,MATCH($B$33,$E$48:$E$49,0))*F47 -> 0
D54: 4 | E54: 0.98 | F54: 0.95 | G54: =INDEX($E$53:$F$55,2,MATCH($B$33,$E$48:$E$49,0))*F47 -> 0
D55: 11 | E55: 1 | F55: 1 | G55: =INDEX($E$53:$F$55,3,MATCH($B$33,$E$48:$E$49,0))*F47 -> 0

Sheet Annuity Calculator
AA1: Option Name
AA2: Annuity Option 1 - Life Annuity.
C3: SUD Life Immediate Annuity Plus | AA3: Annuity Option 2 - Life Annuity with Return of Purchase Price.
AA4: Annuity Option 5 - Joint Life Annuity (100%)
C5: INPUT | AA5: Annuity Option 6 - Joint Life Annuity (100%) with Return of Purchase Price
C6: Member Age (Age Last Birthday) | D6: 45
C7: Spouse Age (Age Last Birthday) | D7: 55
C8: Annuity Option | D8: Annuity Option 5 - Joint Life Annuity (100%)
C9: Purchase Price (Including GST) | D9: 1000000
C11: OUTPUT
F12: GST | G12: =D9-D9/(1+0.018) -> 17681.72888
C13: Particulars/ Frequency | D13: Monthly Pension | E13: Quarterly Pension | F13: Half-Yearly Pension | G13: Yearly Pension
C14: Installment Annuity Payout | D14: =ROUND(G14*Input!F32/Input!F29,0) -> 4749 | E14: =ROUND(G14*Input!F31/Input!F29,0) -> 14356 | F14: =ROUND(G14*Input!F30/Input!F29,0) -> 29020 | G14: =Input!$B$29 -> 59294
C15: Annual Annuity Payout | D15: =D14*12 -> 56988 | E15: =E14*4 -> 57424 | F15: =F14*2 -> 58040 | G15: =Input!$B$30 -> 59294
C16: Rate | D16: =D15/(D9-G12) -> 0.058013784 | E16: =E15/(D9-G12) -> 0.058457632 | F16: =F15/(D9-G12) -> 0.05908472 | G16: =G15/(D9-G12) -> 0.060361292
C18: Death Benefit | D18: =Input!B23 -> 0

Sheet Sheet1 (hidden)
A1: Annuity Option | B1: Life Annuity with ROP | F1: Life Annuity | J1: Joint Life Annuity with ROP | M1: Joint Life Annuity
A2: Age | B2: 50 | C2: 60 | D2: 70 | E2: Company Ranking @ age 60 | F2: 50 | G2: 60 | H2: 70 | I2: Company Ranking @ age 60 | J2: 50 | K2: 60 | L2: 70 | M2: 50 | N2: 60 | O2: 70
A3: SUD Proposed | B3: 55730 | C3: 54995 | D3: 56075 | E3: 4 | F3: 69764 | G3: 79154 | H3: 103821 | I3: 2 | J3: 54570 | K3: 55939 | L3: 56566 | M3: 62930 | N3: 70297 | O3: 84457
A4: LIC
A6: SBI Life | B6: 53105 | C6: 55513 | D6: 56273 | E6: 5 | F6: 67299 | G6: 80733 | H6: 105700 | I6: 3 | J6: 50570 | K6: 53992 | L6: 56147 | M6: 58301 | N6: 66666 | O6: 80480
B7: =B6/B3-1 -> -0.04710209941 | C7: =C6/C3-1 -> 0.009419038094 | D7: 0.003530985288 | F7: =F6/F3-1 -> -0.03533340978 | G7: 0.01994845491 | H7: 0.01809845792 | J7: =J6/J3-1 -> -0.07330034818 | K7: -0.03480577057 | L7: -0.007407276456 | M7: -0.0735579215 | N7: -0.05165227535 | O7: -0.04708905123
A8: HDFC Life | B8: 59100 | C8: 63800 | D8: 63800 | E8: 1 | F8: NA | G8: 84700 | H8: 104400 | I8: 1 | J8: 58400 | K8: 64200 | L8: 64200 | M8: NA | N8: NA | O8: NA
B9: =B8/B3-1 -> 0.06047012381 | C9: =C8/C3-1 -> 0.1601054641 | D9: 0.137761926 | F9: 0 | G9: =G8/G3-1 -> 0.07006594739 | H9: 0.005576906406 | J9: =J8/J3-1 -> 0.07018508338 | K9: =K8/K3-1 -> 0.1476787215 | L9: =L8/L3-1 -> 0.1349573949
A10: I-Pru | B10: 54257 | C10: 50090 | D10: NA | E10: 2 | F10: 67741 | G10: 76208 | H10: 91016 | I10: 6 | J10: 60007 | K10: 60027 | L10: 60032 | M10: 61364 | N10: 61666 | O10: 61878
B11: =B10/B3-1 -> -0.02643100664 | C11: =C10/C3-1 -> -0.08918992636 | F11: =F10/F3-1 -> -0.02899776389 | G11: =G10/G3-1 -> -0.03721858655 | H11: =H10/H3-1 -> -0.1233372824 | J11: =J10/J3-1 -> 0.09963349826 | K11: =K10/K3-1 -> 0.07307960457 | L11: =L10/L3-1 -> 0.06127355655 | M11: =M10/M3-1 -> -0.02488479263 | N11: =N10/N3-1 -> -0.122779066 | O11: =O10/O3-1 -> -0.267343145
A12: Kotak Life | B12: 59758 | C12: 60680 | D12: 60578 | E12: 3 | F12: 71238 | G12: 80360 | H12: 98503 | I12: 5 | J12: 59143 | K12: 60475 | L12: 61398 | M12: 65273 | N12: 71033 | O12: 81795
B13: =B12/B3-1 -> 0.07227705006 | C13: =C12/C3-1 -> 0.1033730339 | D13: 0.0803031654 | F13: =F12/F3-1 -> 0.02112837567 | G13: =G12/G3-1 -> 0.01523612199 | H13: =H12/H3-1 -> -0.05122277767 | J13: =J12/J3-1 -> 0.08380062305 | K13: =K12/K3-1 -> 0.08108832836 | L13: =L12/L3-1 -> 0.08542233851 | M13: =M12/M3-1 -> 0.03723184491 | N13: =N12/N3-1 -> 0.01046986358 | O13: =O12/O3-1 -> -0.03151899783
A14: India First | B14: 60965 | C14: 62228 | D14: 63142 | E14: 7 | F14: 70659 | G14: 80229 | H14: 99462 | I14: 7 | J14: 60144 | K14: 62012 | L14: 64426 | M14: 61057 | N14: 63953 | O14: 68667
B15: =B14/B3-1 -> 0.09393504396 | C15: =C14/C3-1 -> 0.1315210474 | D15: 0.1260276416 | F15: =F14/F3-1 -> 0.01282896623 | G15: 0.01358112035 | H15: -0.04198572543 | J15: =J14/J3-1 -> 0.1021440352 | K15: 0.1085646865 | L15: 0.1389527278 | M15: -0.02976322898 | N15: -0.09024567193 | O15: -0.1869590442

Sheet Output (2) (hidden)
A2: Benefit Illustration for SUD Life Immediate Annuity Plus (UIN: 142N048V0X) (This shall form a part of the Policy Document)
A4: Proposal No: | B4: XXXXXXX | D4: Plan Type | E4: =+Input!B8 -> Plan A
A5: Policy No: | B5: XXXXXXX | D5: Annuity Option | E5: =+Input!B9 -> Annuity Option 5 - Joint Life Annuity (100%)
A6: Date of Quotation | B6: =Input!B3 -> 2021-10-22 | D6: Premium Payment Mode | E6: Single Premium
A7: UIN | B7: 142N048V0X | D7: Purchase Price (in Rs.) | E7: =+Input!B22 -> 982318.2711
A8: Name of the Annuitant | B8: =Input!B4 -> 0 | D8: Purchase Price + GST and cess,if any (in Rs.) | E8: =+Input!B32 -> 1000000.271
A9: Gender | B9: =+Input!B7 -> Male | D9: Death Benefit (in Rs.) | E9: =+Input!B23 -> 0
A10: Age of the Primary Annuitant | B10: =+Input!B13 -> 45 | D10: Yearly Annuity Payout to Primary Annuitant (in Rs) | E10: =+Input!B30 -> 59294 | H10: Yearly Annuity Payout to Secondary Annuitant (in Rs)
A11: Age of the Secondary Annuitant | B11: =IF(OR(Input!B11<3,Input!B11>6),"NA",Input!B16) -> 55 | D11: Installment Annuity Payout to Primary Annuitant (in Rs.) | E11: =+Input!B29 -> 59294 | H11: Installment Annuity Payout to Secondary Annuitant (in Rs.)
A12: Annuity Payment Mode | B12: =+Input!B19 -> Annual | D12: =IF(OR(Input!$B$9=4,Input!$B$9=5,Input!$B$9=6,Input!$B$9=7),'Output (2)'!$H$12,'Output (2)'!$H$10) -> Yearly Annuity Payout to Secondary Annuitant (in Rs) | E12: =IF(OR(Input!B11=4,Input!B11=5,Input!B11=6),ROUND(Input!$B$30*IF(Input!$B$11=4,50%,IF(OR(Input!$B$11=5,Input!$B$11=6),100%,0)),0),"Not Applicable ") -> 59294 | H12: Yearly Annuity Payout to Secondary Annuitant (in Rs) ^
A13: Distribution Channel | B13: =+Input!B20 -> Direct Marketing | D13: =IF(OR(Input!$B$9=4,Input!$B$9=5,Input!$B$9=6,Input!$B$9=7),'Output (2)'!$H$13,'Output (2)'!$H$11) -> Installment Annuity Payout to Secondary Annuitant (in Rs.) | E13: =IF(OR(Input!B11=4,Input!B11=5,Input!B11=6),ROUND(Input!$B$29*IF(Input!$B$11=4,50%,IF(OR(Input!$B$11=5,Input!$B$11=6),100%,0)),0),"Not Applicable ") -> 59294 | H13: Installment Annuity Payout to Secondary Annuitant (in Rs.) ^
A14: Standard Age Proof? | B14: =+Input!B18 -> Yes
A16: =IF(OR(Input!$B$9=4,Input!$B$9=5,Input!$B$9=6,Input!$B$9=7),"^ Payable only In case of death of Primary Annuitant","") -> 
A18: The commission payable under this product is subject to limits set under IRDAI (Payment of commission or remuneration or reward to insurance agents and insurance intermediaries) Regulations, 2016, which is as mentioned below:
A19: Policy year | D19: Maximum commission allowed as a % of Premium
D20: Single Premium policies | E20: Non-single premium Pension policies
A21: 1st year | D21: 0.02 | E21: 0.075
A22: 2nd & 3rd Year | D22: NA | E22: 0.02
A23: 4th year onwards | D23: NA | E23: 0.02
A26: Terms and Conditons
A28: 1. Rate of Return Assumed in the Sales Illustration
A29: As this is a non linked non participating plan, where all benefits are guaranteed, rate of return is not applicable.
A31: 2. Rider Benefit
A32: No riders are offered under this plan.
A34: 3. Surrender Benefit
A35: =IF(E4="Plan A","Surrender Benefit is available only under Annuity Option 2 , Annuity Option 3 and Annuity Option 6","") -> Surrender Benefit is available only under Annuity Option 2 , Annuity Option 3 and Annuity Option 6
A36: =IF(Input!B6="Plan B", "a.","")&"Surrender Benefit upon diagnosed with Critical Illness" -> Surrender Benefit upon diagnosed with Critical Illness
A37: The policy can be surrendered, i. if the Annuitant is diagnosed with any one of the Critical Illnesses mentioned below (in case of Annuity Option 2 & 3 ). ii. If Annuity Option 6 is chosen, then Surrender Value will be available when both annuitants or the last surviving Annuitant diagnosed with any one of the Critical Illnesses mentioned below. 1. Cancer of Specified Severity 2. First Heart Attack - of Specified Severity 3. Stroke Resulting in Permanent Symptoms 4. Open Chest CABG 5. Kidney Failure Requiring Regular Dialysis 6. Multiple Sclerosis With Persisting Symptoms 7. Major Organ /Bone Marrow Transplant 8. Open Heart Replacement or Repair of Heart Valves 9. Coma of Specified Severity 10. Permanent Paralysis of Limbs 11. Motor Neurone Disease with Permanent Symptoms The Surrender Value payable will be as per the below table. Policy Year Surrender Value as % of Purchase Price (excluding taxes, if any) 1 to 3 95% 4 to 10 98% 11 and above 100%
A38: =IF(Input!B6="Plan B", "b.Surrender Benefit on complete foreclosure of Reverse Mortgage Loan:","") -> 
A39: =IF(Input!B6="Plan B", "Polices can be surrendered upon complete foreclosure of Reverse Mortgage Loan, The Surrender Value payable will be as per the below table. ","") -> 
A40: =IF(Input!B6="Plan B","Policy Year Surrender Value as % of Purchase Price (excluding taxes, if any) 1 to 10 95% 11 and above 100%","") -> 
A41: 4. Tax Benefits
A42: Premiums payable under this plan is eligible for tax benefits as per the prevailing tax laws. The annuity payout would be subject to Income Tax as per the prevailing tax laws . Please consult your tax advisor for details
A44: 5. Proposal Deposit
A45: The proposal deposit receipt given in respect of the consideration amount paid to the company does not bind the company to accept the risk on the life of the life proposed under the proposal for insurance.
A47: 6. About Star Union Dai-ichi Life Insurance Company Limited
A48: Star Union Dai-ichi Life insurance is the name of the company and 'SUD Life Immediate Annuity Plus' is only the name of the Plan and does in no way indicate the quality of the policy, its future prospects or returns.
A50: 7.The Annuity Payout given above is only indicative. The actual annuity payout will be as per the annuity rates prevailing at the time of issuance of the Policy.
A52: 8. Once the contract is issued, the annuity amount is guaranteed for life.
A54: 9. Once the policy is issued the Annuity Option and Annuity Payment Mode cannot be changed at later stages.
A56: 10. This illustration is based on the terms & conditions of the policy as on the date of the illustration.
A58: 11. In case of NSAP, only Option 2 will be available and the applicable annuity rate will be reduced by Rs. 2.00 per annum per thousand purchase price.
A60: 12. Goods and Services Tax and applicable cess,if any will be charged on premiums as per prevailing tax laws. This is subject to any change in the tax rate.
A62: 13. For more details on risk factor, terms and conditions, please read the Sales brochure of the plan carefully before concluding a sale. In case you require any clarification, please consult your insurance advisor or call our office.
A64: I…… (Name), have explained the premiums,and benefits under the product fully to the prospect/policyholder. | D64: I…………………… (Name), having received the information with respect to the above, have understood the above statement before entering into the contract.
A65: Place: | D65: Date:
A67: Date: | B67: Signature of Agent/Intermediary/Official | E67: Signature of Prospect/Policyholder

Sheet Annuity_Rates (hidden)
A1: Annuity Rates per Rs.1000 Purchase Price
A4: Age at entry | B4: 1 | C4: 2 | D4: 3 | E4: 7 | F4: 8 | G4: 9
A5: 0 | B5: 46.36 | C5: 45.11 | D5: 24.87 | E5: 46.23 | F5: 46.17 | G5: 46.11
A6: 1 | B6: 46.42 | C6: 45.22 | D6: 24.98 | E6: 46.32 | F6: 46.27 | G6: 46.22
A7: 2 | B7: 46.5 | C7: 45.33 | D7: 25.09 | E7: 46.43 | F7: 46.38 | G7: 46.34
A8: 3 | B8: 46.61 | C8: 45.44 | D8: 25.21 | E8: 46.55 | F8: 46.52 | G8: 46.48
A9: 4 | B9: 46.74 | C9: 45.55 | D9: 25.32 | E9: 46.69 | F9: 46.66 | G9: 46.63
A10: 5 | B10: 46.88 | C10: 45.66 | D10: 25.44 | E10: 46.84 | F10: 46.81 | G10: 46.78
A11: 6 | B11: 47.03 | C11: 45.77 | D11: 25.57 | E11: 47 | F11: 46.98 | G11: 46.94
A12: 7 | B12: 47.2 | C12: 45.88 | D12: 25.69 | E12: 47.17 | F12: 47.14 | G12: 47.11
A13: 8 | B13: 47.38 | C13: 45.99 | D13: 25.82 | E13: 47.35 | F13: 47.32 | G13: 47.29
A14: 9 | B14: 47.56 | C14: 46.11 | D14: 25.95 | E14: 47.53 | F14: 47.5 | G14: 47.47
A15: 10 | B15: 47.75 | C15: 46.22 | D15: 26.09 | E15: 47.72 | F15: 47.69 | G15: 47.65
A16: 11 | B16: 47.94 | C16: 46.33 | D16: 26.22 | E16: 47.91 | F16: 47.88 | G16: 47.84
A17: 12 | B17: 48.14 | C17: 46.45 | D17: 26.36 | E17: 48.11 | F17: 48.07 | G17: 48.03
A18: 13 | B18: 48.35 | C18: 46.56 | D18: 26.51 | E18: 48.31 | F18: 48.27 | G18: 48.23
A19: 14 | B19: 48.55 | C19: 46.68 | D19: 26.65 | E19: 48.51 | F19: 48.47 | G19: 48.42
A20: 15 | B20: 48.76 | C20: 46.79 | D20: 26.8 | E20: 48.72 | F20: 48.68 | G20: 48.63
A21: 16 | B21: 48.98 | C21: 46.91 | D21: 26.95 | E21: 48.93 | F21: 48.88 | G21: 48.83
A22: 17 | B22: 49.19 | C22: 47.03 | D22: 27.11 | E22: 49.14 | F22: 49.1 | G22: 49.04
A23: 18 | B23: 49.42 | C23: 47.15 | D23: 27.26 | E23: 49.36 | F23: 49.31 | G23: 49.26
A24: 19 | B24: 49.64 | C24: 47.27 | D24: 27.42 | E24: 49.58 | F24: 49.53 | G24: 49.48
A25: 20 | B25: 49.87 | C25: 47.39 | D25: 27.59 | E25: 49.81 | F25: 49.76 | G25: 49.7
A26: 21 | B26: 50.11 | C26: 47.51 | D26: 27.76 | E26: 50.04 | F26: 49.99 | G26: 49.93
A27: 22 | B27: 50.35 | C27: 47.63 | D27: 27.93 | E27: 50.28 | F27: 50.23 | G27: 50.16
A28: 23 | B28: 50.59 | C28: 47.75 | D28: 28.1 | E28: 50.53 | F28: 50.47 | G28: 50.4
A29: 24 | B29: 50.85 | C29: 47.87 | D29: 28.28 | E29: 50.78 | F29: 50.72 | G29: 50.65
A30: 25 | B30: 51.11 | C30: 48 | D30: 28.46 | E30: 51.04 | F30: 50.97 | G30: 50.9
A31: 26 | B31: 51.37 | C31: 48.12 | D31: 28.65 | E31: 51.3 | F31: 51.24 | G31: 51.16
A32: 27 | B32: 51.65 | C32: 48.24 | D32: 28.84 | E32: 51.58 | F32: 51.51 | G32: 51.43
A33: 28 | B33: 51.94 | C33: 48.37 | D33: 29.03 | E33: 51.86 | F33: 51.79 | G33: 51.71
A34: 29 | B34: 52.23 | C34: 48.49 | D34: 29.23 | E34: 52.16 | F34: 52.08 | G34: 51.99
A35: 30 | B35: 52.54 | C35: 48.62 | D35: 29.43 | E35: 52.46 | F35: 52.38 | G35: 52.29
A36: 31 | B36: 52.86 | C36: 48.74 | D36: 29.63 | E36: 52.78 | F36: 52.69 | G36: 52.59
A37: 32 | B37: 53.19 | C37: 48.86 | D37: 29.84 | E37: 53.1 | F37: 53.01 | G37: 52.9
A38: 33 | B38: 53.54 | C38: 48.99 | D38: 30.05 | E38: 53.44 | F38: 53.35 | G38: 53.22
A39: 34 | B39: 53.9 | C39: 49.11 | D39: 30.26 | E39: 53.8 | F39: 53.69 | G39: 53.56
A40: 35 | B40: 54.27 | C40: 49.23 | D40: 30.48 | E40: 54.17 | F40: 54.05 | G40: 53.9
A41: 36 | B41: 54.66 | C41: 49.35 | D41: 30.7 | E41: 54.55 | F41: 54.42 | G41: 54.25
A42: 37 | B42: 55.07 | C42: 49.47 | D42: 30.92 | E42: 54.95 | F42: 54.81 | G42: 54.62
A43: 38 | B43: 55.5 | C43: 49.59 | D43: 31.15 | E43: 55.36 | F43: 55.2 | G43: 54.99
A44: 39 | B44: 55.94 | C44: 49.7 | D44: 31.38 | E44: 55.79 | F44: 55.61 | G44: 55.38
A45: 40 | B45: 57.16 | C45: 49.94 | D45: 31.85 | E45: 56.97 | F45: 56.74 | G45: 56.43
A46: 41 | B46: 57.68 | C46: 50.05 | D46: 32.09 | E46: 57.46 | F46: 57.21 | G46: 56.87
A47: 42 | B47: 58.22 | C47: 50.16 | D47: 32.33 | E47: 57.97 | F47: 57.69 | G47: 57.31
A48: 43 | B48: 58.78 | C48: 50.26 | D48: 32.58 | E48: 58.51 | F48: 58.19 | G48: 57.77
A49: 44 | B49: 59.37 | C49: 50.36 | D49: 32.82 | E49: 59.06 | F49: 58.7 | G49: 58.24
A50: 45 | B50: 59.99 | C50: 50.46 | D50: 33.07 | E50: 59.64 | F50: 59.24 | G50: 58.73
A51: 46 | B51: 60.64 | C51: 50.55 | D51: 33.32 | E51: 60.25 | F51: 59.8 | G51: 59.24
A52: 47 | B52: 61.32 | C52: 50.64 | D52: 33.56 | E52: 60.88 | F52: 60.38 | G52: 59.76
A53: 48 | B53: 62.04 | C53: 50.72 | D53: 33.81 | E53: 61.53 | F53: 60.97 | G53: 60.31
A54: 49 | B54: 62.79 | C54: 50.8 | D54: 34.06 | E54: 62.22 | F54: 61.6 | G54: 60.86
A55: 50 | B55: 63.58 | C55: 50.87 | D55: 34.31 | E55: 62.93 | F55: 62.25 | G55: 61.44
A56: 51 | B56: 64.41 | C56: 50.94 | D56: 34.57 | E56: 63.67 | F56: 62.92 | G56: 62.03
A57: 52 | B57: 65.27 | C57: 51.01 | D57: 34.82 | E57: 64.44 | F57: 63.62 | G57: 62.64
A58: 53 | B58: 66.17 | C58: 51.07 | D58: 35.07 | E58: 65.24 | F58: 64.34 | G58: 63.26
A59: 54 | B59: 67.11 | C59: 51.12 | D59: 35.32 | E59: 66.08 | F59: 65.09 | G59: 63.89
A60: 55 | B60: 68.09 | C60: 51.17 | D60: 35.58 | E60: 66.96 | F60: 65.87 | G60: 64.54
A61: 56 | B61: 69.13 | C61: 51.22 | D61: 35.84 | E61: 67.88 | F61: 66.68 | G61: 65.2
A62: 57 | B62: 70.22 | C62: 51.26 | D62: 36.09 | E62: 68.85 | F62: 67.52 | G62: 65.86
A63: 58 | B63: 71.37 | C63: 51.29 | D63: 36.35 | E63: 69.87 | F63: 68.39 | G63: 66.54
A64: 59 | B64: 72.59 | C64: 51.32 | D64: 36.61 | E64: 70.94 | F64: 69.3 | G64: 67.23
A65: 60 | B65: 73.89 | C65: 51.34 | D65: 36.87 | E65: 72.08 | F65: 70.23 | G65: 67.92
A66: 61 | B66: 75.27 | C66: 51.36 | D66: 37.13 | E66: 73.28 | F66: 71.19 | G66: 68.61
A67: 62 | B67: 76.78 | C67: 51.38 | D67: 37.39 | E67: 74.55 | F67: 72.18 | G67: 69.31
A68: 63 | B68: 78.44 | C68: 51.38 | D68: 37.65 | E68: 75.91 | F68: 73.22 | G68: 70.02
A69: 64 | B69: 80.25 | C69: 51.37 | D69: 37.91 | E69: 77.34 | F69: 74.28 | G69: 70.72
A70: 65 | B70: 82.23 | C70: 51.35 | D70: 38.16 | E70: 78.85 | F70: 75.36 | G70: 71.41
A71: 66 | B71: 84.37 | C71: 51.32 | D71: 38.41 | E71: 80.43 | F71: 76.45 | G71: 72.1
A72: 67 | B72: 86.67 | C72: 51.28 | D72: 38.65 | E72: 82.06 | F72: 77.56 | G72: 72.77
A73: 68 | B73: 89.15 | C73: 51.24 | D73: 38.88 | E73: 83.75 | F73: 78.66 | G73: 73.42
A74: 69 | B74: 91.8 | C74: 51.18 | D74: 39.11 | E74: 85.48 | F74: 79.75 | G74: 74.05
A75: 70 | B75: 94.62 | C75: 51.11 | D75: 39.33 | E75: 87.25 | F75: 80.83 | G75: 74.65
A76: 71 | B76: 97.63 | C76: 51.03 | D76: 39.54 | E76: 89.05 | F76: 81.89 | G76: 75.22
A77: 72 | B77: 100.83 | C77: 50.94 | D77: 39.74 | E77: 90.86 | F77: 82.92 | G77: 75.77
A78: 73 | B78: 104.22 | C78: 50.83 | D78: 39.93 | E78: 92.69 | F78: 83.92 | G78: 76.29
A79: 74 | B79: 107.81 | C79: 50.72 | D79: 40.1 | E79: 94.51 | F79: 84.89 | G79: 76.78
A80: 75 | B80: 111.6 | C80: 50.59 | D80: 40.26 | E80: 96.33 | F80: 85.81 | G80: 77.24
A81: 76 | B81: 115.59 | C81: 50.45 | D81: 40.41 | E81: 98.13 | F81: 86.7 | G81: 77.67
A82: 77 | B82: 119.81 | C82: 50.3 | D82: 40.55 | E82: 99.9 | F82: 87.53 | G82: 78.08
A83: 78 | B83: 124.24 | C83: 50.14 | D83: 40.67 | E83: 101.64 | F83: 88.33 | G83: 78.46
A84: 79 | B84: 128.9 | C84: 49.96 | D84: 40.78 | E84: 103.33 | F84: 89.07 | G84: 78.82
A85: 80 | B85: 133.8 | C85: 49.77 | D85: 40.87 | E85: 104.98 | F85: 89.77 | G85: 79.15
A86: 81 | B86: 138.93 | C86: 49.57 | D86: 40.94 | E86: 106.56 | F86: 90.43 | G86: 79.47
A87: 82 | B87: 144.31 | C87: 49.35 | D87: 41 | E87: 108.09 | F87: 91.04 | G87: 79.77
A88: 83 | B88: 149.95 | C88: 49.11 | D88: 41.04 | E88: 109.56 | F88: 91.61 | G88: 80.05
A89: 84 | B89: 155.85 | C89: 48.86 | D89: 41.07 | E89: 110.95 | F89: 92.14 | G89: 80.32
A90: 85 | B90: 162.01 | C90: 48.59 | D90: 41.07 | E90: 112.27 | F90: 92.63 | G90: 80.58
A91: 86 | B91: 168.46 | C91: 48.31 | D91: 41.06 | E91: 113.52 | F91: 93.08 | G91: 80.83
A92: 87 | B92: 175.19 | C92: 48.01 | D92: 41.03 | E92: 114.7 | F92: 93.51 | G92: 81.07
A93: 88 | B93: 182.21 | C93: 47.69 | D93: 40.98 | E93: 115.8 | F93: 93.9 | G93: 81.31
A94: 89 | B94: 189.53 | C94: 47.36 | D94: 40.9 | E94: 116.83 | F94: 94.27 | G94: 81.54
A95: 90 | B95: 197.16 | C95: 47 | D95: 40.81 | E95: 117.79 | F95: 94.62 | G95: 81.77
A96: 91 | B96: 205.11 | C96: 46.63 | D96: 40.69 | E96: 118.69 | F96: 94.94 | G96: 82
A97: 92 | B97: 213.39 | C97: 46.23 | D97: 40.54 | E97: 119.51 | F97: 95.25 | G97: 82.23
A98: 93 | B98: 222.01 | C98: 45.82 | D98: 40.38 | E98: 120.28 | F98: 95.55 | G98: 82.46
A99: 94 | B99: 230.98 | C99: 45.39 | D99: 40.18 | E99: 120.98 | F99: 95.83 | G99: 82.69
A100: 95 | B100: 240.31 | C100: 44.93 | D100: 39.96 | E100: 121.64 | F100: 96.1 | G100: 82.92
A101: 96 | B101: 250 | C101: 44.45 | D101: 39.72 | E101: 122.24 | F101: 96.36 | G101: 83.16
A102: 97 | B102: 260.08 | C102: 43.95 | D102: 39.44 | E102: 122.79 | F102: 96.62 | G102: 83.4
A103: 98 | B103: 270.56 | C103: 43.43 | D103: 39.14 | E103: 123.31 | F103: 96.88 | G103: 83.65
A104: 99 | B104: 281.45 | C104: 42.88 | D104: 38.81 | E104: 123.79 | F104: 97.13 | G104: 83.9

Sheet JL_Ann_Rate (hidden)
B1: Annexure G - Annuity Rates per Rs.1000 Purchase Price
B3: SUD Life Immediate Annuity Plus
B5: Annuity Option : 4 (Joint Life Annuity with 50% of Life Annuity payable to the Spouse on death of the Primary Annuitant)
B7: Age of the Secondary Annuitant | R7: Age of the Secondary Annuitant | AH7: Age of the Secondary Annuitant | AX7: Age of the Secondary Annuitant
A8: Age of the Primary Annuitant | B8: 18 | C8: 19 | D8: 20 | E8: 21 | F8: 22 | G8: 23 | H8: 24 | I8: 25 | J8: 26 | K8: 27 | L8: 28 | M8: 29 | N8: 30 | O8: 31 | P8: 32 | Q8: 33 | R8: 34 | S8: 35 | T8: 36 | U8: 37 | V8: 38 | W8: 39 | X8: 40 | Y8: 41 | Z8: 42 | AA8: 43 | AB8: 44 | AC8: 45 | AD8: 46 | AE8: 47 | AF8: 48 | AG8: 49 | AH8: 50 | AI8: 51 | AJ8: 52 | AK8: 53 | AL8: 54 | AM8: 55 | AN8: 56 | AO8: 57 | AP8: 58 | AQ8: 59 | AR8: 60 | AS8: 61 | AT8: 62 | AU8: 63 | AV8: 64 | AW8: 65 | AX8: 66 | AY8: 67 | AZ8: 68 | BA8: 69 | BB8: 70 | BC8: =BB8+1 -> 71 | BD8: =BC8+1 -> 72 | BE8: 73 | BF8: 74 | BG8: 75 | BH8: 76 | BI8: 77 | BJ8: 78 | BK8: 79 | BL8: 80 | BM8: 81 | BN8: 82 | BO8: 83 | BP8: 84 | BQ8: =BP8+1 -> 85 | BR8: =BQ8+1 -> 86 | BS8: =BR8+1 -> 87 | BT8: =BS8+1 -> 88 | BU8: =BT8+1 -> 89 | BV8: =BU8+1 -> 90 | BW8: =BV8+1 -> 91 | BX8: =BW8+1 -> 92 | BY8: =BX8+1 -> 93 | BZ8: =BY8+1 -> 94 | CA8: =BZ8+1 -> 95 | CB8: =CA8+1 -> 96 | CC8: =CB8+1 -> 97 | CD8: =CC8+1 -> 98 | CE8: =CD8+1 -> 99
A9: 18 | B9: 48.05 | C9: 48.12 | D9: 48.18 | E9: 48.24 | F9: 48.3 | G9: 48.36 | H9: 48.41 | I9: 48.47 | J9: 48.52 | K9: 48.56 | L9: 48.61 | M9: 48.65 | N9: 48.69 | O9: 48.73 | P9: 48.77 | Q9: 48.8 | R9: 48.83 | S9: 48.87 | T9: 48.89 | U9: 48.92 | V9: 48.95 | W9: 48.97 | X9: 49 | Y9: 49.02 | Z9: 49.04 | AA9: 49.06 | AB9: 49.08 | AC9: 49.09 | AD9: 49.11 | AE9: 49.13 | AF9: 49.14 | AG9: 49.15 | AH9: 49.17 | AI9: 49.18 | AJ9: 49.19 | AK9: 49.2 | AL9: 49.21 | AM9: 49.22 | AN9: 49.23 | AO9: 49.24 | AP9: 49.25 | AQ9: 49.26 | AR9: 49.27 | AS9: 49.27 | AT9: 49.28 | AU9: 49.29 | AV9: 49.29 | AW9: 49.3 | AX9: 49.31 | AY9: 49.31 | AZ9: 49.32 | BA9: 49.33 | BB9: 49.33 | BC9: 49.34 | BD9: 49.34 | BE9: 49.35 | BF9: 49.35 | BG9: 49.35 | BH9: 49.36 | BI9: 49.36 | BJ9: 49.37 | BK9: 49.37 | BL9: 49.37 | BM9: 49.38 | BN9: 49.38 | BO9: 49.38 | BP9: 49.38 | BQ9: 49.39 | BR9: 49.39 | BS9: 49.39 | BT9: 49.39 | BU9: 49.39 | BV9: 49.4 | BW9: 49.4 | BX9: 49.4 | BY9: 49.4 | BZ9: 49.4 | CA9: 49.4 | CB9: 49.4 | CC9: 49.4 | CD9: 49.41 | CE9: 49.41
A10: 19 | B10: 48.18 | C10: 48.25 | D10: 48.32 | E10: 48.39 | F10: 48.45 | G10: 48.51 | H10: 48.57 | I10: 48.62 | J10: 48.68 | K10: 48.73 | L10: 48.77 | M10: 48.82 | N10: 48.86 | O10: 48.9 | P10: 48.94 | Q10: 48.98 | R10: 49.02 | S10: 49.05 | T10: 49.08 | U10: 49.11 | V10: 49.14 | W10: 49.17 | X10: 49.19 | Y10: 49.22 | Z10: 49.24 | AA10: 49.26 | AB10: 49.28 | AC10: 49.3 | AD10: 49.31 | AE10: 49.33 | AF10: 49.35 | AG10: 49.36 | AH10: 49.38 | AI10: 49.39 | AJ10: 49.4 | AK10: 49.41 | AL10: 49.43 | AM10: 49.44 | AN10: 49.45 | AO10: 49.46 | AP10: 49.47 | AQ10: 49.47 | AR10: 49.48 | AS10: 49.49 | AT10: 49.5 | AU10: 49.51 | AV10: 49.51 | AW10: 49.52 | AX10: 49.53 | AY10: 49.53 | AZ10: 49.54 | BA10: 49.55 | BB10: 49.55 | BC10: 49.56 | BD10: 49.56 | BE10: 49.57 | BF10: 49.57 | BG10: 49.58 | BH10: 49.58 | BI10: 49.59 | BJ10: 49.59 | BK10: 49.59 | BL10: 49.6 | BM10: 49.6 | BN10: 49.6 | BO10: 49.61 | BP10: 49.61 | BQ10: 49.61 | BR10: 49.61 | BS10: 49.61 | BT10: 49.62 | BU10: 49.62 | BV10: 49.62 | BW10: 49.62 | BX10: 49.62 | BY10: 49.62 | BZ10: 49.63 | CA10: 49.63 | CB10: 49.63 | CC10: 49.63 | CD10: 49.63 | CE10: 49.63
A11: 20 | B11: 48.32 | C11: 48.39 | D11: 48.46 | E11: 48.53 | F11: 48.6 | G11: 48.66 | H11: 48.72 | I11: 48.78 | J11: 48.84 | K11: 48.89 | L11: 48.94 | M11: 48.99 | N11: 49.04 | O11: 49.08 | P11: 49.12 | Q11: 49.16 | R11: 49.2 | S11: 49.24 | T11: 49.27 | U11: 49.3 | V11: 49.33 | W11: 49.36 | X11: 49.39 | Y11: 49.42 | Z11: 49.44 | AA11: 49.46 | AB11: 49.48 | AC11: 49.5 | AD11: 49.52 | AE11: 49.54 | AF11: 49.56 | AG11: 49.57 | AH11: 49.59 | AI11: 49.6 | AJ11: 49.62 | AK11: 49.63 | AL11: 49.64 | AM11: 49.65 | AN11: 49.67 | AO11: 49.68 | AP11: 49.69 | AQ11: 49.7 | AR11: 49.7 | AS11: 49.71 | AT11: 49.72 | AU11: 49.73 | AV11: 49.74 | AW11: 49.75 | AX11: 49.75 | AY11: 49.76 | AZ11: 49.77 | BA11: 49.77 | BB11: 49.78 | BC11: 49.78 | BD11: 49.79 | BE11: 49.8 | BF11: 49.8 | BG11: 49.81 | BH11: 49.81 | BI11: 49.81 | BJ11: 49.82 | BK11: 49.82 | BL11: 49.82 | BM11: 49.83 | BN11: 49.83 | BO11: 49.83 | BP11: 49.84 | BQ11: 49.84 | BR11: 49.84 | BS11: 49.84 | BT11: 49.85 | BU11: 49.85 | BV11: 49.85 | BW11: 49.85 | BX11: 49.85 | BY11: 49.85 | BZ11: 49.86 | CA11: 49.86 | CB11: 49.86 | CC11: 49.86 | CD11: 49.86 | CE11: 49.86
A12: 21 | B12: 48.45 | C12: 48.53 | D12: 48.6 | E12: 48.67 | F12: 48.74 | G12: 48.81 | H12: 48.88 | I12: 48.94 | J12: 49 | K12: 49.05 | L12: 49.11 | M12: 49.16 | N12: 49.21 | O12: 49.26 | P12: 49.3 | Q12: 49.35 | R12: 49.39 | S12: 49.43 | T12: 49.46 | U12: 49.5 | V12: 49.53 | W12: 49.56 | X12: 49.59 | Y12: 49.62 | Z12: 49.64 | AA12: 49.67 | AB12: 49.69 | AC12: 49.71 | AD12: 49.73 | AE12: 49.75 | AF12: 49.77 | AG12: 49.79 | AH12: 49.81 | AI12: 49.82 | AJ12: 49.84 | AK12: 49.85 | AL12: 49.86 | AM12: 49.88 | AN12: 49.89 | AO12: 49.9 | AP12: 49.91 | AQ12: 49.92 | AR12: 49.93 | AS12: 49.94 | AT12: 49.95 | AU12: 49.96 | AV12: 49.97 | AW12: 49.97 | AX12: 49.98 | AY12: 49.99 | AZ12: 50 | BA12: 50 | BB12: 50.01 | BC12: 50.02 | BD12: 50.02 | BE12: 50.03 | BF12: 50.03 | BG12: 50.04 | BH12: 50.04 | BI12: 50.05 | BJ12: 50.05 | BK12: 50.05 | BL12: 50.06 | BM12: 50.06 | BN12: 50.06 | BO12: 50.07 | BP12: 50.07 | BQ12: 50.07 | BR12: 50.08 | BS12: 50.08 | BT12: 50.08 | BU12: 50.08 | BV12: 50.08 | BW12: 50.09 | BX12: 50.09 | BY12: 50.09 | BZ12: 50.09 | CA12: 50.09 | CB12: 50.09 | CC12: 50.09 | CD12: 50.09 | CE12: 50.09
A13: 22 | B13: 48.58 | C13: 48.66 | D13: 48.74 | E13: 48.82 | F13: 48.89 | G13: 48.96 | H13: 49.03 | I13: 49.09 | J13: 49.16 | K13: 49.22 | L13: 49.28 | M13: 49.33 | N13: 49.38 | O13: 49.44 | P13: 49.48 | Q13: 49.53 | R13: 49.57 | S13: 49.62 | T13: 49.65 | U13: 49.69 | V13: 49.73 | W13: 49.76 | X13: 49.79 | Y13: 49.82 | Z13: 49.85 | AA13: 49.88 | AB13: 49.9 | AC13: 49.93 | AD13: 49.95 | AE13: 49.97 | AF13: 49.99 | AG13: 50.01 | AH13: 50.03 | AI13: 50.04 | AJ13: 50.06 | AK13: 50.08 | AL13: 50.09 | AM13: 50.1 | AN13: 50.12 | AO13: 50.13 | AP13: 50.14 | AQ13: 50.15 | AR13: 50.16 | AS13: 50.17 | AT13: 50.18 | AU13: 50.19 | AV13: 50.2 | AW13: 50.21 | AX13: 50.22 | AY13: 50.22 | AZ13: 50.23 | BA13: 50.24 | BB13: 50.25 | BC13: 50.25 | BD13: 50.26 | BE13: 50.26 | BF13: 50.27 | BG13: 50.27 | BH13: 50.28 | BI13: 50.28 | BJ13: 50.29 | BK13: 50.29 | BL13: 50.3 | BM13: 50.3 | BN13: 50.3 | BO13: 50.31 | BP13: 50.31 | BQ13: 50.31 | BR13: 50.31 | BS13: 50.32 | BT13: 50.32 | BU13: 50.32 | BV13: 50.32 | BW13: 50.32 | BX13: 50.33 | BY13: 50.33 | BZ13: 50.33 | CA13: 50.33 | CB13: 50.33 | CC13: 50.33 | CD13: 50.33 | CE13: 50.33
A14: 23 | B14: 48.72 | C14: 48.8 | D14: 48.88 | E14: 48.96 | F14: 49.04 | G14: 49.11 | H14: 49.18 | I14: 49.25 | J14: 49.32 | K14: 49.38 | L14: 49.45 | M14: 49.5 | N14: 49.56 | O14: 49.61 | P14: 49.67 | Q14: 49.72 | R14: 49.76 | S14: 49.81 | T14: 49.85 | U14: 49.89 | V14: 49.93 | W14: 49.96 | X14: 50 | Y14: 50.03 | Z14: 50.06 | AA14: 50.09 | AB14: 50.12 | AC14: 50.14 | AD14: 50.17 | AE14: 50.19 | AF14: 50.21 | AG14: 50.23 | AH14: 50.25 | AI14: 50.27 | AJ14: 50.29 | AK14: 50.31 | AL14: 50.32 | AM14: 50.34 | AN14: 50.35 | AO14: 50.36 | AP14: 50.37 | AQ14: 50.39 | AR14: 50.4 | AS14: 50.41 | AT14: 50.42 | AU14: 50.43 | AV14: 50.44 | AW14: 50.45 | AX14: 50.46 | AY14: 50.46 | AZ14: 50.47 | BA14: 50.48 | BB14: 50.49 | BC14: 50.49 | BD14: 50.5 | BE14: 50.51 | BF14: 50.51 | BG14: 50.52 | BH14: 50.52 | BI14: 50.53 | BJ14: 50.53 | BK14: 50.54 | BL14: 50.54 | BM14: 50.54 | BN14: 50.55 | BO14: 50.55 | BP14: 50.55 | BQ14: 50.56 | BR14: 50.56 | BS14: 50.56 | BT14: 50.56 | BU14: 50.57 | BV14: 50.57 | BW14: 50.57 | BX14: 50.57 | BY14: 50.57 | BZ14: 50.57 | CA14: 50.58 | CB14: 50.58 | CC14: 50.58 | CD14: 50.58 | CE14: 50.58
A15: 24 | B15: 48.85 | C15: 48.94 | D15: 49.02 | E15: 49.11 | F15: 49.19 | G15: 49.26 | H15: 49.34 | I15: 49.41 | J15: 49.48 | K15: 49.55 | L15: 49.62 | M15: 49.68 | N15: 49.74 | O15: 49.8 | P15: 49.85 | Q15: 49.9 | R15: 49.95 | S15: 50 | T15: 50.05 | U15: 50.09 | V15: 50.13 | W15: 50.17 | X15: 50.21 | Y15: 50.24 | Z15: 50.28 | AA15: 50.31 | AB15: 50.34 | AC15: 50.36 | AD15: 50.39 | AE15: 50.42 | AF15: 50.44 | AG15: 50.46 | AH15: 50.48 | AI15: 50.5 | AJ15: 50.52 | AK15: 50.54 | AL15: 50.56 | AM15: 50.57 | AN15: 50.59 | AO15: 50.6 | AP15: 50.61 | AQ15: 50.63 | AR15: 50.64 | AS15: 50.65 | AT15: 50.66 | AU15: 50.67 | AV15: 50.68 | AW15: 50.69 | AX15: 50.7 | AY15: 50.71 | AZ15: 50.72 | BA15: 50.73 | BB15: 50.74 | BC15: 50.74 | BD15: 50.75 | BE15: 50.76 | BF15: 50.76 | BG15: 50.77 | BH15: 50.77 | BI15: 50.78 | BJ15: 50.78 | BK15: 50.79 | BL15: 50.79 | BM15: 50.8 | BN15: 50.8 | BO15: 50.8 | BP15: 50.81 | BQ15: 50.81 | BR15: 50.81 | BS15: 50.81 | BT15: 50.82 | BU15: 50.82 | BV15: 50.82 | BW15: 50.82 | BX15: 50.82 | BY15: 50.83 | BZ15: 50.83 | CA15: 50.83 | CB15: 50.83 | CC15: 50.83 | CD15: 50.83 | CE15: 50.83
A16: 25 | B16: 48.99 | C16: 49.08 | D16: 49.17 | E16: 49.25 | F16: 49.34 | G16: 49.42 | H16: 49.5 | I16: 49.57 | J16: 49.65 | K16: 49.72 | L16: 49.79 | M16: 49.85 | N16: 49.92 | O16: 49.98 | P16: 50.04 | Q16: 50.09 | R16: 50.15 | S16: 50.2 | T16: 50.25 | U16: 50.29 | V16: 50.34 | W16: 50.38 | X16: 50.42 | Y16: 50.46 | Z16: 50.49 | AA16: 50.53 | AB16: 50.56 | AC16: 50.59 | AD16: 50.62 | AE16: 50.65 | AF16: 50.67 | AG16: 50.7 | AH16: 50.72 | AI16: 50.74 | AJ16: 50.76 | AK16: 50.78 | AL16: 50.8 | AM16: 50.81 | AN16: 50.83 | AO16: 50.85 | AP16: 50.86 | AQ16: 50.87 | AR16: 50.89 | AS16: 50.9 | AT16: 50.91 | AU16: 50.92 | AV16: 50.94 | AW16: 50.95 | AX16: 50.96 | AY16: 50.97 | AZ16: 50.97 | BA16: 50.98 | BB16: 50.99 | BC16: 51 | BD16: 51.01 | BE16: 51.01 | BF16: 51.02 | BG16: 51.03 | BH16: 51.03 | BI16: 51.04 | BJ16: 51.04 | BK16: 51.05 | BL16: 51.05 | BM16: 51.05 | BN16: 51.06 | BO16: 51.06 | BP16: 51.06 | BQ16: 51.07 | BR16: 51.07 | BS16: 51.07 | BT16: 51.08 | BU16: 51.08 | BV16: 51.08 | BW16: 51.08 | BX16: 51.08 | BY16: 51.09 | BZ16: 51.09 | CA16: 51.09 | CB16: 51.09 | CC16: 51.09 | CD16: 51.09 | CE16: 51.09
A17: 26 | B17: 49.12 | C17: 49.22 | D17: 49.31 | E17: 49.4 | F17: 49.49 | G17: 49.57 | H17: 49.65 | I17: 49.73 | J17: 49.81 | K17: 49.89 | L17: 49.96 | M17: 50.03 | N17: 50.1 | O17: 50.16 | P17: 50.22 | Q17: 50.28 | R17: 50.34 | S17: 50.4 | T17: 50.45 | U17: 50.5 | V17: 50.55 | W17: 50.59 | X17: 50.63 | Y17: 50.68 | Z17: 50.71 | AA17: 50.75 | AB17: 50.79 | AC17: 50.82 | AD17: 50.85 | AE17: 50.88 | AF17: 50.91 | AG17: 50.93 | AH17: 50.96 | AI17: 50.98 | AJ17: 51 | AK17: 51.02 | AL17: 51.04 | AM17: 51.06 | AN17: 51.08 | AO17: 51.1 | AP17: 51.11 | AQ17: 51.13 | AR17: 51.14 | AS17: 51.16 | AT17: 51.17 | AU17: 51.18 | AV17: 51.19 | AW17: 51.2 | AX17: 51.22 | AY17: 51.23 | AZ17: 51.24 | BA17: 51.25 | BB17: 51.25 | BC17: 51.26 | BD17: 51.27 | BE17: 51.28 | BF17: 51.28 | BG17: 51.29 | BH17: 51.3 | BI17: 51.3 | BJ17: 51.31 | BK17: 51.31 | BL17: 51.32 | BM17: 51.32 | BN17: 51.32 | BO17: 51.33 | BP17: 51.33 | BQ17: 51.33 | BR17: 51.34 | BS17: 51.34 | BT17: 51.34 | BU17: 51.35 | BV17: 51.35 | BW17: 51.35 | BX17: 51.35 | BY17: 51.35 | BZ17: 51.35 | CA17: 51.36 | CB17: 51.36 | CC17: 51.36 | CD17: 51.36 | CE17: 51.36
A18: 27 | B18: 49.26 | C18: 49.36 | D18: 49.45 | E18: 49.55 | F18: 49.64 | G18: 49.73 | H18: 49.81 | I18: 49.9 | J18: 49.98 | K18: 50.06 | L18: 50.13 | M18: 50.21 | N18: 50.28 | O18: 50.35 | P18: 50.41 | Q18: 50.48 | R18: 50.54 | S18: 50.6 | T18: 50.65 | U18: 50.71 | V18: 50.76 | W18: 50.81 | X18: 50.85 | Y18: 50.9 | Z18: 50.94 | AA18: 50.98 | AB18: 51.02 | AC18: 51.05 | AD18: 51.09 | AE18: 51.12 | AF18: 51.15 | AG18: 51.18 | AH18: 51.2 | AI18: 51.23 | AJ18: 51.25 | AK18: 51.28 | AL18: 51.3 | AM18: 51.32 | AN18: 51.34 | AO18: 51.36 | AP18: 51.37 | AQ18: 51.39 | AR18: 51.4 | AS18: 51.42 | AT18: 51.43 | AU18: 51.45 | AV18: 51.46 | AW18: 51.47 | AX18: 51.48 | AY18: 51.49 | AZ18: 51.5 | BA18: 51.51 | BB18: 51.52 | BC18: 51.53 | BD18: 51.54 | BE18: 51.55 | BF18: 51.56 | BG18: 51.56 | BH18: 51.57 | BI18: 51.58 | BJ18: 51.58 | BK18: 51.59 | BL18: 51.59 | BM18: 51.6 | BN18: 51.6 | BO18: 51.6 | BP18: 51.61 | BQ18: 51.61 | BR18: 51.61 | BS18: 51.62 | BT18: 51.62 | BU18: 51.62 | BV18: 51.62 | BW18: 51.63 | BX18: 51.63 | BY18: 51.63 | BZ18: 51.63 | CA18: 51.63 | CB18: 51.63 | CC18: 51.64 | CD18: 51.64 | CE18: 51.64
A19: 28 | B19: 49.4 | C19: 49.5 | D19: 49.6 | E19: 49.69 | F19: 49.79 | G19: 49.88 | H19: 49.97 | I19: 50.06 | J19: 50.15 | K19: 50.23 | L19: 50.31 | M19: 50.39 | N19: 50.46 | O19: 50.54 | P19: 50.61 | Q19: 50.67 | R19: 50.74 | S19: 50.8 | T19: 50.86 | U19: 50.92 | V19: 50.97 | W19: 51.03 | X19: 51.08 | Y19: 51.12 | Z19: 51.17 | AA19: 51.21 | AB19: 51.25 | AC19: 51.29 | AD19: 51.33 | AE19: 51.36 | AF19: 51.39 | AG19: 51.43 | AH19: 51.45 | AI19: 51.48 | AJ19: 51.51 | AK19: 51.53 | AL19: 51.56 | AM19: 51.58 | AN19: 51.6 | AO19: 51.62 | AP19: 51.64 | AQ19: 51.66 | AR19: 51.67 | AS19: 51.69 | AT19: 51.7 | AU19: 51.72 | AV19: 51.73 | AW19: 51.75 | AX19: 51.76 | AY19: 51.77 | AZ19: 51.78 | BA19: 51.79 | BB19: 51.8 | BC19: 51.81 | BD19: 51.82 | BE19: 51.83 | BF19: 51.84 | BG19: 51.84 | BH19: 51.85 | BI19: 51.86 | BJ19: 51.86 | BK19: 51.87 | BL19: 51.87 | BM19: 51.88 | BN19: 51.88 | BO19: 51.89 | BP19: 51.89 | BQ19: 51.89 | BR19: 51.9 | BS19: 51.9 | BT19: 51.9 | BU19: 51.91 | BV19: 51.91 | BW19: 51.91 | BX19: 51.91 | BY19: 51.91 | BZ19: 51.92 | CA19: 51.92 | CB19: 51.92 | CC19: 51.92 | CD19: 51.92 | CE19: 51.92
A20: 29 | B20: 49.54 | C20: 49.64 | D20: 49.74 | E20: 49.84 | F20: 49.94 | G20: 50.04 | H20: 50.13 | I20: 50.23 | J20: 50.31 | K20: 50.4 | L20: 50.49 | M20: 50.57 | N20: 50.65 | O20: 50.73 | P20: 50.8 | Q20: 50.87 | R20: 50.94 | S20: 51.01 | T20: 51.07 | U20: 51.13 | V20: 51.19 | W20: 51.25 | X20: 51.3 | Y20: 51.35 | Z20: 51.4 | AA20: 51.45 | AB20: 51.49 | AC20: 51.53 | AD20: 51.57 | AE20: 51.61 | AF20: 51.65 | AG20: 51.68 | AH20: 51.71 | AI20: 51.74 | AJ20: 51.77 | AK20: 51.8 | AL20: 51.82 | AM20: 51.85 | AN20: 51.87 | AO20: 51.89 | AP20: 51.91 | AQ20: 51.93 | AR20: 51.95 | AS20: 51.97 | AT20: 51.98 | AU20: 52 | AV20: 52.01 | AW20: 52.03 | AX20: 52.04 | AY20: 52.06 | AZ20: 52.07 | BA20: 52.08 | BB20: 52.09 | BC20: 52.1 | BD20: 52.11 | BE20: 52.12 | BF20: 52.13 | BG20: 52.14 | BH20: 52.14 | BI20: 52.15 | BJ20: 52.16 | BK20: 52.16 | BL20: 52.17 | BM20: 52.17 | BN20: 52.18 | BO20: 52.18 | BP20: 52.18 | BQ20: 52.19 | BR20: 52.19 | BS20: 52.2 | BT20: 52.2 | BU20: 52.2 | BV20: 52.2 | BW20: 52.21 | BX20: 52.21 | BY20: 52.21 | BZ20: 52.21 | CA20: 52.21 | CB20: 52.21 | CC20: 52.22 | CD20: 52.22 | CE20: 52.22
A21: 30 | B21: 49.68 | C21: 49.79 | D21: 49.89 | E21: 50 | F21: 50.1 | G21: 50.2 | H21: 50.3 | I21: 50.39 | J21: 50.49 | K21: 50.58 | L21: 50.67 | M21: 50.75 | N21: 50.84 | O21: 50.92 | P21: 51 | Q21: 51.07 | R21: 51.15 | S21: 51.22 | T21: 51.29 | U21: 51.35 | V21: 51.41 | W21: 51.47 | X21: 51.53 | Y21: 51.59 | Z21: 51.64 | AA21: 51.69 | AB21: 51.74 | AC21: 51.78 | AD21: 51.82 | AE21: 51.87 | AF21: 51.9 | AG21: 51.94 | AH21: 51.98 | AI21: 52.01 | AJ21: 52.04 | AK21: 52.07 | AL21: 52.1 | AM21: 52.12 | AN21: 52.15 | AO21: 52.17 | AP21: 52.19 | AQ21: 52.21 | AR21: 52.23 | AS21: 52.25 | AT21: 52.27 | AU21: 52.29 | AV21: 52.31 | AW21: 52.32 | AX21: 52.34 | AY21: 52.35 | AZ21: 52.36 | BA21: 52.38 | BB21: 52.39 | BC21: 52.4 | BD21: 52.41 | BE21: 52.42 | BF21: 52.43 | BG21: 52.44 | BH21: 52.44 | BI21: 52.45 | BJ21: 52.46 | BK21: 52.46 | BL21: 52.47 | BM21: 52.48 | BN21: 52.48 | BO21: 52.49 | BP21: 52.49 | BQ21: 52.49 | BR21: 52.5 | BS21: 52.5 | BT21: 52.5 | BU21: 52.51 | BV21: 52.51 | BW21: 52.51 | BX21: 52.51 | BY21: 52.52 | BZ21: 52.52 | CA21: 52.52 | CB21: 52.52 | CC21: 52.52 | CD21: 52.52 | CE21: 52.52
A22: 31 | B22: 49.83 | C22: 49.94 | D22: 50.05 | E22: 50.15 | F22: 50.26 | G22: 50.36 | H22: 50.46 | I22: 50.56 | J22: 50.66 | K22: 50.76 | L22: 50.85 | M22: 50.94 | N22: 51.03 | O22: 51.11 | P22: 51.2 | Q22: 51.28 | R22: 51.36 | S22: 51.43 | T22: 51.5 | U22: 51.57 | V22: 51.64 | W22: 51.7 | X22: 51.77 | Y22: 51.82 | Z22: 51.88 | AA22: 51.94 | AB22: 51.99 | AC22: 52.04 | AD22: 52.08 | AE22: 52.13 | AF22: 52.17 | AG22: 52.21 | AH22: 52.25 | AI22: 52.28 | AJ22: 52.32 | AK22: 52.35 | AL22: 52.38 | AM22: 52.41 | AN22: 52.43 | AO22: 52.46 | AP22: 52.48 | AQ22: 52.51 | AR22: 52.53 | AS22: 52.55 | AT22: 52.57 | AU22: 52.59 | AV22: 52.61 | AW22: 52.62 | AX22: 52.64 | AY22: 52.65 | AZ22: 52.67 | BA22: 52.68 | BB22: 52.7 | BC22: 52.71 | BD22: 52.72 | BE22: 52.73 | BF22: 52.74 | BG22: 52.75 | BH22: 52.76 | BI22: 52.76 | BJ22: 52.77 | BK22: 52.78 | BL22: 52.78 | BM22: 52.79 | BN22: 52.8 | BO22: 52.8 | BP22: 52.81 | BQ22: 52.81 | BR22: 52.81 | BS22: 52.82 | BT22: 52.82 | BU22: 52.82 | BV22: 52.83 | BW22: 52.83 | BX22: 52.83 | BY22: 52.83 | BZ22: 52.84 | CA22: 52.84 | CB22: 52.84 | CC22: 52.84 | CD22: 52.84 | CE22: 52.84
A23: 32 | B23: 49.97 | C23: 50.09 | D23: 50.2 | E23: 50.31 | F23: 50.42 | G23: 50.53 | H23: 50.63 | I23: 50.74 | J23: 50.84 | K23: 50.94 | L23: 51.04 | M23: 51.13 | N23: 51.22 | O23: 51.31 | P23: 51.4 | Q23: 51.49 | R23: 51.57 | S23: 51.65 | T23: 51.72 | U23: 51.8 | V23: 51.87 | W23: 51.94 | X23: 52.01 | Y23: 52.07 | Z23: 52.13 | AA23: 52.19 | AB23: 52.24 | AC23: 52.29 | AD23: 52.35 | AE23: 52.39 | AF23: 52.44 | AG23: 52.48 | AH23: 52.52 | AI23: 52.56 | AJ23: 52.6 | AK23: 52.63 | AL23: 52.67 | AM23: 52.7 | AN23: 52.73 | AO23: 52.76 | AP23: 52.78 | AQ23: 52.81 | AR23: 52.83 | AS23: 52.85 | AT23: 52.88 | AU23: 52.9 | AV23: 52.92 | AW23: 52.93 | AX23: 52.95 | AY23: 52.97 | AZ23: 52.99 | BA23: 53 | BB23: 53.01 | BC23: 53.03 | BD23: 53.04 | BE23: 53.05 | BF23: 53.06 | BG23: 53.07 | BH23: 53.08 | BI23: 53.09 | BJ23: 53.1 | BK23: 53.1 | BL23: 53.11 | BM23: 53.12 | BN23: 53.12 | BO23: 53.13 | BP23: 53.13 | BQ23: 53.14 | BR23: 53.14 | BS23: 53.15 | BT23: 53.15 | BU23: 53.15 | BV23: 53.16 | BW23: 53.16 | BX23: 53.16 | BY23: 53.16 | BZ23: 53.17 | CA23: 53.17 | CB23: 53.17 | CC23: 53.17 | CD23: 53.17 | CE23: 53.17
A24: 33 | B24: 50.12 | C24: 50.24 | D24: 50.36 | E24: 50.47 | F24: 50.58 | G24: 50.7 | H24: 50.81 | I24: 50.91 | J24: 51.02 | K24: 51.12 | L24: 51.22 | M24: 51.32 | N24: 51.42 | O24: 51.52 | P24: 51.61 | Q24: 51.7 | R24: 51.78 | S24: 51.87 | T24: 51.95 | U24: 52.03 | V24: 52.11 | W24: 52.18 | X24: 52.25 | Y24: 52.32 | Z24: 52.38 | AA24: 52.44 | AB24: 52.5 | AC24: 52.56 | AD24: 52.62 | AE24: 52.67 | AF24: 52.72 | AG24: 52.76 | AH24: 52.81 | AI24: 52.85 | AJ24: 52.89 | AK24: 52.93 | AL24: 52.96 | AM24: 53 | AN24: 53.03 | AO24: 53.06 | AP24: 53.09 | AQ24: 53.12 | AR24: 53.14 | AS24: 53.17 | AT24: 53.19 | AU24: 53.22 | AV24: 53.24 | AW24: 53.26 | AX24: 53.28 | AY24: 53.3 | AZ24: 53.31 | BA24: 53.33 | BB24: 53.34 | BC24: 53.36 | BD24: 53.37 | BE24: 53.39 | BF24: 53.4 | BG24: 53.41 | BH24: 53.42 | BI24: 53.43 | BJ24: 53.44 | BK24: 53.44 | BL24: 53.45 | BM24: 53.46 | BN24: 53.46 | BO24: 53.47 | BP24: 53.48 | BQ24: 53.48 | BR24: 53.49 | BS24: 53.49 | BT24: 53.49 | BU24: 53.5 | BV24: 53.5 | BW24: 53.5 | BX24: 53.51 | BY24: 53.51 | BZ24: 53.51 | CA24: 53.51 | CB24: 53.51 | CC24: 53.52 | CD24: 53.52 | CE24: 53.52
A25: 34 | B25: 50.28 | C25: 50.4 | D25: 50.52 | E25: 50.64 | F25: 50.75 | G25: 50.87 | H25: 50.98 | I25: 51.09 | J25: 51.2 | K25: 51.31 | L25: 51.42 | M25: 51.52 | N25: 51.62 | O25: 51.72 | P25: 51.82 | Q25: 51.91 | R25: 52 | S25: 52.09 | T25: 52.18 | U25: 52.26 | V25: 52.35 | W25: 52.42 | X25: 52.5 | Y25: 52.57 | Z25: 52.64 | AA25: 52.71 | AB25: 52.77 | AC25: 52.83 | AD25: 52.89 | AE25: 52.95 | AF25: 53 | AG25: 53.05 | AH25: 53.1 | AI25: 53.15 | AJ25: 53.19 | AK25: 53.23 | AL25: 53.27 | AM25: 53.31 | AN25: 53.34 | AO25: 53.38 | AP25: 53.41 | AQ25: 53.44 | AR25: 53.47 | AS25: 53.5 | AT25: 53.52 | AU25: 53.55 | AV25: 53.57 | AW25: 53.59 | AX25: 53.61 | AY25: 53.63 | AZ25: 53.65 | BA25: 53.67 | BB25: 53.69 | BC25: 53.7 | BD25: 53.72 | BE25: 53.73 | BF25: 53.74 | BG25: 53.76 | BH25: 53.77 | BI25: 53.78 | BJ25: 53.79 | BK25: 53.8 | BL25: 53.8 | BM25: 53.81 | BN25: 53.82 | BO25: 53.83 | BP25: 53.83 | BQ25: 53.84 | BR25: 53.84 | BS25: 53.85 | BT25: 53.85 | BU25: 53.85 | BV25: 53.86 | BW25: 53.86 | BX25: 53.86 | BY25: 53.87 | BZ25: 53.87 | CA25: 53.87 | CB25: 53.87 | CC25: 53.88 | CD25: 53.88 | CE25: 53.88
A26: 35 | B26: 50.44 | C26: 50.56 | D26: 50.68 | E26: 50.81 | F26: 50.93 | G26: 51.04 | H26: 51.16 | I26: 51.28 | J26: 51.39 | K26: 51.5 | L26: 51.61 | M26: 51.72 | N26: 51.83 | O26: 51.93 | P26: 52.03 | Q26: 52.13 | R26: 52.23 | S26: 52.32 | T26: 52.41 | U26: 52.5 | V26: 52.59 | W26: 52.67 | X26: 52.75 | Y26: 52.83 | Z26: 52.91 | AA26: 52.98 | AB26: 53.05 | AC26: 53.11 | AD26: 53.17 | AE26: 53.24 | AF26: 53.29 | AG26: 53.35 | AH26: 53.4 | AI26: 53.45 | AJ26: 53.5 | AK26: 53.54 | AL26: 53.59 | AM26: 53.63 | AN26: 53.67 | AO26: 53.7 | AP26: 53.74 | AQ26: 53.77 | AR26: 53.8 | AS26: 53.83 | AT26: 53.86 | AU26: 53.89 | AV26: 53.91 | AW26: 53.94 | AX26: 53.96 | AY26: 53.98 | AZ26: 54.01 | BA26: 54.03 | BB26: 54.04 | BC26: 54.06 | BD26: 54.08 | BE26: 54.09 | BF26: 54.11 | BG26: 54.12 | BH26: 54.13 | BI26: 54.14 | BJ26: 54.15 | BK26: 54.16 | BL26: 54.17 | BM26: 54.18 | BN26: 54.19 | BO26: 54.19 | BP26: 54.2 | BQ26: 54.21 | BR26: 54.21 | BS26: 54.22 | BT26: 54.22 | BU26: 54.23 | BV26: 54.23 | BW26: 54.23 | BX26: 54.24 | BY26: 54.24 | BZ26: 54.24 | CA26: 54.25 | CB26: 54.25 | CC26: 54.25 | CD26: 54.25 | CE26: 54.25
A27: 36 | B27: 50.6 | C27: 50.73 | D27: 50.85 | E27: 50.98 | F27: 51.1 | G27: 51.22 | H27: 51.34 | I27: 51.46 | J27: 51.58 | K27: 51.7 | L27: 51.81 | M27: 51.92 | N27: 52.04 | O27: 52.14 | P27: 52.25 | Q27: 52.35 | R27: 52.46 | S27: 52.56 | T27: 52.65 | U27: 52.75 | V27: 52.84 | W27: 52.93 | X27: 53.01 | Y27: 53.09 | Z27: 53.17 | AA27: 53.25 | AB27: 53.33 | AC27: 53.4 | AD27: 53.46 | AE27: 53.53 | AF27: 53.59 | AG27: 53.65 | AH27: 53.71 | AI27: 53.76 | AJ27: 53.82 | AK27: 53.86 | AL27: 53.91 | AM27: 53.96 | AN27: 54 | AO27: 54.04 | AP27: 54.08 | AQ27: 54.11 | AR27: 54.15 | AS27: 54.18 | AT27: 54.21 | AU27: 54.24 | AV27: 54.27 | AW27: 54.3 | AX27: 54.32 | AY27: 54.35 | AZ27: 54.37 | BA27: 54.39 | BB27: 54.41 | BC27: 54.43 | BD27: 54.45 | BE27: 54.47 | BF27: 54.48 | BG27: 54.5 | BH27: 54.51 | BI27: 54.52 | BJ27: 54.53 | BK27: 54.54 | BL27: 54.55 | BM27: 54.56 | BN27: 54.57 | BO27: 54.58 | BP27: 54.59 | BQ27: 54.59 | BR27: 54.6 | BS27: 54.6 | BT27: 54.61 | BU27: 54.61 | BV27: 54.62 | BW27: 54.62 | BX27: 54.63 | BY27: 54.63 | BZ27: 54.63 | CA27: 54.63 | CB27: 54.64 | CC27: 54.64 | CD27: 54.64 | CE27: 54.64
A28: 37 | B28: 50.77 | C28: 50.9 | D28: 51.03 | E28: 51.15 | F28: 51.28 | G28: 51.41 | H28: 51.53 | I28: 51.65 | J28: 51.78 | K28: 51.9 | L28: 52.02 | M28: 52.13 | N28: 52.25 | O28: 52.36 | P28: 52.47 | Q28: 52.58 | R28: 52.69 | S28: 52.79 | T28: 52.9 | U28: 52.99 | V28: 53.09 | W28: 53.19 | X28: 53.28 | Y28: 53.36 | Z28: 53.45 | AA28: 53.53 | AB28: 53.61 | AC28: 53.69 | AD28: 53.76 | AE28: 53.83 | AF28: 53.9 | AG28: 53.96 | AH28: 54.02 | AI28: 54.08 | AJ28: 54.14 | AK28: 54.19 | AL28: 54.24 | AM28: 54.29 | AN28: 54.34 | AO28: 54.38 | AP28: 54.42 | AQ28: 54.46 | AR28: 54.5 | AS28: 54.54 | AT28: 54.57 | AU28: 54.61 | AV28: 54.64 | AW28: 54.67 | AX28: 54.7 | AY28: 54.72 | AZ28: 54.75 | BA28: 54.77 | BB28: 54.79 | BC28: 54.82 | BD28: 54.83 | BE28: 54.85 | BF28: 54.87 | BG28: 54.89 | BH28: 54.9 | BI28: 54.91 | BJ28: 54.93 | BK28: 54.94 | BL28: 54.95 | BM28: 54.96 | BN28: 54.97 | BO28: 54.98 | BP28: 54.99 | BQ28: 54.99 | BR28: 55 | BS28: 55.01 | BT28: 55.01 | BU28: 55.02 | BV28: 55.02 | BW28: 55.03 | BX28: 55.03 | BY28: 55.03 | BZ28: 55.04 | CA28: 55.04 | CB28: 55.04 | CC28: 55.04 | CD28: 55.05 | CE28: 55.05
A29: 38 | B29: 50.94 | C29: 51.07 | D29: 51.2 | E29: 51.33 | F29: 51.46 | G29: 51.59 | H29: 51.72 | I29: 51.85 | J29: 51.97 | K29: 52.1 | L29: 52.22 | M29: 52.34 | N29: 52.46 | O29: 52.58 | P29: 52.7 | Q29: 52.81 | R29: 52.93 | S29: 53.04 | T29: 53.14 | U29: 53.25 | V29: 53.35 | W29: 53.45 | X29: 53.55 | Y29: 53.64 | Z29: 53.73 | AA29: 53.82 | AB29: 53.9 | AC29: 53.98 | AD29: 54.06 | AE29: 54.14 | AF29: 54.21 | AG29: 54.28 | AH29: 54.35 | AI29: 54.41 | AJ29: 54.47 | AK29: 54.53 | AL29: 54.59 | AM29: 54.64 | AN29: 54.69 | AO29: 54.74 | AP29: 54.78 | AQ29: 54.83 | AR29: 54.87 | AS29: 54.91 | AT29: 54.95 | AU29: 54.98 | AV29: 55.02 | AW29: 55.05 | AX29: 55.08 | AY29: 55.11 | AZ29: 55.14 | BA29: 55.17 | BB29: 55.19 | BC29: 55.21 | BD29: 55.24 | BE29: 55.26 | BF29: 55.27 | BG29: 55.29 | BH29: 55.31 | BI29: 55.32 | BJ29: 55.34 | BK29: 55.35 | BL29: 55.36 | BM29: 55.37 | BN29: 55.38 | BO29: 55.39 | BP29: 55.4 | BQ29: 55.41 | BR29: 55.42 | BS29: 55.42 | BT29: 55.43 | BU29: 55.44 | BV29: 55.44 | BW29: 55.45 | BX29: 55.45 | BY29: 55.45 | BZ29: 55.46 | CA29: 55.46 | CB29: 55.46 | CC29: 55.47 | CD29: 55.47 | CE29: 55.47
A30: 39 | B30: 51.11 | C30: 51.25 | D30: 51.38 | E30: 51.52 | F30: 51.65 | G30: 51.78 | H30: 51.92 | I30: 52.05 | J30: 52.18 | K30: 52.31 | L30: 52.43 | M30: 52.56 | N30: 52.69 | O30: 52.81 | P30: 52.93 | Q30: 53.05 | R30: 53.17 | S30: 53.28 | T30: 53.39 | U30: 53.51 | V30: 53.61 | W30: 53.72 | X30: 53.82 | Y30: 53.92 | Z30: 54.02 | AA30: 54.11 | AB30: 54.2 | AC30: 54.29 | AD30: 54.37 | AE30: 54.45 | AF30: 54.53 | AG30: 54.61 | AH30: 54.68 | AI30: 54.75 | AJ30: 54.82 | AK30: 54.88 | AL30: 54.94 | AM30: 55 | AN30: 55.05 | AO30: 55.1 | AP30: 55.15 | AQ30: 55.2 | AR30: 55.25 | AS30: 55.29 | AT30: 55.33 | AU30: 55.37 | AV30: 55.41 | AW30: 55.45 | AX30: 55.48 | AY30: 55.51 | AZ30: 55.54 | BA30: 55.57 | BB30: 55.6 | BC30: 55.63 | BD30: 55.65 | BE30: 55.67 | BF30: 55.69 | BG30: 55.71 | BH30: 55.73 | BI30: 55.75 | BJ30: 55.76 | BK30: 55.78 | BL30: 55.79 | BM30: 55.8 | BN30: 55.82 | BO30: 55.83 | BP30: 55.84 | BQ30: 55.84 | BR30: 55.85 | BS30: 55.86 | BT30: 55.87 | BU30: 55.87 | BV30: 55.88 | BW30: 55.88 | BX30: 55.89 | BY30: 55.89 | BZ30: 55.9 | CA30: 55.9 | CB30: 55.9 | CC30: 55.91 | CD30: 55.91 | CE30: 55.91
A31: 40 | B31: 51.83 | C31: 51.97 | D31: 52.11 | E31: 52.25 | F31: 52.4 | G31: 52.54 | H31: 52.68 | I31: 52.82 | J31: 52.96 | K31: 53.1 | L31: 53.23 | M31: 53.37 | N31: 53.51 | O31: 53.64 | P31: 53.77 | Q31: 53.9 | R31: 54.03 | S31: 54.16 | T31: 54.28 | U31: 54.4 | V31: 54.52 | W31: 54.64 | X31: 54.75 | Y31: 54.87 | Z31: 54.97 | AA31: 55.08 | AB31: 55.18 | AC31: 55.28 | AD31: 55.37 | AE31: 55.47 | AF31: 55.55 | AG31: 55.64 | AH31: 55.72 | AI31: 55.8 | AJ31: 55.87 | AK31: 55.95 | AL31: 56.02 | AM31: 56.08 | AN31: 56.14 | AO31: 56.2 | AP31: 56.26 | AQ31: 56.32 | AR31: 56.37 | AS31: 56.42 | AT31: 56.47 | AU31: 56.51 | AV31: 56.56 | AW31: 56.6 | AX31: 56.64 | AY31: 56.68 | AZ31: 56.72 | BA31: 56.75 | BB31: 56.78 | BC31: 56.81 | BD31: 56.84 | BE31: 56.87 | BF31: 56.89 | BG31: 56.91 | BH31: 56.93 | BI31: 56.95 | BJ31: 56.97 | BK31: 56.99 | BL31: 57 | BM31: 57.02 | BN31: 57.03 | BO31: 57.04 | BP31: 57.05 | BQ31: 57.06 | BR31: 57.07 | BS31: 57.08 | BT31: 57.09 | BU31: 57.09 | BV31: 57.1 | BW31: 57.11 | BX31: 57.11 | BY31: 57.12 | BZ31: 57.12 | CA31: 57.12 | CB31: 57.13 | CC31: 57.13 | CD31: 57.13 | CE31: 57.14
A32: 41 | B32: 52.03 | C32: 52.17 | D32: 52.32 | E32: 52.46 | F32: 52.61 | G32: 52.75 | H32: 52.9 | I32: 53.04 | J32: 53.18 | K32: 53.33 | L32: 53.47 | M32: 53.61 | N32: 53.75 | O32: 53.89 | P32: 54.03 | Q32: 54.16 | R32: 54.3 | S32: 54.43 | T32: 54.56 | U32: 54.69 | V32: 54.82 | W32: 54.94 | X32: 55.06 | Y32: 55.18 | Z32: 55.29 | AA32: 55.4 | AB32: 55.51 | AC32: 55.62 | AD32: 55.72 | AE32: 55.82 | AF32: 55.91 | AG32: 56.01 | AH32: 56.09 | AI32: 56.18 | AJ32: 56.26 | AK32: 56.34 | AL32: 56.41 | AM32: 56.49 | AN32: 56.55 | AO32: 56.62 | AP32: 56.68 | AQ32: 56.74 | AR32: 56.8 | AS32: 56.86 | AT32: 56.91 | AU32: 56.96 | AV32: 57.01 | AW32: 57.05 | AX32: 57.1 | AY32: 57.14 | AZ32: 57.18 | BA32: 57.22 | BB32: 57.25 | BC32: 57.29 | BD32: 57.32 | BE32: 57.35 | BF32: 57.37 | BG32: 57.4 | BH32: 57.42 | BI32: 57.44 | BJ32: 57.46 | BK32: 57.48 | BL32: 57.5 | BM32: 57.51 | BN32: 57.53 | BO32: 57.54 | BP32: 57.55 | BQ32: 57.57 | BR32: 57.58 | BS32: 57.58 | BT32: 57.59 | BU32: 57.6 | BV32: 57.61 | BW32: 57.61 | BX32: 57.62 | BY32: 57.63 | BZ32: 57.63 | CA32: 57.63 | CB32: 57.64 | CC32: 57.64 | CD32: 57.65 | CE32: 57.65
A33: 42 | B33: 52.23 | C33: 52.38 | D33: 52.53 | E33: 52.67 | F33: 52.82 | G33: 52.97 | H33: 53.12 | I33: 53.27 | J33: 53.42 | K33: 53.56 | L33: 53.71 | M33: 53.86 | N33: 54 | O33: 54.15 | P33: 54.29 | Q33: 54.43 | R33: 54.57 | S33: 54.71 | T33: 54.85 | U33: 54.98 | V33: 55.11 | W33: 55.24 | X33: 55.37 | Y33: 55.5 | Z33: 55.62 | AA33: 55.74 | AB33: 55.85 | AC33: 55.96 | AD33: 56.07 | AE33: 56.18 | AF33: 56.28 | AG33: 56.38 | AH33: 56.48 | AI33: 56.57 | AJ33: 56.66 | AK33: 56.74 | AL33: 56.82 | AM33: 56.9 | AN33: 56.98 | AO33: 57.05 | AP33: 57.12 | AQ33: 57.18 | AR33: 57.24 | AS33: 57.31 | AT33: 57.36 | AU33: 57.42 | AV33: 57.47 | AW33: 57.52 | AX33: 57.57 | AY33: 57.62 | AZ33: 57.66 | BA33: 57.71 | BB33: 57.74 | BC33: 57.78 | BD33: 57.82 | BE33: 57.85 | BF33: 57.88 | BG33: 57.91 | BH33: 57.93 | BI33: 57.96 | BJ33: 57.98 | BK33: 58 | BL33: 58.02 | BM33: 58.03 | BN33: 58.05 | BO33: 58.06 | BP33: 58.08 | BQ33: 58.09 | BR33: 58.1 | BS33: 58.11 | BT33: 58.12 | BU33: 58.13 | BV33: 58.14 | BW33: 58.14 | BX33: 58.15 | BY33: 58.16 | BZ33: 58.16 | CA33: 58.17 | CB33: 58.17 | CC33: 58.18 | CD33: 58.18 | CE33: 58.18
A34: 43 | B34: 52.44 | C34: 52.59 | D34: 52.74 | E34: 52.89 | F34: 53.05 | G34: 53.2 | H34: 53.35 | I34: 53.5 | J34: 53.65 | K34: 53.81 | L34: 53.96 | M34: 54.11 | N34: 54.26 | O34: 54.41 | P34: 54.56 | Q34: 54.7 | R34: 54.85 | S34: 54.99 | T34: 55.14 | U34: 55.28 | V34: 55.42 | W34: 55.55 | X34: 55.69 | Y34: 55.82 | Z34: 55.95 | AA34: 56.08 | AB34: 56.2 | AC34: 56.32 | AD34: 56.43 | AE34: 56.55 | AF34: 56.66 | AG34: 56.76 | AH34: 56.87 | AI34: 56.97 | AJ34: 57.06 | AK34: 57.15 | AL34: 57.24 | AM34: 57.33 | AN34: 57.41 | AO34: 57.49 | AP34: 57.56 | AQ34: 57.63 | AR34: 57.7 | AS34: 57.77 | AT34: 57.83 | AU34: 57.9 | AV34: 57.95 | AW34: 58.01 | AX34: 58.07 | AY34: 58.12 | AZ34: 58.17 | BA34: 58.21 | BB34: 58.25 | BC34: 58.29 | BD34: 58.33 | BE34: 58.37 | BF34: 58.4 | BG34: 58.43 | BH34: 58.46 | BI34: 58.49 | BJ34: 58.51 | BK34: 58.53 | BL34: 58.56 | BM34: 58.57 | BN34: 58.59 | BO34: 58.61 | BP34: 58.62 | BQ34: 58.64 | BR34: 58.65 | BS34: 58.66 | BT34: 58.67 | BU34: 58.68 | BV34: 58.69 | BW34: 58.7 | BX34: 58.71 | BY34: 58.71 | BZ34: 58.72 | CA34: 58.72 | CB34: 58.73 | CC34: 58.73 | CD34: 58.74 | CE34: 58.74
A35: 44 | B35: 52.66 | C35: 52.81 | D35: 52.96 | E35: 53.12 | F35: 53.27 | G35: 53.43 | H35: 53.59 | I35: 53.74 | J35: 53.9 | K35: 54.05 | L35: 54.21 | M35: 54.36 | N35: 54.52 | O35: 54.67 | P35: 54.83 | Q35: 54.98 | R35: 55.13 | S35: 55.28 | T35: 55.43 | U35: 55.58 | V35: 55.73 | W35: 55.87 | X35: 56.01 | Y35: 56.15 | Z35: 56.29 | AA35: 56.42 | AB35: 56.55 | AC35: 56.68 | AD35: 56.81 | AE35: 56.93 | AF35: 57.04 | AG35: 57.16 | AH35: 57.27 | AI35: 57.38 | AJ35: 57.48 | AK35: 57.58 | AL35: 57.68 | AM35: 57.77 | AN35: 57.86 | AO35: 57.94 | AP35: 58.02 | AQ35: 58.1 | AR35: 58.18 | AS35: 58.25 | AT35: 58.32 | AU35: 58.39 | AV35: 58.45 | AW35: 58.52 | AX35: 58.58 | AY35: 58.63 | AZ35: 58.69 | BA35: 58.74 | BB35: 58.78 | BC35: 58.83 | BD35: 58.87 | BE35: 58.91 | BF35: 58.95 | BG35: 58.98 | BH35: 59.01 | BI35: 59.04 | BJ35: 59.07 | BK35: 59.1 | BL35: 59.12 | BM35: 59.14 | BN35: 59.16 | BO35: 59.18 | BP35: 59.19 | BQ35: 59.21 | BR35: 59.22 | BS35: 59.24 | BT35: 59.25 | BU35: 59.26 | BV35: 59.27 | BW35: 59.28 | BX35: 59.29 | BY35: 59.29 | BZ35: 59.3 | CA35: 59.31 | CB35: 59.31 | CC35: 59.32 | CD35: 59.32 | CE35: 59.33
A36: 45 | B36: 52.88 | C36: 53.04 | D36: 53.2 | E36: 53.35 | F36: 53.51 | G36: 53.67 | H36: 53.83 | I36: 53.99 | J36: 54.15 | K36: 54.31 | L36: 54.47 | M36: 54.63 | N36: 54.79 | O36: 54.95 | P36: 55.11 | Q36: 55.27 | R36: 55.43 | S36: 55.58 | T36: 55.74 | U36: 55.89 | V36: 56.05 | W36: 56.2 | X36: 56.35 | Y36: 56.49 | Z36: 56.64 | AA36: 56.78 | AB36: 56.92 | AC36: 57.05 | AD36: 57.19 | AE36: 57.32 | AF36: 57.44 | AG36: 57.56 | AH36: 57.68 | AI36: 57.8 | AJ36: 57.91 | AK36: 58.02 | AL36: 58.12 | AM36: 58.22 | AN36: 58.32 | AO36: 58.41 | AP36: 58.5 | AQ36: 58.59 | AR36: 58.67 | AS36: 58.75 | AT36: 58.83 | AU36: 58.9 | AV36: 58.97 | AW36: 59.04 | AX36: 59.11 | AY36: 59.17 | AZ36: 59.23 | BA36: 59.28 | BB36: 59.34 | BC36: 59.39 | BD36: 59.43 | BE36: 59.48 | BF36: 59.52 | BG36: 59.56 | BH36: 59.59 | BI36: 59.62 | BJ36: 59.65 | BK36: 59.68 | BL36: 59.71 | BM36: 59.73 | BN36: 59.75 | BO36: 59.77 | BP36: 59.79 | BQ36: 59.81 | BR36: 59.83 | BS36: 59.84 | BT36: 59.85 | BU36: 59.86 | BV36: 59.88 | BW36: 59.89 | BX36: 59.89 | BY36: 59.9 | BZ36: 59.91 | CA36: 59.92 | CB36: 59.92 | CC36: 59.93 | CD36: 59.94 | CE36: 59.94
A37: 46 | B37: 53.11 | C37: 53.27 | D37: 53.43 | E37: 53.6 | F37: 53.76 | G37: 53.92 | H37: 54.08 | I37: 54.25 | J37: 54.41 | K37: 54.57 | L37: 54.74 | M37: 54.9 | N37: 55.07 | O37: 55.23 | P37: 55.4 | Q37: 55.56 | R37: 55.73 | S37: 55.89 | T37: 56.05 | U37: 56.21 | V37: 56.37 | W37: 56.53 | X37: 56.69 | Y37: 56.84 | Z37: 57 | AA37: 57.14 | AB37: 57.29 | AC37: 57.44 | AD37: 57.58 | AE37: 57.72 | AF37: 57.85 | AG37: 57.98 | AH37: 58.11 | AI37: 58.23 | AJ37: 58.35 | AK37: 58.47 | AL37: 58.58 | AM37: 58.69 | AN37: 58.8 | AO37: 58.9 | AP37: 58.99 | AQ37: 59.09 | AR37: 59.18 | AS37: 59.27 | AT37: 59.35 | AU37: 59.43 | AV37: 59.51 | AW37: 59.59 | AX37: 59.66 | AY37: 59.73 | AZ37: 59.79 | BA37: 59.85 | BB37: 59.91 | BC37: 59.97 | BD37: 60.02 | BE37: 60.07 | BF37: 60.11 | BG37: 60.15 | BH37: 60.19 | BI37: 60.23 | BJ37: 60.26 | BK37: 60.3 | BL37: 60.32 | BM37: 60.35 | BN37: 60.38 | BO37: 60.4 | BP37: 60.42 | BQ37: 60.44 | BR37: 60.46 | BS37: 60.47 | BT37: 60.49 | BU37: 60.5 | BV37: 60.51 | BW37: 60.52 | BX37: 60.53 | BY37: 60.54 | BZ37: 60.55 | CA37: 60.56 | CB37: 60.57 | CC37: 60.57 | CD37: 60.58 | CE37: 60.58
A38: 47 | B38: 53.36 | C38: 53.52 | D38: 53.68 | E38: 53.85 | F38: 54.01 | G38: 54.18 | H38: 54.34 | I38: 54.51 | J38: 54.68 | K38: 54.85 | L38: 55.02 | M38: 55.19 | N38: 55.36 | O38: 55.53 | P38: 55.7 | Q38: 55.87 | R38: 56.04 | S38: 56.21 | T38: 56.37 | U38: 56.54 | V38: 56.71 | W38: 56.88 | X38: 57.04 | Y38: 57.2 | Z38: 57.36 | AA38: 57.52 | AB38: 57.67 | AC38: 57.83 | AD38: 57.98 | AE38: 58.13 | AF38: 58.27 | AG38: 58.41 | AH38: 58.55 | AI38: 58.68 | AJ38: 58.81 | AK38: 58.93 | AL38: 59.06 | AM38: 59.17 | AN38: 59.29 | AO38: 59.4 | AP38: 59.5 | AQ38: 59.61 | AR38: 59.7 | AS38: 59.8 | AT38: 59.89 | AU38: 59.98 | AV38: 60.07 | AW38: 60.15 | AX38: 60.23 | AY38: 60.31 | AZ38: 60.38 | BA38: 60.45 | BB38: 60.51 | BC38: 60.57 | BD38: 60.63 | BE38: 60.68 | BF38: 60.73 | BG38: 60.78 | BH38: 60.82 | BI38: 60.86 | BJ38: 60.9 | BK38: 60.94 | BL38: 60.97 | BM38: 61 | BN38: 61.03 | BO38: 61.05 | BP38: 61.07 | BQ38: 61.1 | BR38: 61.12 | BS38: 61.13 | BT38: 61.15 | BU38: 61.17 | BV38: 61.18 | BW38: 61.19 | BX38: 61.2 | BY38: 61.21 | BZ38: 61.22 | CA38: 61.23 | CB38: 61.24 | CC38: 61.25 | CD38: 61.25 | CE38: 61.26
A39: 48 | B39: 53.61 | C39: 53.77 | D39: 53.94 | E39: 54.1 | F39: 54.27 | G39: 54.44 | H39: 54.61 | I39: 54.78 | J39: 54.95 | K39: 55.13 | L39: 55.3 | M39: 55.48 | N39: 55.65 | O39: 55.83 | P39: 56 | Q39: 56.18 | R39: 56.35 | S39: 56.53 | T39: 56.7 | U39: 56.88 | V39: 57.05 | W39: 57.23 | X39: 57.4 | Y39: 57.57 | Z39: 57.74 | AA39: 57.9 | AB39: 58.07 | AC39: 58.23 | AD39: 58.39 | AE39: 58.55 | AF39: 58.7 | AG39: 58.85 | AH39: 59 | AI39: 59.14 | AJ39: 59.28 | AK39: 59.41 | AL39: 59.54 | AM39: 59.67 | AN39: 59.79 | AO39: 59.91 | AP39: 60.03 | AQ39: 60.14 | AR39: 60.25 | AS39: 60.35 | AT39: 60.45 | AU39: 60.55 | AV39: 60.65 | AW39: 60.74 | AX39: 60.83 | AY39: 60.91 | AZ39: 60.99 | BA39: 61.06 | BB39: 61.14 | BC39: 61.2 | BD39: 61.27 | BE39: 61.33 | BF39: 61.38 | BG39: 61.43 | BH39: 61.48 | BI39: 61.53 | BJ39: 61.57 | BK39: 61.61 | BL39: 61.64 | BM39: 61.68 | BN39: 61.71 | BO39: 61.73 | BP39: 61.76 | BQ39: 61.78 | BR39: 61.81 | BS39: 61.83 | BT39: 61.85 | BU39: 61.86 | BV39: 61.88 | BW39: 61.89 | BX39: 61.91 | BY39: 61.92 | BZ39: 61.93 | CA39: 61.94 | CB39: 61.95 | CC39: 61.96 | CD39: 61.96 | CE39: 61.97
A40: 49 | B40: 53.86 | C40: 54.03 | D40: 54.2 | E40: 54.37 | F40: 54.54 | G40: 54.71 | H40: 54.89 | I40: 55.06 | J40: 55.24 | K40: 55.42 | L40: 55.59 | M40: 55.77 | N40: 55.95 | O40: 56.13 | P40: 56.31 | Q40: 56.5 | R40: 56.68 | S40: 56.86 | T40: 57.04 | U40: 57.23 | V40: 57.41 | W40: 57.59 | X40: 57.77 | Y40: 57.94 | Z40: 58.12 | AA40: 58.3 | AB40: 58.47 | AC40: 58.64 | AD40: 58.81 | AE40: 58.98 | AF40: 59.14 | AG40: 59.3 | AH40: 59.46 | AI40: 59.61 | AJ40: 59.76 | AK40: 59.9 | AL40: 60.04 | AM40: 60.18 | AN40: 60.31 | AO40: 60.44 | AP40: 60.57 | AQ40: 60.69 | AR40: 60.81 | AS40: 60.92 | AT40: 61.03 | AU40: 61.14 | AV40: 61.25 | AW40: 61.35 | AX40: 61.44 | AY40: 61.53 | AZ40: 61.62 | BA40: 61.71 | BB40: 61.78 | BC40: 61.86 | BD40: 61.93 | BE40: 62 | BF40: 62.06 | BG40: 62.11 | BH40: 62.17 | BI40: 62.22 | BJ40: 62.26 | BK40: 62.31 | BL40: 62.35 | BM40: 62.38 | BN40: 62.42 | BO40: 62.45 | BP40: 62.48 | BQ40: 62.51 | BR40: 62.53 | BS40: 62.55 | BT40: 62.57 | BU40: 62.59 | BV40: 62.61 | BW40: 62.63 | BX40: 62.64 | BY40: 62.65 | BZ40: 62.67 | CA40: 62.68 | CB40: 62.69 | CC40: 62.7 | CD40: 62.7 | CE40: 62.71
A41: 50 | B41: 54.13 | C41: 54.3 | D41: 54.47 | E41: 54.65 | F41: 54.82 | G41: 55 | H41: 55.17 | I41: 55.35 | J41: 55.53 | K41: 55.71 | L41: 55.9 | M41: 56.08 | N41: 56.26 | O41: 56.45 | P41: 56.64 | Q41: 56.82 | R41: 57.01 | S41: 57.2 | T41: 57.39 | U41: 57.58 | V41: 57.77 | W41: 57.96 | X41: 58.14 | Y41: 58.33 | Z41: 58.52 | AA41: 58.7 | AB41: 58.88 | AC41: 59.06 | AD41: 59.24 | AE41: 59.42 | AF41: 59.59 | AG41: 59.76 | AH41: 59.93 | AI41: 60.09 | AJ41: 60.25 | AK41: 60.41 | AL41: 60.56 | AM41: 60.71 | AN41: 60.85 | AO41: 60.99 | AP41: 61.13 | AQ41: 61.26 | AR41: 61.39 | AS41: 61.51 | AT41: 61.63 | AU41: 61.75 | AV41: 61.86 | AW41: 61.98 | AX41: 62.08 | AY41: 62.18 | AZ41: 62.28 | BA41: 62.37 | BB41: 62.46 | BC41: 62.54 | BD41: 62.62 | BE41: 62.69 | BF41: 62.76 | BG41: 62.82 | BH41: 62.88 | BI41: 62.94 | BJ41: 62.99 | BK41: 63.04 | BL41: 63.08 | BM41: 63.12 | BN41: 63.16 | BO41: 63.2 | BP41: 63.23 | BQ41: 63.26 | BR41: 63.29 | BS41: 63.31 | BT41: 63.33 | BU41: 63.36 | BV41: 63.37 | BW41: 63.39 | BX41: 63.41 | BY41: 63.42 | BZ41: 63.44 | CA41: 63.45 | CB41: 63.46 | CC41: 63.47 | CD41: 63.48 | CE41: 63.49
A42: 51 | B42: 54.41 | C42: 54.58 | D42: 54.75 | E42: 54.93 | F42: 55.11 | G42: 55.29 | H42: 55.47 | I42: 55.65 | J42: 55.83 | K42: 56.02 | L42: 56.21 | M42: 56.39 | N42: 56.58 | O42: 56.78 | P42: 56.97 | Q42: 57.16 | R42: 57.36 | S42: 57.55 | T42: 57.75 | U42: 57.94 | V42: 58.14 | W42: 58.33 | X42: 58.53 | Y42: 58.72 | Z42: 58.92 | AA42: 59.11 | AB42: 59.3 | AC42: 59.49 | AD42: 59.68 | AE42: 59.87 | AF42: 60.05 | AG42: 60.23 | AH42: 60.41 | AI42: 60.59 | AJ42: 60.76 | AK42: 60.92 | AL42: 61.09 | AM42: 61.25 | AN42: 61.4 | AO42: 61.55 | AP42: 61.7 | AQ42: 61.84 | AR42: 61.98 | AS42: 62.12 | AT42: 62.25 | AU42: 62.38 | AV42: 62.51 | AW42: 62.63 | AX42: 62.74 | AY42: 62.85 | AZ42: 62.96 | BA42: 63.06 | BB42: 63.16 | BC42: 63.25 | BD42: 63.34 | BE42: 63.42 | BF42: 63.49 | BG42: 63.56 | BH42: 63.63 | BI42: 63.69 | BJ42: 63.75 | BK42: 63.8 | BL42: 63.85 | BM42: 63.9 | BN42: 63.94 | BO42: 63.98 | BP42: 64.01 | BQ42: 64.05 | BR42: 64.08 | BS42: 64.1 | BT42: 64.13 | BU42: 64.15 | BV42: 64.18 | BW42: 64.2 | BX42: 64.21 | BY42: 64.23 | BZ42: 64.25 | CA42: 64.26 | CB42: 64.27 | CC42: 64.29 | CD42: 64.3 | CE42: 64.31
A43: 52 | B43: 54.69 | C43: 54.86 | D43: 55.04 | E43: 55.22 | F43: 55.4 | G43: 55.59 | H43: 55.77 | I43: 55.96 | J43: 56.14 | K43: 56.33 | L43: 56.52 | M43: 56.72 | N43: 56.91 | O43: 57.11 | P43: 57.31 | Q43: 57.5 | R43: 57.7 | S43: 57.91 | T43: 58.11 | U43: 58.31 | V43: 58.52 | W43: 58.72 | X43: 58.92 | Y43: 59.13 | Z43: 59.33 | AA43: 59.53 | AB43: 59.73 | AC43: 59.93 | AD43: 60.13 | AE43: 60.33 | AF43: 60.52 | AG43: 60.71 | AH43: 60.9 | AI43: 61.09 | AJ43: 61.27 | AK43: 61.45 | AL43: 61.63 | AM43: 61.8 | AN43: 61.97 | AO43: 62.13 | AP43: 62.29 | AQ43: 62.44 | AR43: 62.6 | AS43: 62.74 | AT43: 62.89 | AU43: 63.03 | AV43: 63.17 | AW43: 63.3 | AX43: 63.43 | AY43: 63.55 | AZ43: 63.67 | BA43: 63.78 | BB43: 63.88 | BC43: 63.98 | BD43: 64.08 | BE43: 64.17 | BF43: 64.25 | BG43: 64.33 | BH43: 64.4 | BI43: 64.47 | BJ43: 64.53 | BK43: 64.59 | BL43: 64.65 | BM43: 64.7 | BN43: 64.75 | BO43: 64.79 | BP43: 64.83 | BQ43: 64.87 | BR43: 64.9 | BS43: 64.93 | BT43: 64.96 | BU43: 64.99 | BV43: 65.01 | BW43: 65.03 | BX43: 65.05 | BY43: 65.07 | BZ43: 65.09 | CA43: 65.1 | CB43: 65.12 | CC43: 65.13 | CD43: 65.14 | CE43: 65.16
A44: 53 | B44: 54.98 | C44: 55.16 | D44: 55.34 | E44: 55.52 | F44: 55.71 | G44: 55.89 | H44: 56.08 | I44: 56.27 | J44: 56.46 | K44: 56.65 | L44: 56.85 | M44: 57.05 | N44: 57.25 | O44: 57.45 | P44: 57.65 | Q44: 57.86 | R44: 58.06 | S44: 58.27 | T44: 58.48 | U44: 58.69 | V44: 58.9 | W44: 59.11 | X44: 59.32 | Y44: 59.53 | Z44: 59.75 | AA44: 59.96 | AB44: 60.17 | AC44: 60.38 | AD44: 60.59 | AE44: 60.8 | AF44: 61 | AG44: 61.2 | AH44: 61.41 | AI44: 61.6 | AJ44: 61.8 | AK44: 61.99 | AL44: 62.18 | AM44: 62.36 | AN44: 62.54 | AO44: 62.72 | AP44: 62.89 | AQ44: 63.06 | AR44: 63.22 | AS44: 63.38 | AT44: 63.54 | AU44: 63.69 | AV44: 63.84 | AW44: 63.99 | AX44: 64.13 | AY44: 64.26 | AZ44: 64.39 | BA44: 64.52 | BB44: 64.63 | BC44: 64.74 | BD44: 64.85 | BE44: 64.95 | BF44: 65.04 | BG44: 65.12 | BH44: 65.21 | BI44: 65.28 | BJ44: 65.35 | BK44: 65.42 | BL44: 65.48 | BM44: 65.53 | BN44: 65.58 | BO44: 65.63 | BP44: 65.68 | BQ44: 65.72 | BR44: 65.76 | BS44: 65.79 | BT44: 65.82 | BU44: 65.85 | BV44: 65.88 | BW44: 65.9 | BX44: 65.93 | BY44: 65.95 | BZ44: 65.97 | CA44: 65.98 | CB44: 66 | CC44: 66.01 | CD44: 66.03 | CE44: 66.04
A45: 54 | B45: 55.28 | C45: 55.46 | D45: 55.64 | E45: 55.83 | F45: 56.01 | G45: 56.2 | H45: 56.4 | I45: 56.59 | J45: 56.78 | K45: 56.98 | L45: 57.18 | M45: 57.38 | N45: 57.59 | O45: 57.79 | P45: 58 | Q45: 58.21 | R45: 58.43 | S45: 58.64 | T45: 58.86 | U45: 59.07 | V45: 59.29 | W45: 59.51 | X45: 59.73 | Y45: 59.95 | Z45: 60.17 | AA45: 60.39 | AB45: 60.61 | AC45: 60.83 | AD45: 61.05 | AE45: 61.27 | AF45: 61.49 | AG45: 61.7 | AH45: 61.92 | AI45: 62.13 | AJ45: 62.34 | AK45: 62.54 | AL45: 62.74 | AM45: 62.94 | AN45: 63.13 | AO45: 63.32 | AP45: 63.51 | AQ45: 63.69 | AR45: 63.87 | AS45: 64.04 | AT45: 64.21 | AU45: 64.38 | AV45: 64.54 | AW45: 64.7 | AX45: 64.85 | AY45: 65 | AZ45: 65.14 | BA45: 65.28 | BB45: 65.41 | BC45: 65.53 | BD45: 65.64 | BE45: 65.75 | BF45: 65.85 | BG45: 65.95 | BH45: 66.04 | BI45: 66.12 | BJ45: 66.2 | BK45: 66.27 | BL45: 66.34 | BM45: 66.4 | BN45: 66.46 | BO45: 66.51 | BP45: 66.56 | BQ45: 66.61 | BR45: 66.65 | BS45: 66.69 | BT45: 66.72 | BU45: 66.75 | BV45: 66.78 | BW45: 66.81 | BX45: 66.84 | BY45: 66.86 | BZ45: 66.88 | CA45: 66.9 | CB45: 66.92 | CC45: 66.93 | CD45: 66.95 | CE45: 66.96
A46: 55 | B46: 55.58 | C46: 55.77 | D46: 55.95 | E46: 56.14 | F46: 56.33 | G46: 56.53 | H46: 56.72 | I46: 56.92 | J46: 57.12 | K46: 57.32 | L46: 57.52 | M46: 57.73 | N46: 57.94 | O46: 58.15 | P46: 58.36 | Q46: 58.58 | R46: 58.8 | S46: 59.02 | T46: 59.24 | U46: 59.47 | V46: 59.69 | W46: 59.92 | X46: 60.15 | Y46: 60.38 | Z46: 60.61 | AA46: 60.84 | AB46: 61.07 | AC46: 61.3 | AD46: 61.53 | AE46: 61.76 | AF46: 61.99 | AG46: 62.21 | AH46: 62.44 | AI46: 62.66 | AJ46: 62.88 | AK46: 63.1 | AL46: 63.32 | AM46: 63.53 | AN46: 63.73 | AO46: 63.94 | AP46: 64.14 | AQ46: 64.34 | AR46: 64.53 | AS46: 64.72 | AT46: 64.9 | AU46: 65.08 | AV46: 65.26 | AW46: 65.44 | AX46: 65.6 | AY46: 65.77 | AZ46: 65.92 | BA46: 66.07 | BB46: 66.21 | BC46: 66.34 | BD46: 66.47 | BE46: 66.59 | BF46: 66.7 | BG46: 66.81 | BH46: 66.91 | BI46: 67 | BJ46: 67.09 | BK46: 67.16 | BL46: 67.24 | BM46: 67.31 | BN46: 67.37 | BO46: 67.43 | BP46: 67.48 | BQ46: 67.53 | BR46: 67.58 | BS46: 67.62 | BT46: 67.66 | BU46: 67.7 | BV46: 67.73 | BW46: 67.76 | BX46: 67.79 | BY46: 67.81 | BZ46: 67.84 | CA46: 67.86 | CB46: 67.88 | CC46: 67.9 | CD46: 67.91 | CE46: 67.93
A47: 56 | B47: 55.9 | C47: 56.09 | D47: 56.28 | E47: 56.47 | F47: 56.66 | G47: 56.86 | H47: 57.06 | I47: 57.26 | J47: 57.46 | K47: 57.67 | L47: 57.88 | M47: 58.09 | N47: 58.3 | O47: 58.52 | P47: 58.74 | Q47: 58.96 | R47: 59.18 | S47: 59.41 | T47: 59.64 | U47: 59.87 | V47: 60.1 | W47: 60.34 | X47: 60.58 | Y47: 60.81 | Z47: 61.05 | AA47: 61.29 | AB47: 61.53 | AC47: 61.78 | AD47: 62.02 | AE47: 62.26 | AF47: 62.5 | AG47: 62.74 | AH47: 62.98 | AI47: 63.21 | AJ47: 63.45 | AK47: 63.68 | AL47: 63.91 | AM47: 64.13 | AN47: 64.35 | AO47: 64.57 | AP47: 64.79 | AQ47: 65 | AR47: 65.21 | AS47: 65.41 | AT47: 65.61 | AU47: 65.81 | AV47: 66.01 | AW47: 66.19 | AX47: 66.38 | AY47: 66.56 | AZ47: 66.73 | BA47: 66.89 | BB47: 67.04 | BC47: 67.19 | BD47: 67.33 | BE47: 67.46 | BF47: 67.59 | BG47: 67.7 | BH47: 67.81 | BI47: 67.91 | BJ47: 68.01 | BK47: 68.1 | BL47: 68.18 | BM47: 68.26 | BN47: 68.33 | BO47: 68.39 | BP47: 68.45 | BQ47: 68.51 | BR47: 68.56 | BS47: 68.6 | BT47: 68.65 | BU47: 68.69 | BV47: 68.72 | BW47: 68.76 | BX47: 68.79 | BY47: 68.82 | BZ47: 68.84 | CA47: 68.87 | CB47: 68.89 | CC47: 68.91 | CD47: 68.93 | CE47: 68.94
A48: 57 | B48: 56.22 | C48: 56.42 | D48: 56.61 | E48: 56.8 | F48: 57 | G48: 57.2 | H48: 57.4 | I48: 57.61 | J48: 57.82 | K48: 58.03 | L48: 58.24 | M48: 58.45 | N48: 58.67 | O48: 58.9 | P48: 59.12 | Q48: 59.35 | R48: 59.58 | S48: 59.81 | T48: 60.05 | U48: 60.29 | V48: 60.53 | W48: 60.77 | X48: 61.02 | Y48: 61.26 | Z48: 61.51 | AA48: 61.76 | AB48: 62.01 | AC48: 62.26 | AD48: 62.52 | AE48: 62.77 | AF48: 63.02 | AG48: 63.28 | AH48: 63.53 | AI48: 63.78 | AJ48: 64.03 | AK48: 64.27 | AL48: 64.51 | AM48: 64.75 | AN48: 64.99 | AO48: 65.23 | AP48: 65.46 | AQ48: 65.69 | AR48: 65.91 | AS48: 66.13 | AT48: 66.35 | AU48: 66.56 | AV48: 66.78 | AW48: 66.98 | AX48: 67.18 | AY48: 67.38 | AZ48: 67.56 | BA48: 67.74 | BB48: 67.91 | BC48: 68.08 | BD48: 68.23 | BE48: 68.38 | BF48: 68.51 | BG48: 68.64 | BH48: 68.76 | BI48: 68.87 | BJ48: 68.98 | BK48: 69.08 | BL48: 69.17 | BM48: 69.25 | BN48: 69.33 | BO48: 69.4 | BP48: 69.47 | BQ48: 69.53 | BR48: 69.59 | BS48: 69.64 | BT48: 69.69 | BU48: 69.73 | BV48: 69.77 | BW48: 69.81 | BX48: 69.84 | BY48: 69.87 | BZ48: 69.9 | CA48: 69.93 | CB48: 69.95 | CC48: 69.97 | CD48: 69.99 | CE48: 70.01
A49: 58 | B49: 56.57 | C49: 56.76 | D49: 56.96 | E49: 57.15 | F49: 57.35 | G49: 57.56 | H49: 57.76 | I49: 57.97 | J49: 58.18 | K49: 58.4 | L49: 58.62 | M49: 58.84 | N49: 59.06 | O49: 59.29 | P49: 59.52 | Q49: 59.75 | R49: 59.99 | S49: 60.23 | T49: 60.47 | U49: 60.72 | V49: 60.97 | W49: 61.22 | X49: 61.47 | Y49: 61.73 | Z49: 61.99 | AA49: 62.25 | AB49: 62.51 | AC49: 62.77 | AD49: 63.03 | AE49: 63.3 | AF49: 63.56 | AG49: 63.83 | AH49: 64.09 | AI49: 64.36 | AJ49: 64.62 | AK49: 64.88 | AL49: 65.14 | AM49: 65.4 | AN49: 65.65 | AO49: 65.9 | AP49: 66.15 | AQ49: 66.4 | AR49: 66.64 | AS49: 66.88 | AT49: 67.11 | AU49: 67.35 | AV49: 67.58 | AW49: 67.8 | AX49: 68.02 | AY49: 68.23 | AZ49: 68.44 | BA49: 68.63 | BB49: 68.82 | BC49: 69 | BD49: 69.17 | BE49: 69.33 | BF49: 69.48 | BG49: 69.62 | BH49: 69.76 | BI49: 69.88 | BJ49: 70 | BK49: 70.11 | BL49: 70.21 | BM49: 70.3 | BN49: 70.39 | BO49: 70.47 | BP49: 70.54 | BQ49: 70.61 | BR49: 70.67 | BS49: 70.73 | BT49: 70.78 | BU49: 70.83 | BV49: 70.87 | BW49: 70.92 | BX49: 70.95 | BY49: 70.99 | BZ49: 71.02 | CA49: 71.05 | CB49: 71.08 | CC49: 71.1 | CD49: 71.12 | CE49: 71.14
A50: 59 | B50: 56.92 | C50: 57.12 | D50: 57.32 | E50: 57.52 | F50: 57.72 | G50: 57.93 | H50: 58.14 | I50: 58.35 | J50: 58.57 | K50: 58.78 | L50: 59.01 | M50: 59.23 | N50: 59.46 | O50: 59.69 | P50: 59.93 | Q50: 60.17 | R50: 60.41 | S50: 60.66 | T50: 60.91 | U50: 61.16 | V50: 61.42 | W50: 61.68 | X50: 61.94 | Y50: 62.21 | Z50: 62.47 | AA50: 62.74 | AB50: 63.02 | AC50: 63.29 | AD50: 63.57 | AE50: 63.84 | AF50: 64.12 | AG50: 64.4 | AH50: 64.68 | AI50: 64.96 | AJ50: 65.24 | AK50: 65.51 | AL50: 65.79 | AM50: 66.06 | AN50: 66.33 | AO50: 66.6 | AP50: 66.86 | AQ50: 67.13 | AR50: 67.39 | AS50: 67.65 | AT50: 67.9 | AU50: 68.16 | AV50: 68.41 | AW50: 68.65 | AX50: 68.89 | AY50: 69.12 | AZ50: 69.35 | BA50: 69.56 | BB50: 69.77 | BC50: 69.97 | BD50: 70.15 | BE50: 70.33 | BF50: 70.5 | BG50: 70.65 | BH50: 70.8 | BI50: 70.94 | BJ50: 71.07 | BK50: 71.19 | BL50: 71.3 | BM50: 71.41 | BN50: 71.5 | BO50: 71.59 | BP50: 71.67 | BQ50: 71.75 | BR50: 71.82 | BS50: 71.88 | BT50: 71.94 | BU50: 71.99 | BV50: 72.04 | BW50: 72.09 | BX50: 72.13 | BY50: 72.17 | BZ50: 72.21 | CA50: 72.24 | CB50: 72.27 | CC50: 72.29 | CD50: 72.32 | CE50: 72.34
A51: 60 | B51: 57.29 | C51: 57.49 | D51: 57.69 | E51: 57.9 | F51: 58.1 | G51: 58.31 | H51: 58.53 | I51: 58.74 | J51: 58.96 | K51: 59.19 | L51: 59.41 | M51: 59.64 | N51: 59.88 | O51: 60.11 | P51: 60.36 | Q51: 60.6 | R51: 60.85 | S51: 61.11 | T51: 61.36 | U51: 61.62 | V51: 61.89 | W51: 62.16 | X51: 62.43 | Y51: 62.7 | Z51: 62.98 | AA51: 63.26 | AB51: 63.54 | AC51: 63.83 | AD51: 64.12 | AE51: 64.41 | AF51: 64.7 | AG51: 64.99 | AH51: 65.28 | AI51: 65.58 | AJ51: 65.87 | AK51: 66.16 | AL51: 66.45 | AM51: 66.74 | AN51: 67.03 | AO51: 67.32 | AP51: 67.6 | AQ51: 67.89 | AR51: 68.17 | AS51: 68.45 | AT51: 68.72 | AU51: 69 | AV51: 69.27 | AW51: 69.53 | AX51: 69.8 | AY51: 70.05 | AZ51: 70.3 | BA51: 70.53 | BB51: 70.76 | BC51: 70.98 | BD51: 71.18 | BE51: 71.38 | BF51: 71.56 | BG51: 71.74 | BH51: 71.9 | BI51: 72.06 | BJ51: 72.2 | BK51: 72.33 | BL51: 72.46 | BM51: 72.57 | BN51: 72.68 | BO51: 72.78 | BP51: 72.87 | BQ51: 72.95 | BR51: 73.03 | BS51: 73.1 | BT51: 73.17 | BU51: 73.23 | BV51: 73.28 | BW51: 73.34 | BX51: 73.38 | BY51: 73.42 | BZ51: 73.46 | CA51: 73.5 | CB51: 73.53 | CC51: 73.56 | CD51: 73.59 | CE51: 73.62
A52: 61 | B52: 57.67 | C52: 57.87 | D52: 58.08 | E52: 58.29 | F52: 58.5 | G52: 58.71 | H52: 58.93 | I52: 59.15 | J52: 59.38 | K52: 59.6 | L52: 59.84 | M52: 60.07 | N52: 60.31 | O52: 60.55 | P52: 60.8 | Q52: 61.05 | R52: 61.31 | S52: 61.57 | T52: 61.83 | U52: 62.1 | V52: 62.38 | W52: 62.65 | X52: 62.93 | Y52: 63.22 | Z52: 63.5 | AA52: 63.79 | AB52: 64.09 | AC52: 64.39 | AD52: 64.69 | AE52: 64.99 | AF52: 65.29 | AG52: 65.6 | AH52: 65.91 | AI52: 66.22 | AJ52: 66.53 | AK52: 66.84 | AL52: 67.15 | AM52: 67.45 | AN52: 67.76 | AO52: 68.07 | AP52: 68.37 | AQ52: 68.67 | AR52: 68.97 | AS52: 69.27 | AT52: 69.57 | AU52: 69.87 | AV52: 70.16 | AW52: 70.46 | AX52: 70.74 | AY52: 71.02 | AZ52: 71.29 | BA52: 71.55 | BB52: 71.8 | BC52: 72.04 | BD52: 72.26 | BE52: 72.48 | BF52: 72.68 | BG52: 72.88 | BH52: 73.06 | BI52: 73.23 | BJ52: 73.39 | BK52: 73.54 | BL52: 73.68 | BM52: 73.81 | BN52: 73.93 | BO52: 74.04 | BP52: 74.14 | BQ52: 74.23 | BR52: 74.32 | BS52: 74.4 | BT52: 74.47 | BU52: 74.54 | BV52: 74.6 | BW52: 74.66 | BX52: 74.71 | BY52: 74.76 | BZ52: 74.8 | CA52: 74.84 | CB52: 74.88 | CC52: 74.91 | CD52: 74.94 | CE52: 74.97
A53: 62 | B53: 58.08 | C53: 58.29 | D53: 58.5 | E53: 58.71 | F53: 58.92 | G53: 59.14 | H53: 59.36 | I53: 59.59 | J53: 59.82 | K53: 60.05 | L53: 60.28 | M53: 60.52 | N53: 60.77 | O53: 61.02 | P53: 61.27 | Q53: 61.53 | R53: 61.79 | S53: 62.06 | T53: 62.33 | U53: 62.61 | V53: 62.89 | W53: 63.18 | X53: 63.47 | Y53: 63.76 | Z53: 64.06 | AA53: 64.36 | AB53: 64.66 | AC53: 64.97 | AD53: 65.29 | AE53: 65.6 | AF53: 65.92 | AG53: 66.24 | AH53: 66.57 | AI53: 66.89 | AJ53: 67.22 | AK53: 67.55 | AL53: 67.87 | AM53: 68.2 | AN53: 68.52 | AO53: 68.85 | AP53: 69.18 | AQ53: 69.5 | AR53: 69.82 | AS53: 70.15 | AT53: 70.47 | AU53: 70.79 | AV53: 71.11 | AW53: 71.43 | AX53: 71.74 | AY53: 72.04 | AZ53: 72.34 | BA53: 72.62 | BB53: 72.9 | BC53: 73.16 | BD53: 73.41 | BE53: 73.65 | BF53: 73.88 | BG53: 74.1 | BH53: 74.3 | BI53: 74.49 | BJ53: 74.67 | BK53: 74.83 | BL53: 74.99 | BM53: 75.13 | BN53: 75.27 | BO53: 75.39 | BP53: 75.51 | BQ53: 75.61 | BR53: 75.71 | BS53: 75.8 | BT53: 75.88 | BU53: 75.96 | BV53: 76.03 | BW53: 76.09 | BX53: 76.15 | BY53: 76.2 | BZ53: 76.25 | CA53: 76.3 | CB53: 76.34 | CC53: 76.38 | CD53: 76.41 | CE53: 76.44
A54: 63 | B54: 58.52 | C54: 58.73 | D54: 58.94 | E54: 59.16 | F54: 59.38 | G54: 59.6 | H54: 59.82 | I54: 60.05 | J54: 60.29 | K54: 60.52 | L54: 60.77 | M54: 61.01 | N54: 61.26 | O54: 61.52 | P54: 61.78 | Q54: 62.04 | R54: 62.31 | S54: 62.59 | T54: 62.87 | U54: 63.15 | V54: 63.44 | W54: 63.74 | X54: 64.03 | Y54: 64.34 | Z54: 64.65 | AA54: 64.96 | AB54: 65.28 | AC54: 65.6 | AD54: 65.93 | AE54: 66.26 | AF54: 66.59 | AG54: 66.93 | AH54: 67.27 | AI54: 67.61 | AJ54: 67.95 | AK54: 68.3 | AL54: 68.64 | AM54: 68.99 | AN54: 69.34 | AO54: 69.68 | AP54: 70.03 | AQ54: 70.38 | AR54: 70.73 | AS54: 71.08 | AT54: 71.42 | AU54: 71.77 | AV54: 72.12 | AW54: 72.47 | AX54: 72.8 | AY54: 73.14 | AZ54: 73.46 | BA54: 73.78 | BB54: 74.08 | BC54: 74.37 | BD54: 74.65 | BE54: 74.92 | BF54: 75.17 | BG54: 75.41 | BH54: 75.63 | BI54: 75.85 | BJ54: 76.05 | BK54: 76.23 | BL54: 76.41 | BM54: 76.57 | BN54: 76.72 | BO54: 76.86 | BP54: 76.99 | BQ54: 77.11 | BR54: 77.22 | BS54: 77.33 | BT54: 77.42 | BU54: 77.51 | BV54: 77.59 | BW54: 77.66 | BX54: 77.73 | BY54: 77.79 | BZ54: 77.84 | CA54: 77.89 | CB54: 77.94 | CC54: 77.98 | CD54: 78.02 | CE54: 78.06
A55: 64 | B55: 58.98 | C55: 59.2 | D55: 59.42 | E55: 59.64 | F55: 59.86 | G55: 60.09 | H55: 60.32 | I55: 60.55 | J55: 60.79 | K55: 61.03 | L55: 61.28 | M55: 61.53 | N55: 61.79 | O55: 62.05 | P55: 62.31 | Q55: 62.59 | R55: 62.86 | S55: 63.15 | T55: 63.43 | U55: 63.73 | V55: 64.03 | W55: 64.33 | X55: 64.64 | Y55: 64.95 | Z55: 65.27 | AA55: 65.6 | AB55: 65.93 | AC55: 66.26 | AD55: 66.6 | AE55: 66.95 | AF55: 67.3 | AG55: 67.65 | AH55: 68.01 | AI55: 68.37 | AJ55: 68.73 | AK55: 69.09 | AL55: 69.46 | AM55: 69.83 | AN55: 70.2 | AO55: 70.57 | AP55: 70.94 | AQ55: 71.31 | AR55: 71.68 | AS55: 72.06 | AT55: 72.43 | AU55: 72.81 | AV55: 73.19 | AW55: 73.56 | AX55: 73.93 | AY55: 74.3 | AZ55: 74.65 | BA55: 75 | BB55: 75.33 | BC55: 75.66 | BD55: 75.97 | BE55: 76.26 | BF55: 76.54 | BG55: 76.81 | BH55: 77.07 | BI55: 77.3 | BJ55: 77.53 | BK55: 77.74 | BL55: 77.94 | BM55: 78.12 | BN55: 78.29 | BO55: 78.45 | BP55: 78.6 | BQ55: 78.74 | BR55: 78.86 | BS55: 78.98 | BT55: 79.09 | BU55: 79.18 | BV55: 79.28 | BW55: 79.36 | BX55: 79.44 | BY55: 79.51 | BZ55: 79.57 | CA55: 79.63 | CB55: 79.68 | CC55: 79.73 | CD55: 79.78 | CE55: 79.82
A56: 65 | B56: 59.48 | C56: 59.7 | D56: 59.92 | E56: 60.14 | F56: 60.37 | G56: 60.6 | H56: 60.84 | I56: 61.08 | J56: 61.32 | K56: 61.57 | L56: 61.82 | M56: 62.08 | N56: 62.34 | O56: 62.61 | P56: 62.88 | Q56: 63.16 | R56: 63.44 | S56: 63.73 | T56: 64.03 | U56: 64.33 | V56: 64.64 | W56: 64.95 | X56: 65.27 | Y56: 65.6 | Z56: 65.93 | AA56: 66.27 | AB56: 66.61 | AC56: 66.96 | AD56: 67.31 | AE56: 67.67 | AF56: 68.04 | AG56: 68.41 | AH56: 68.78 | AI56: 69.16 | AJ56: 69.54 | AK56: 69.93 | AL56: 70.31 | AM56: 70.7 | AN56: 71.09 | AO56: 71.49 | AP56: 71.89 | AQ56: 72.29 | AR56: 72.69 | AS56: 73.09 | AT56: 73.49 | AU56: 73.9 | AV56: 74.31 | AW56: 74.72 | AX56: 75.12 | AY56: 75.52 | AZ56: 75.91 | BA56: 76.29 | BB56: 76.66 | BC56: 77.02 | BD56: 77.36 | BE56: 77.69 | BF56: 78.01 | BG56: 78.31 | BH56: 78.59 | BI56: 78.86 | BJ56: 79.11 | BK56: 79.35 | BL56: 79.57 | BM56: 79.78 | BN56: 79.97 | BO56: 80.15 | BP56: 80.32 | BQ56: 80.48 | BR56: 80.62 | BS56: 80.76 | BT56: 80.88 | BU56: 80.99 | BV56: 81.1 | BW56: 81.19 | BX56: 81.28 | BY56: 81.36 | BZ56: 81.44 | CA56: 81.51 | CB56: 81.57 | CC56: 81.63 | CD56: 81.68 | CE56: 81.73
A57: 66 | B57: 59.99 | C57: 60.22 | D57: 60.44 | E57: 60.67 | F57: 60.9 | G57: 61.14 | H57: 61.38 | I57: 61.63 | J57: 61.87 | K57: 62.13 | L57: 62.39 | M57: 62.65 | N57: 62.92 | O57: 63.19 | P57: 63.47 | Q57: 63.76 | R57: 64.05 | S57: 64.35 | T57: 64.66 | U57: 64.97 | V57: 65.28 | W57: 65.61 | X57: 65.94 | Y57: 66.28 | Z57: 66.62 | AA57: 66.97 | AB57: 67.32 | AC57: 67.69 | AD57: 68.06 | AE57: 68.43 | AF57: 68.81 | AG57: 69.2 | AH57: 69.59 | AI57: 69.99 | AJ57: 70.39 | AK57: 70.8 | AL57: 71.21 | AM57: 71.62 | AN57: 72.03 | AO57: 72.45 | AP57: 72.88 | AQ57: 73.3 | AR57: 73.73 | AS57: 74.16 | AT57: 74.6 | AU57: 75.04 | AV57: 75.49 | AW57: 75.93 | AX57: 76.37 | AY57: 76.81 | AZ57: 77.23 | BA57: 77.65 | BB57: 78.06 | BC57: 78.45 | BD57: 78.84 | BE57: 79.2 | BF57: 79.55 | BG57: 79.89 | BH57: 80.2 | BI57: 80.5 | BJ57: 80.79 | BK57: 81.06 | BL57: 81.31 | BM57: 81.54 | BN57: 81.76 | BO57: 81.97 | BP57: 82.16 | BQ57: 82.34 | BR57: 82.5 | BS57: 82.66 | BT57: 82.8 | BU57: 82.93 | BV57: 83.05 | BW57: 83.16 | BX57: 83.26 | BY57: 83.36 | BZ57: 83.44 | CA57: 83.52 | CB57: 83.59 | CC57: 83.66 | CD57: 83.72 | CE57: 83.78
A58: 67 | B58: 60.53 | C58: 60.76 | D58: 60.99 | E58: 61.22 | F58: 61.46 | G58: 61.7 | H58: 61.95 | I58: 62.2 | J58: 62.45 | K58: 62.71 | L58: 62.98 | M58: 63.24 | N58: 63.52 | O58: 63.8 | P58: 64.09 | Q58: 64.38 | R58: 64.68 | S58: 64.99 | T58: 65.31 | U58: 65.63 | V58: 65.95 | W58: 66.29 | X58: 66.63 | Y58: 66.98 | Z58: 67.33 | AA58: 67.7 | AB58: 68.07 | AC58: 68.44 | AD58: 68.83 | AE58: 69.22 | AF58: 69.62 | AG58: 70.02 | AH58: 70.43 | AI58: 70.85 | AJ58: 71.27 | AK58: 71.7 | AL58: 72.13 | AM58: 72.57 | AN58: 73.01 | AO58: 73.45 | AP58: 73.9 | AQ58: 74.36 | AR58: 74.82 | AS58: 75.28 | AT58: 75.75 | AU58: 76.22 | AV58: 76.71 | AW58: 77.19 | AX58: 77.67 | AY58: 78.14 | AZ58: 78.61 | BA58: 79.07 | BB58: 79.52 | BC58: 79.96 | BD58: 80.38 | BE58: 80.78 | BF58: 81.17 | BG58: 81.55 | BH58: 81.9 | BI58: 82.24 | BJ58: 82.56 | BK58: 82.86 | BL58: 83.14 | BM58: 83.41 | BN58: 83.66 | BO58: 83.9 | BP58: 84.11 | BQ58: 84.32 | BR58: 84.51 | BS58: 84.68 | BT58: 84.84 | BU58: 84.99 | BV58: 85.13 | BW58: 85.26 | BX58: 85.38 | BY58: 85.49 | BZ58: 85.59 | CA58: 85.68 | CB58: 85.76 | CC58: 85.84 | CD58: 85.91 | CE58: 85.98
A59: 68 | B59: 61.09 | C59: 61.32 | D59: 61.56 | E59: 61.8 | F59: 62.04 | G59: 62.29 | H59: 62.54 | I59: 62.79 | J59: 63.05 | K59: 63.32 | L59: 63.59 | M59: 63.86 | N59: 64.14 | O59: 64.43 | P59: 64.73 | Q59: 65.03 | R59: 65.34 | S59: 65.66 | T59: 65.98 | U59: 66.31 | V59: 66.65 | W59: 66.99 | X59: 67.35 | Y59: 67.71 | Z59: 68.07 | AA59: 68.45 | AB59: 68.83 | AC59: 69.22 | AD59: 69.62 | AE59: 70.03 | AF59: 70.45 | AG59: 70.87 | AH59: 71.3 | AI59: 71.74 | AJ59: 72.18 | AK59: 72.63 | AL59: 73.08 | AM59: 73.54 | AN59: 74.01 | AO59: 74.48 | AP59: 74.96 | AQ59: 75.45 | AR59: 75.94 | AS59: 76.43 | AT59: 76.94 | AU59: 77.45 | AV59: 77.97 | AW59: 78.49 | AX59: 79.01 | AY59: 79.53 | AZ59: 80.05 | BA59: 80.55 | BB59: 81.04 | BC59: 81.52 | BD59: 81.99 | BE59: 82.44 | BF59: 82.87 | BG59: 83.29 | BH59: 83.68 | BI59: 84.06 | BJ59: 84.42 | BK59: 84.76 | BL59: 85.08 | BM59: 85.38 | BN59: 85.67 | BO59: 85.93 | BP59: 86.18 | BQ59: 86.41 | BR59: 86.63 | BS59: 86.83 | BT59: 87.01 | BU59: 87.19 | BV59: 87.35 | BW59: 87.5 | BX59: 87.63 | BY59: 87.76 | BZ59: 87.87 | CA59: 87.98 | CB59: 88.08 | CC59: 88.17 | CD59: 88.25 | CE59: 88.33
A60: 69 | B60: 61.67 | C60: 61.9 | D60: 62.14 | E60: 62.39 | F60: 62.63 | G60: 62.89 | H60: 63.14 | I60: 63.4 | J60: 63.67 | K60: 63.94 | L60: 64.22 | M60: 64.5 | N60: 64.79 | O60: 65.08 | P60: 65.39 | Q60: 65.7 | R60: 66.01 | S60: 66.34 | T60: 66.67 | U60: 67.01 | V60: 67.36 | W60: 67.72 | X60: 68.08 | Y60: 68.45 | Z60: 68.83 | AA60: 69.22 | AB60: 69.62 | AC60: 70.03 | AD60: 70.44 | AE60: 70.87 | AF60: 71.3 | AG60: 71.74 | AH60: 72.19 | AI60: 72.65 | AJ60: 73.12 | AK60: 73.59 | AL60: 74.07 | AM60: 74.55 | AN60: 75.04 | AO60: 75.54 | AP60: 76.05 | AQ60: 76.57 | AR60: 77.09 | AS60: 77.62 | AT60: 78.16 | AU60: 78.71 | AV60: 79.27 | AW60: 79.84 | AX60: 80.41 | AY60: 80.97 | AZ60: 81.53 | BA60: 82.08 | BB60: 82.62 | BC60: 83.15 | BD60: 83.66 | BE60: 84.16 | BF60: 84.64 | BG60: 85.1 | BH60: 85.54 | BI60: 85.96 | BJ60: 86.37 | BK60: 86.75 | BL60: 87.11 | BM60: 87.45 | BN60: 87.77 | BO60: 88.07 | BP60: 88.35 | BQ60: 88.62 | BR60: 88.87 | BS60: 89.09 | BT60: 89.31 | BU60: 89.51 | BV60: 89.69 | BW60: 89.86 | BX60: 90.02 | BY60: 90.16 | BZ60: 90.3 | CA60: 90.42 | CB60: 90.54 | CC60: 90.64 | CD60: 90.74 | CE60: 90.83
A61: 70 | B61: 62.26 | C61: 62.5 | D61: 62.74 | E61: 62.99 | F61: 63.25 | G61: 63.5 | H61: 63.76 | I61: 64.03 | J61: 64.3 | K61: 64.58 | L61: 64.86 | M61: 65.15 | N61: 65.45 | O61: 65.75 | P61: 66.06 | Q61: 66.38 | R61: 66.71 | S61: 67.04 | T61: 67.38 | U61: 67.73 | V61: 68.09 | W61: 68.46 | X61: 68.84 | Y61: 69.22 | Z61: 69.62 | AA61: 70.02 | AB61: 70.43 | AC61: 70.85 | AD61: 71.28 | AE61: 71.73 | AF61: 72.18 | AG61: 72.64 | AH61: 73.11 | AI61: 73.59 | AJ61: 74.08 | AK61: 74.57 | AL61: 75.07 | AM61: 75.58 | AN61: 76.1 | AO61: 76.63 | AP61: 77.17 | AQ61: 77.72 | AR61: 78.27 | AS61: 78.84 | AT61: 79.42 | AU61: 80.01 | AV61: 80.61 | AW61: 81.22 | AX61: 81.84 | AY61: 82.45 | AZ61: 83.06 | BA61: 83.66 | BB61: 84.25 | BC61: 84.83 | BD61: 85.39 | BE61: 85.94 | BF61: 86.47 | BG61: 86.99 | BH61: 87.48 | BI61: 87.95 | BJ61: 88.4 | BK61: 88.82 | BL61: 89.23 | BM61: 89.61 | BN61: 89.98 | BO61: 90.32 | BP61: 90.64 | BQ61: 90.94 | BR61: 91.22 | BS61: 91.48 | BT61: 91.72 | BU61: 91.95 | BV61: 92.16 | BW61: 92.36 | BX61: 92.54 | BY61: 92.71 | BZ61: 92.86 | CA61: 93.01 | CB61: 93.14 | CC61: 93.26 | CD61: 93.37 | CE61: 93.48
A62: 71 | B62: 62.86 | C62: 63.11 | D62: 63.36 | E62: 63.61 | F62: 63.87 | G62: 64.13 | H62: 64.4 | I62: 64.67 | J62: 64.95 | K62: 65.23 | L62: 65.52 | M62: 65.82 | N62: 66.12 | O62: 66.43 | P62: 66.75 | Q62: 67.08 | R62: 67.42 | S62: 67.76 | T62: 68.11 | U62: 68.47 | V62: 68.84 | W62: 69.22 | X62: 69.61 | Y62: 70.01 | Z62: 70.41 | AA62: 70.83 | AB62: 71.26 | AC62: 71.69 | AD62: 72.14 | AE62: 72.6 | AF62: 73.07 | AG62: 73.55 | AH62: 74.04 | AI62: 74.54 | AJ62: 75.05 | AK62: 75.57 | AL62: 76.1 | AM62: 76.64 | AN62: 77.18 | AO62: 77.74 | AP62: 78.31 | AQ62: 78.89 | AR62: 79.48 | AS62: 80.08 | AT62: 80.7 | AU62: 81.34 | AV62: 81.98 | AW62: 82.64 | AX62: 83.3 | AY62: 83.96 | AZ62: 84.62 | BA62: 85.28 | BB62: 85.93 | BC62: 86.56 | BD62: 87.18 | BE62: 87.78 | BF62: 88.37 | BG62: 88.94 | BH62: 89.48 | BI62: 90 | BJ62: 90.51 | BK62: 90.98 | BL62: 91.44 | BM62: 91.87 | BN62: 92.28 | BO62: 92.66 | BP62: 93.02 | BQ62: 93.36 | BR62: 93.68 | BS62: 93.98 | BT62: 94.26 | BU62: 94.52 | BV62: 94.76 | BW62: 94.99 | BX62: 95.19 | BY62: 95.39 | BZ62: 95.57 | CA62: 95.73 | CB62: 95.89 | CC62: 96.03 | CD62: 96.16 | CE62: 96.28
A63: 72 | B63: 63.47 | C63: 63.73 | D63: 63.98 | E63: 64.24 | F63: 64.51 | G63: 64.77 | H63: 65.05 | I63: 65.33 | J63: 65.61 | K63: 65.9 | L63: 66.2 | M63: 66.5 | N63: 66.81 | O63: 67.13 | P63: 67.46 | Q63: 67.79 | R63: 68.14 | S63: 68.49 | T63: 68.85 | U63: 69.22 | V63: 69.6 | W63: 69.99 | X63: 70.39 | Y63: 70.8 | Z63: 71.22 | AA63: 71.65 | AB63: 72.1 | AC63: 72.55 | AD63: 73.02 | AE63: 73.49 | AF63: 73.98 | AG63: 74.48 | AH63: 74.99 | AI63: 75.52 | AJ63: 76.05 | AK63: 76.59 | AL63: 77.14 | AM63: 77.71 | AN63: 78.28 | AO63: 78.87 | AP63: 79.47 | AQ63: 80.08 | AR63: 80.71 | AS63: 81.35 | AT63: 82.01 | AU63: 82.69 | AV63: 83.38 | AW63: 84.09 | AX63: 84.8 | AY63: 85.52 | AZ63: 86.23 | BA63: 86.94 | BB63: 87.64 | BC63: 88.34 | BD63: 89.02 | BE63: 89.68 | BF63: 90.32 | BG63: 90.95 | BH63: 91.55 | BI63: 92.13 | BJ63: 92.69 | BK63: 93.22 | BL63: 93.73 | BM63: 94.21 | BN63: 94.67 | BO63: 95.1 | BP63: 95.51 | BQ63: 95.9 | BR63: 96.26 | BS63: 96.6 | BT63: 96.91 | BU63: 97.21 | BV63: 97.49 | BW63: 97.74 | BX63: 97.98 | BY63: 98.21 | BZ63: 98.41 | CA63: 98.6 | CB63: 98.78 | CC63: 98.95 | CD63: 99.1 | CE63: 99.24
A64: 73 | B64: 64.1 | C64: 64.35 | D64: 64.62 | E64: 64.88 | F64: 65.15 | G64: 65.42 | H64: 65.7 | I64: 65.99 | J64: 66.28 | K64: 66.58 | L64: 66.88 | M64: 67.19 | N64: 67.51 | O64: 67.84 | P64: 68.17 | Q64: 68.51 | R64: 68.87 | S64: 69.23 | T64: 69.6 | U64: 69.98 | V64: 70.38 | W64: 70.78 | X64: 71.19 | Y64: 71.61 | Z64: 72.05 | AA64: 72.49 | AB64: 72.95 | AC64: 73.42 | AD64: 73.9 | AE64: 74.4 | AF64: 74.9 | AG64: 75.42 | AH64: 75.96 | AI64: 76.5 | AJ64: 77.06 | AK64: 77.62 | AL64: 78.2 | AM64: 78.79 | AN64: 79.4 | AO64: 80.02 | AP64: 80.65 | AQ64: 81.3 | AR64: 81.96 | AS64: 82.64 | AT64: 83.34 | AU64: 84.06 | AV64: 84.8 | AW64: 85.56 | AX64: 86.32 | AY64: 87.1 | AZ64: 87.87 | BA64: 88.64 | BB64: 89.4 | BC64: 90.16 | BD64: 90.9 | BE64: 91.62 | BF64: 92.33 | BG64: 93.02 | BH64: 93.68 | BI64: 94.33 | BJ64: 94.94 | BK64: 95.54 | BL64: 96.1 | BM64: 96.64 | BN64: 97.15 | BO64: 97.64 | BP64: 98.1 | BQ64: 98.53 | BR64: 98.94 | BS64: 99.32 | BT64: 99.68 | BU64: 100.02 | BV64: 100.34 | BW64: 100.63 | BX64: 100.9 | BY64: 101.16 | BZ64: 101.4 | CA64: 101.62 | CB64: 101.82 | CC64: 102.01 | CD64: 102.19 | CE64: 102.35
A65: 74 | B65: 64.73 | C65: 64.99 | D65: 65.26 | E65: 65.53 | F65: 65.8 | G65: 66.08 | H65: 66.37 | I65: 66.66 | J65: 66.96 | K65: 67.26 | L65: 67.57 | M65: 67.89 | N65: 68.21 | O65: 68.55 | P65: 68.89 | Q65: 69.24 | R65: 69.61 | S65: 69.98 | T65: 70.36 | U65: 70.75 | V65: 71.16 | W65: 71.57 | X65: 72 | Y65: 72.43 | Z65: 72.88 | AA65: 73.34 | AB65: 73.81 | AC65: 74.3 | AD65: 74.8 | AE65: 75.31 | AF65: 75.84 | AG65: 76.38 | AH65: 76.93 | AI65: 77.5 | AJ65: 78.08 | AK65: 78.67 | AL65: 79.27 | AM65: 79.89 | AN65: 80.52 | AO65: 81.17 | AP65: 81.84 | AQ65: 82.52 | AR65: 83.22 | AS65: 83.94 | AT65: 84.68 | AU65: 85.45 | AV65: 86.24 | AW65: 87.05 | AX65: 87.87 | AY65: 88.7 | AZ65: 89.53 | BA65: 90.37 | BB65: 91.19 | BC65: 92.01 | BD65: 92.82 | BE65: 93.61 | BF65: 94.39 | BG65: 95.14 | BH65: 95.87 | BI65: 96.58 | BJ65: 97.26 | BK65: 97.92 | BL65: 98.55 | BM65: 99.15 | BN65: 99.72 | BO65: 100.26 | BP65: 100.78 | BQ65: 101.27 | BR65: 101.73 | BS65: 102.16 | BT65: 102.57 | BU65: 102.95 | BV65: 103.31 | BW65: 103.64 | BX65: 103.95 | BY65: 104.25 | BZ65: 104.52 | CA65: 104.77 | CB65: 105 | CC65: 105.22 | CD65: 105.42 | CE65: 105.61
A66: 75 | B66: 65.36 | C66: 65.63 | D66: 65.9 | E66: 66.18 | F66: 66.46 | G66: 66.75 | H66: 67.04 | I66: 67.34 | J66: 67.64 | K66: 67.95 | L66: 68.27 | M66: 68.59 | N66: 68.93 | O66: 69.27 | P66: 69.62 | Q66: 69.98 | R66: 70.35 | S66: 70.73 | T66: 71.13 | U66: 71.53 | V66: 71.95 | W66: 72.37 | X66: 72.81 | Y66: 73.26 | Z66: 73.72 | AA66: 74.19 | AB66: 74.68 | AC66: 75.18 | AD66: 75.7 | AE66: 76.23 | AF66: 76.78 | AG66: 77.34 | AH66: 77.91 | AI66: 78.5 | AJ66: 79.11 | AK66: 79.72 | AL66: 80.35 | AM66: 81 | AN66: 81.66 | AO66: 82.34 | AP66: 83.04 | AQ66: 83.76 | AR66: 84.5 | AS66: 85.26 | AT66: 86.04 | AU66: 86.86 | AV66: 87.7 | AW66: 88.56 | AX66: 89.44 | AY66: 90.33 | AZ66: 91.22 | BA66: 92.12 | BB66: 93.02 | BC66: 93.9 | BD66: 94.78 | BE66: 95.64 | BF66: 96.49 | BG66: 97.31 | BH66: 98.11 | BI66: 98.89 | BJ66: 99.64 | BK66: 100.37 | BL66: 101.06 | BM66: 101.73 | BN66: 102.37 | BO66: 102.97 | BP66: 103.55 | BQ66: 104.1 | BR66: 104.61 | BS66: 105.1 | BT66: 105.56 | BU66: 105.99 | BV66: 106.4 | BW66: 106.78 | BX66: 107.13 | BY66: 107.46 | BZ66: 107.77 | CA66: 108.06 | CB66: 108.33 | CC66: 108.58 | CD66: 108.82 | CE66: 109.03
A67: 76 | B67: 66 | C67: 66.27 | D67: 66.55 | E67: 66.83 | F67: 67.12 | G67: 67.41 | H67: 67.71 | I67: 68.01 | J67: 68.32 | K67: 68.64 | L67: 68.97 | M67: 69.3 | N67: 69.64 | O67: 69.99 | P67: 70.35 | Q67: 70.72 | R67: 71.1 | S67: 71.49 | T67: 71.9 | U67: 72.31 | V67: 72.74 | W67: 73.18 | X67: 73.63 | Y67: 74.09 | Z67: 74.56 | AA67: 75.05 | AB67: 75.56 | AC67: 76.07 | AD67: 76.61 | AE67: 77.16 | AF67: 77.72 | AG67: 78.3 | AH67: 78.9 | AI67: 79.51 | AJ67: 80.14 | AK67: 80.78 | AL67: 81.44 | AM67: 82.11 | AN67: 82.81 | AO67: 83.52 | AP67: 84.25 | AQ67: 85 | AR67: 85.78 | AS67: 86.58 | AT67: 87.41 | AU67: 88.27 | AV67: 89.17 | AW67: 90.09 | AX67: 91.02 | AY67: 91.97 | AZ67: 92.93 | BA67: 93.9 | BB67: 94.86 | BC67: 95.82 | BD67: 96.77 | BE67: 97.7 | BF67: 98.62 | BG67: 99.52 | BH67: 100.4 | BI67: 101.25 | BJ67: 102.08 | BK67: 102.88 | BL67: 103.65 | BM67: 104.38 | BN67: 105.09 | BO67: 105.76 | BP67: 106.41 | BQ67: 107.02 | BR67: 107.6 | BS67: 108.14 | BT67: 108.66 | BU67: 109.15 | BV67: 109.6 | BW67: 110.03 | BX67: 110.44 | BY67: 110.81 | BZ67: 111.17 | CA67: 111.5 | CB67: 111.8 | CC67: 112.09 | CD67: 112.36 | CE67: 112.61
A68: 77 | B68: 66.64 | C68: 66.92 | D68: 67.2 | E68: 67.49 | F68: 67.78 | G68: 68.08 | H68: 68.39 | I68: 68.7 | J68: 69.01 | K68: 69.34 | L68: 69.67 | M68: 70.01 | N68: 70.36 | O68: 70.72 | P68: 71.08 | Q68: 71.46 | R68: 71.85 | S68: 72.26 | T68: 72.67 | U68: 73.1 | V68: 73.53 | W68: 73.98 | X68: 74.44 | Y68: 74.92 | Z68: 75.41 | AA68: 75.91 | AB68: 76.43 | AC68: 76.97 | AD68: 77.52 | AE68: 78.09 | AF68: 78.67 | AG68: 79.27 | AH68: 79.89 | AI68: 80.53 | AJ68: 81.18 | AK68: 81.85 | AL68: 82.53 | AM68: 83.23 | AN68: 83.95 | AO68: 84.7 | AP68: 85.46 | AQ68: 86.25 | AR68: 87.07 | AS68: 87.91 | AT68: 88.78 | AU68: 89.7 | AV68: 90.64 | AW68: 91.62 | AX68: 92.62 | AY68: 93.63 | AZ68: 94.66 | BA68: 95.69 | BB68: 96.73 | BC68: 97.76 | BD68: 98.78 | BE68: 99.8 | BF68: 100.79 | BG68: 101.77 | BH68: 102.73 | BI68: 103.66 | BJ68: 104.57 | BK68: 105.44 | BL68: 106.29 | BM68: 107.1 | BN68: 107.88 | BO68: 108.63 | BP68: 109.35 | BQ68: 110.03 | BR68: 110.67 | BS68: 111.28 | BT68: 111.86 | BU68: 112.41 | BV68: 112.92 | BW68: 113.41 | BX68: 113.87 | BY68: 114.29 | BZ68: 114.69 | CA68: 115.07 | CB68: 115.42 | CC68: 115.74 | CD68: 116.05 | CE68: 116.33
A69: 78 | B69: 67.28 | C69: 67.56 | D69: 67.85 | E69: 68.15 | F69: 68.44 | G69: 68.75 | H69: 69.06 | I69: 69.38 | J69: 69.7 | K69: 70.03 | L69: 70.37 | M69: 70.72 | N69: 71.07 | O69: 71.44 | P69: 71.82 | Q69: 72.21 | R69: 72.61 | S69: 73.02 | T69: 73.44 | U69: 73.88 | V69: 74.33 | W69: 74.79 | X69: 75.26 | Y69: 75.75 | Z69: 76.26 | AA69: 76.78 | AB69: 77.31 | AC69: 77.86 | AD69: 78.43 | AE69: 79.02 | AF69: 79.62 | AG69: 80.25 | AH69: 80.89 | AI69: 81.54 | AJ69: 82.22 | AK69: 82.91 | AL69: 83.62 | AM69: 84.35 | AN69: 85.1 | AO69: 85.88 | AP69: 86.68 | AQ69: 87.51 | AR69: 88.36 | AS69: 89.24 | AT69: 90.16 | AU69: 91.13 | AV69: 92.13 | AW69: 93.16 | AX69: 94.22 | AY69: 95.3 | AZ69: 96.39 | BA69: 97.5 | BB69: 98.61 | BC69: 99.72 | BD69: 100.82 | BE69: 101.91 | BF69: 102.99 | BG69: 104.05 | BH69: 105.09 | BI69: 106.11 | BJ69: 107.1 | BK69: 108.06 | BL69: 108.99 | BM69: 109.88 | BN69: 110.74 | BO69: 111.57 | BP69: 112.36 | BQ69: 113.12 | BR69: 113.83 | BS69: 114.52 | BT69: 115.16 | BU69: 115.78 | BV69: 116.36 | BW69: 116.9 | BX69: 117.41 | BY69: 117.9 | BZ69: 118.35 | CA69: 118.77 | CB69: 119.17 | CC69: 119.54 | CD69: 119.89 | CE69: 120.21
A70: 79 | B70: 67.91 | C70: 68.2 | D70: 68.5 | E70: 68.8 | F70: 69.11 | G70: 69.42 | H70: 69.73 | I70: 70.06 | J70: 70.39 | K70: 70.72 | L70: 71.07 | M70: 71.43 | N70: 71.79 | O70: 72.17 | P70: 72.55 | Q70: 72.95 | R70: 73.36 | S70: 73.78 | T70: 74.21 | U70: 74.66 | V70: 75.12 | W70: 75.6 | X70: 76.08 | Y70: 76.59 | Z70: 77.1 | AA70: 77.64 | AB70: 78.19 | AC70: 78.76 | AD70: 79.34 | AE70: 79.95 | AF70: 80.57 | AG70: 81.21 | AH70: 81.88 | AI70: 82.56 | AJ70: 83.26 | AK70: 83.98 | AL70: 84.71 | AM70: 85.47 | AN70: 86.25 | AO70: 87.06 | AP70: 87.89 | AQ70: 88.76 | AR70: 89.65 | AS70: 90.57 | AT70: 91.54 | AU70: 92.55 | AV70: 93.61 | AW70: 94.7 | AX70: 95.82 | AY70: 96.97 | AZ70: 98.14 | BA70: 99.31 | BB70: 100.5 | BC70: 101.69 | BD70: 102.87 | BE70: 104.05 | BF70: 105.21 | BG70: 106.36 | BH70: 107.49 | BI70: 108.59 | BJ70: 109.67 | BK70: 110.72 | BL70: 111.73 | BM70: 112.72 | BN70: 113.66 | BO70: 114.57 | BP70: 115.45 | BQ70: 116.28 | BR70: 117.08 | BS70: 117.84 | BT70: 118.56 | BU70: 119.24 | BV70: 119.89 | BW70: 120.5 | BX70: 121.08 | BY70: 121.62 | BZ70: 122.13 | CA70: 122.61 | CB70: 123.06 | CC70: 123.48 | CD70: 123.88 | CE70: 124.25
A71: 80 | B71: 68.55 | C71: 68.84 | D71: 69.15 | E71: 69.45 | F71: 69.76 | G71: 70.08 | H71: 70.4 | I71: 70.73 | J71: 71.07 | K71: 71.41 | L71: 71.77 | M71: 72.13 | N71: 72.5 | O71: 72.89 | P71: 73.28 | Q71: 73.69 | R71: 74.11 | S71: 74.54 | T71: 74.98 | U71: 75.44 | V71: 75.91 | W71: 76.4 | X71: 76.9 | Y71: 77.42 | Z71: 77.95 | AA71: 78.5 | AB71: 79.06 | AC71: 79.65 | AD71: 80.25 | AE71: 80.87 | AF71: 81.52 | AG71: 82.18 | AH71: 82.87 | AI71: 83.57 | AJ71: 84.29 | AK71: 85.04 | AL71: 85.8 | AM71: 86.59 | AN71: 87.4 | AO71: 88.24 | AP71: 89.11 | AQ71: 90.01 | AR71: 90.94 | AS71: 91.9 | AT71: 92.92 | AU71: 93.98 | AV71: 95.09 | AW71: 96.24 | AX71: 97.43 | AY71: 98.64 | AZ71: 99.88 | BA71: 101.13 | BB71: 102.4 | BC71: 103.67 | BD71: 104.94 | BE71: 106.2 | BF71: 107.45 | BG71: 108.69 | BH71: 109.91 | BI71: 111.11 | BJ71: 112.28 | BK71: 113.42 | BL71: 114.53 | BM71: 115.6 | BN71: 116.64 | BO71: 117.64 | BP71: 118.6 | BQ71: 119.52 | BR71: 120.4 | BS71: 121.24 | BT71: 122.05 | BU71: 122.81 | BV71: 123.53 | BW71: 124.21 | BX71: 124.86 | BY71: 125.47 | BZ71: 126.04 | CA71: 126.58 | CB71: 127.09 | CC71: 127.57 | CD71: 128.01 | CE71: 128.43
A72: 81 | B72: 69.18 | C72: 69.48 | D72: 69.79 | E72: 70.1 | F72: 70.42 | G72: 70.74 | H72: 71.07 | I72: 71.4 | J72: 71.75 | K72: 72.1 | L72: 72.46 | M72: 72.83 | N72: 73.21 | O72: 73.6 | P72: 74 | Q72: 74.42 | R72: 74.85 | S72: 75.29 | T72: 75.75 | U72: 76.21 | V72: 76.7 | W72: 77.2 | X72: 77.71 | Y72: 78.24 | Z72: 78.79 | AA72: 79.35 | AB72: 79.93 | AC72: 80.53 | AD72: 81.15 | AE72: 81.79 | AF72: 82.46 | AG72: 83.14 | AH72: 83.85 | AI72: 84.58 | AJ72: 85.32 | AK72: 86.09 | AL72: 86.88 | AM72: 87.7 | AN72: 88.54 | AO72: 89.41 | AP72: 90.31 | AQ72: 91.25 | AR72: 92.22 | AS72: 93.23 | AT72: 94.29 | AU72: 95.4 | AV72: 96.57 | AW72: 97.78 | AX72: 99.03 | AY72: 100.31 | AZ72: 101.62 | BA72: 102.95 | BB72: 104.3 | BC72: 105.65 | BD72: 107.01 | BE72: 108.36 | BF72: 109.71 | BG72: 111.04 | BH72: 112.35 | BI72: 113.64 | BJ72: 114.91 | BK72: 116.15 | BL72: 117.36 | BM72: 118.53 | BN72: 119.66 | BO72: 120.76 | BP72: 121.81 | BQ72: 122.83 | BR72: 123.8 | BS72: 124.73 | BT72: 125.62 | BU72: 126.46 | BV72: 127.26 | BW72: 128.02 | BX72: 128.75 | BY72: 129.43 | BZ72: 130.07 | CA72: 130.68 | CB72: 131.25 | CC72: 131.79 | CD72: 132.29 | CE72: 132.76
A73: 82 | B73: 69.8 | C73: 70.11 | D73: 70.42 | E73: 70.74 | F73: 71.06 | G73: 71.39 | H73: 71.73 | I73: 72.07 | J73: 72.42 | K73: 72.78 | L73: 73.15 | M73: 73.52 | N73: 73.91 | O73: 74.31 | P73: 74.72 | Q73: 75.15 | R73: 75.59 | S73: 76.04 | T73: 76.5 | U73: 76.98 | V73: 77.48 | W73: 77.99 | X73: 78.51 | Y73: 79.06 | Z73: 79.62 | AA73: 80.19 | AB73: 80.79 | AC73: 81.41 | AD73: 82.05 | AE73: 82.71 | AF73: 83.39 | AG73: 84.1 | AH73: 84.82 | AI73: 85.57 | AJ73: 86.35 | AK73: 87.14 | AL73: 87.96 | AM73: 88.8 | AN73: 89.67 | AO73: 90.57 | AP73: 91.51 | AQ73: 92.48 | AR73: 93.49 | AS73: 94.54 | AT73: 95.65 | AU73: 96.81 | AV73: 98.04 | AW73: 99.31 | AX73: 100.62 | AY73: 101.98 | AZ73: 103.36 | BA73: 104.77 | BB73: 106.2 | BC73: 107.64 | BD73: 109.08 | BE73: 110.53 | BF73: 111.97 | BG73: 113.4 | BH73: 114.81 | BI73: 116.2 | BJ73: 117.57 | BK73: 118.91 | BL73: 120.22 | BM73: 121.49 | BN73: 122.73 | BO73: 123.92 | BP73: 125.08 | BQ73: 126.19 | BR73: 127.26 | BS73: 128.28 | BT73: 129.26 | BU73: 130.2 | BV73: 131.09 | BW73: 131.93 | BX73: 132.74 | BY73: 133.5 | BZ73: 134.22 | CA73: 134.9 | CB73: 135.54 | CC73: 136.14 | CD73: 136.71 | CE73: 137.24
A74: 83 | B74: 70.42 | C74: 70.73 | D74: 71.05 | E74: 71.37 | F74: 71.7 | G74: 72.04 | H74: 72.38 | I74: 72.73 | J74: 73.09 | K74: 73.45 | L74: 73.83 | M74: 74.21 | N74: 74.61 | O74: 75.01 | P74: 75.43 | Q74: 75.87 | R74: 76.32 | S74: 76.78 | T74: 77.25 | U74: 77.74 | V74: 78.25 | W74: 78.77 | X74: 79.31 | Y74: 79.87 | Z74: 80.44 | AA74: 81.03 | AB74: 81.64 | AC74: 82.28 | AD74: 82.93 | AE74: 83.61 | AF74: 84.32 | AG74: 85.04 | AH74: 85.79 | AI74: 86.56 | AJ74: 87.36 | AK74: 88.18 | AL74: 89.02 | AM74: 89.89 | AN74: 90.79 | AO74: 91.73 | AP74: 92.7 | AQ74: 93.7 | AR74: 94.75 | AS74: 95.85 | AT74: 97 | AU74: 98.21 | AV74: 99.49 | AW74: 100.83 | AX74: 102.21 | AY74: 103.63 | AZ74: 105.09 | BA74: 106.58 | BB74: 108.09 | BC74: 109.62 | BD74: 111.15 | BE74: 112.69 | BF74: 114.23 | BG74: 115.76 | BH74: 117.28 | BI74: 118.77 | BJ74: 120.25 | BK74: 121.69 | BL74: 123.11 | BM74: 124.49 | BN74: 125.83 | BO74: 127.13 | BP74: 128.39 | BQ74: 129.61 | BR74: 130.78 | BS74: 131.91 | BT74: 132.99 | BU74: 134.02 | BV74: 135 | BW74: 135.94 | BX74: 136.83 | BY74: 137.67 | BZ74: 138.48 | CA74: 139.23 | CB74: 139.95 | CC74: 140.62 | CD74: 141.26 | CE74: 141.86
A75: 84 | B75: 71.03 | C75: 71.34 | D75: 71.67 | E75: 72 | F75: 72.33 | G75: 72.67 | H75: 73.02 | I75: 73.38 | J75: 73.74 | K75: 74.12 | L75: 74.5 | M75: 74.89 | N75: 75.29 | O75: 75.71 | P75: 76.14 | Q75: 76.58 | R75: 77.04 | S75: 77.51 | T75: 77.99 | U75: 78.49 | V75: 79.01 | W75: 79.55 | X75: 80.1 | Y75: 80.67 | Z75: 81.25 | AA75: 81.86 | AB75: 82.49 | AC75: 83.14 | AD75: 83.81 | AE75: 84.51 | AF75: 85.23 | AG75: 85.98 | AH75: 86.75 | AI75: 87.54 | AJ75: 88.36 | AK75: 89.21 | AL75: 90.08 | AM75: 90.97 | AN75: 91.9 | AO75: 92.87 | AP75: 93.87 | AQ75: 94.92 | AR75: 96 | AS75: 97.14 | AT75: 98.34 | AU75: 99.6 | AV75: 100.94 | AW75: 102.33 | AX75: 103.78 | AY75: 105.28 | AZ75: 106.81 | BA75: 108.38 | BB75: 109.98 | BC75: 111.59 | BD75: 113.22 | BE75: 114.86 | BF75: 116.49 | BG75: 118.13 | BH75: 119.75 | BI75: 121.35 | BJ75: 122.93 | BK75: 124.49 | BL75: 126.02 | BM75: 127.51 | BN75: 128.97 | BO75: 130.38 | BP75: 131.75 | BQ75: 133.08 | BR75: 134.36 | BS75: 135.59 | BT75: 136.77 | BU75: 137.91 | BV75: 138.99 | BW75: 140.03 | BX75: 141.01 | BY75: 141.95 | BZ75: 142.84 | CA75: 143.68 | CB75: 144.48 | CC75: 145.24 | CD75: 145.95 | CE75: 146.62
A76: 85 | B76: 71.62 | C76: 71.95 | D76: 72.28 | E76: 72.62 | F76: 72.96 | G76: 73.3 | H76: 73.66 | I76: 74.02 | J76: 74.39 | K76: 74.77 | L76: 75.16 | M76: 75.56 | N76: 75.97 | O76: 76.39 | P76: 76.83 | Q76: 77.28 | R76: 77.75 | S76: 78.23 | T76: 78.72 | U76: 79.24 | V76: 79.76 | W76: 80.31 | X76: 80.87 | Y76: 81.46 | Z76: 82.06 | AA76: 82.68 | AB76: 83.32 | AC76: 83.99 | AD76: 84.68 | AE76: 85.39 | AF76: 86.13 | AG76: 86.9 | AH76: 87.69 | AI76: 88.51 | AJ76: 89.35 | AK76: 90.22 | AL76: 91.12 | AM76: 92.04 | AN76: 93 | AO76: 94 | AP76: 95.03 | AQ76: 96.11 | AR76: 97.24 | AS76: 98.42 | AT76: 99.66 | AU76: 100.98 | AV76: 102.37 | AW76: 103.83 | AX76: 105.34 | AY76: 106.91 | AZ76: 108.52 | BA76: 110.17 | BB76: 111.85 | BC76: 113.56 | BD76: 115.28 | BE76: 117.01 | BF76: 118.75 | BG76: 120.49 | BH76: 122.22 | BI76: 123.93 | BJ76: 125.63 | BK76: 127.3 | BL76: 128.94 | BM76: 130.55 | BN76: 132.12 | BO76: 133.66 | BP76: 135.14 | BQ76: 136.59 | BR76: 137.98 | BS76: 139.33 | BT76: 140.62 | BU76: 141.87 | BV76: 143.06 | BW76: 144.2 | BX76: 145.28 | BY76: 146.32 | BZ76: 147.31 | CA76: 148.24 | CB76: 149.13 | CC76: 149.97 | CD76: 150.77 | CE76: 151.52
A77: 86 | B77: 72.21 | C77: 72.55 | D77: 72.88 | E77: 73.22 | F77: 73.57 | G77: 73.92 | H77: 74.28 | I77: 74.65 | J77: 75.03 | K77: 75.41 | L77: 75.81 | M77: 76.22 | N77: 76.64 | O77: 77.07 | P77: 77.51 | Q77: 77.97 | R77: 78.45 | S77: 78.94 | T77: 79.44 | U77: 79.97 | V77: 80.51 | W77: 81.06 | X77: 81.64 | Y77: 82.23 | Z77: 82.85 | AA77: 83.48 | AB77: 84.14 | AC77: 84.82 | AD77: 85.53 | AE77: 86.26 | AF77: 87.02 | AG77: 87.81 | AH77: 88.62 | AI77: 89.46 | AJ77: 90.33 | AK77: 91.22 | AL77: 92.14 | AM77: 93.1 | AN77: 94.08 | AO77: 95.11 | AP77: 96.18 | AQ77: 97.29 | AR77: 98.46 | AS77: 99.68 | AT77: 100.96 | AU77: 102.33 | AV77: 103.78 | AW77: 105.3 | AX77: 106.88 | AY77: 108.52 | AZ77: 110.21 | BA77: 111.94 | BB77: 113.71 | BC77: 115.5 | BD77: 117.32 | BE77: 119.16 | BF77: 121 | BG77: 122.84 | BH77: 124.68 | BI77: 126.51 | BJ77: 128.33 | BK77: 130.11 | BL77: 131.88 | BM77: 133.61 | BN77: 135.3 | BO77: 136.96 | BP77: 138.57 | BQ77: 140.13 | BR77: 141.65 | BS77: 143.11 | BT77: 144.52 | BU77: 145.88 | BV77: 147.19 | BW77: 148.44 | BX77: 149.64 | BY77: 150.78 | BZ77: 151.87 | CA77: 152.9 | CB77: 153.89 | CC77: 154.82 | CD77: 155.71 | CE77: 156.54
A78: 87 | B78: 72.79 | C78: 73.13 | D78: 73.47 | E78: 73.82 | F78: 74.17 | G78: 74.53 | H78: 74.9 | I78: 75.27 | J78: 75.66 | K78: 76.05 | L78: 76.45 | M78: 76.87 | N78: 77.29 | O78: 77.73 | P78: 78.18 | Q78: 78.65 | R78: 79.14 | S78: 79.64 | T78: 80.15 | U78: 80.69 | V78: 81.24 | W78: 81.8 | X78: 82.39 | Y78: 83 | Z78: 83.63 | AA78: 84.28 | AB78: 84.95 | AC78: 85.65 | AD78: 86.37 | AE78: 87.12 | AF78: 87.9 | AG78: 88.71 | AH78: 89.54 | AI78: 90.4 | AJ78: 91.29 | AK78: 92.21 | AL78: 93.15 | AM78: 94.13 | AN78: 95.15 | AO78: 96.21 | AP78: 97.31 | AQ78: 98.46 | AR78: 99.66 | AS78: 100.92 | AT78: 102.25 | AU78: 103.67 | AV78: 105.18 | AW78: 106.75 | AX78: 108.4 | AY78: 110.11 | AZ78: 111.88 | BA78: 113.69 | BB78: 115.54 | BC78: 117.43 | BD78: 119.35 | BE78: 121.29 | BF78: 123.23 | BG78: 125.19 | BH78: 127.14 | BI78: 129.09 | BJ78: 131.02 | BK78: 132.93 | BL78: 134.82 | BM78: 136.67 | BN78: 138.49 | BO78: 140.27 | BP78: 142.01 | BQ78: 143.7 | BR78: 145.35 | BS78: 146.94 | BT78: 148.47 | BU78: 149.96 | BV78: 151.38 | BW78: 152.75 | BX78: 154.07 | BY78: 155.32 | BZ78: 156.52 | CA78: 157.66 | CB78: 158.75 | CC78: 159.79 | CD78: 160.77 | CE78: 161.7
A79: 88 | B79: 73.36 | C79: 73.71 | D79: 74.05 | E79: 74.4 | F79: 74.76 | G79: 75.13 | H79: 75.5 | I79: 75.88 | J79: 76.27 | K79: 76.67 | L79: 77.08 | M79: 77.5 | N79: 77.94 | O79: 78.38 | P79: 78.84 | Q79: 79.32 | R79: 79.81 | S79: 80.32 | T79: 80.85 | U79: 81.39 | V79: 81.95 | W79: 82.53 | X79: 83.13 | Y79: 83.75 | Z79: 84.39 | AA79: 85.06 | AB79: 85.74 | AC79: 86.46 | AD79: 87.2 | AE79: 87.97 | AF79: 88.76 | AG79: 89.59 | AH79: 90.44 | AI79: 91.33 | AJ79: 92.24 | AK79: 93.18 | AL79: 94.15 | AM79: 95.16 | AN79: 96.2 | AO79: 97.29 | AP79: 98.42 | AQ79: 99.6 | AR79: 100.84 | AS79: 102.14 | AT79: 103.52 | AU79: 104.99 | AV79: 106.55 | AW79: 108.19 | AX79: 109.9 | AY79: 111.68 | AZ79: 113.52 | BA79: 115.42 | BB79: 117.36 | BC79: 119.34 | BD79: 121.36 | BE79: 123.39 | BF79: 125.45 | BG79: 127.52 | BH79: 129.58 | BI79: 131.65 | BJ79: 133.7 | BK79: 135.74 | BL79: 137.75 | BM79: 139.74 | BN79: 141.69 | BO79: 143.6 | BP79: 145.47 | BQ79: 147.3 | BR79: 149.07 | BS79: 150.8 | BT79: 152.47 | BU79: 154.08 | BV79: 155.63 | BW79: 157.13 | BX79: 158.56 | BY79: 159.94 | BZ79: 161.26 | CA79: 162.52 | CB79: 163.71 | CC79: 164.86 | CD79: 165.94 | CE79: 166.97
A80: 89 | B80: 73.92 | C80: 74.27 | D80: 74.62 | E80: 74.98 | F80: 75.34 | G80: 75.71 | H80: 76.09 | I80: 76.48 | J80: 76.87 | K80: 77.28 | L80: 77.7 | M80: 78.13 | N80: 78.57 | O80: 79.02 | P80: 79.49 | Q80: 79.98 | R80: 80.48 | S80: 81 | T80: 81.53 | U80: 82.08 | V80: 82.66 | W80: 83.25 | X80: 83.86 | Y80: 84.49 | Z80: 85.15 | AA80: 85.82 | AB80: 86.52 | AC80: 87.25 | AD80: 88.01 | AE80: 88.79 | AF80: 89.61 | AG80: 90.45 | AH80: 91.33 | AI80: 92.23 | AJ80: 93.17 | AK80: 94.13 | AL80: 95.13 | AM80: 96.16 | AN80: 97.23 | AO80: 98.35 | AP80: 99.51 | AQ80: 100.73 | AR80: 102.01 | AS80: 103.34 | AT80: 104.77 | AU80: 106.29 | AV80: 107.9 | AW80: 109.6 | AX80: 111.37 | AY80: 113.23 | AZ80: 115.15 | BA80: 117.12 | BB80: 119.15 | BC80: 121.23 | BD80: 123.34 | BE80: 125.48 | BF80: 127.65 | BG80: 129.82 | BH80: 132.01 | BI80: 134.19 | BJ80: 136.37 | BK80: 138.54 | BL80: 140.68 | BM80: 142.8 | BN80: 144.89 | BO80: 146.94 | BP80: 148.95 | BQ80: 150.91 | BR80: 152.82 | BS80: 154.68 | BT80: 156.49 | BU80: 158.24 | BV80: 159.93 | BW80: 161.56 | BX80: 163.12 | BY80: 164.63 | BZ80: 166.07 | CA80: 167.45 | CB80: 168.77 | CC80: 170.03 | CD80: 171.22 | CE80: 172.36
A81: 90 | B81: 74.47 | C81: 74.82 | D81: 75.18 | E81: 75.54 | F81: 75.91 | G81: 76.29 | H81: 76.67 | I81: 77.06 | J81: 77.47 | K81: 77.88 | L81: 78.3 | M81: 78.74 | N81: 79.19 | O81: 79.65 | P81: 80.12 | Q81: 80.62 | R81: 81.13 | S81: 81.66 | T81: 82.2 | U81: 82.76 | V81: 83.35 | W81: 83.95 | X81: 84.57 | Y81: 85.21 | Z81: 85.88 | AA81: 86.57 | AB81: 87.29 | AC81: 88.03 | AD81: 88.8 | AE81: 89.61 | AF81: 90.44 | AG81: 91.3 | AH81: 92.2 | AI81: 93.12 | AJ81: 94.08 | AK81: 95.07 | AL81: 96.09 | AM81: 97.14 | AN81: 98.24 | AO81: 99.39 | AP81: 100.58 | AQ81: 101.84 | AR81: 103.15 | AS81: 104.53 | AT81: 105.99 | AU81: 107.56 | AV81: 109.22 | AW81: 110.98 | AX81: 112.83 | AY81: 114.75 | AZ81: 116.74 | BA81: 118.8 | BB81: 120.92 | BC81: 123.09 | BD81: 125.3 | BE81: 127.54 | BF81: 129.82 | BG81: 132.11 | BH81: 134.41 | BI81: 136.72 | BJ81: 139.03 | BK81: 141.32 | BL81: 143.6 | BM81: 145.86 | BN81: 148.08 | BO81: 150.27 | BP81: 152.42 | BQ81: 154.53 | BR81: 156.59 | BS81: 158.59 | BT81: 160.54 | BU81: 162.43 | BV81: 164.26 | BW81: 166.03 | BX81: 167.74 | BY81: 169.38 | BZ81: 170.95 | CA81: 172.46 | CB81: 173.91 | CC81: 175.29 | CD81: 176.61 | CE81: 177.87
A82: 91 | B82: 75 | C82: 75.36 | D82: 75.72 | E82: 76.09 | F82: 76.46 | G82: 76.85 | H82: 77.24 | I82: 77.64 | J82: 78.04 | K82: 78.46 | L82: 78.89 | M82: 79.33 | N82: 79.79 | O82: 80.26 | P82: 80.74 | Q82: 81.25 | R82: 81.76 | S82: 82.3 | T82: 82.85 | U82: 83.43 | V82: 84.02 | W82: 84.63 | X82: 85.27 | Y82: 85.92 | Z82: 86.6 | AA82: 87.31 | AB82: 88.04 | AC82: 88.79 | AD82: 89.58 | AE82: 90.4 | AF82: 91.25 | AG82: 92.13 | AH82: 93.05 | AI82: 93.99 | AJ82: 94.97 | AK82: 95.98 | AL82: 97.03 | AM82: 98.11 | AN82: 99.24 | AO82: 100.41 | AP82: 101.64 | AQ82: 102.92 | AR82: 104.27 | AS82: 105.68 | AT82: 107.19 | AU82: 108.81 | AV82: 110.53 | AW82: 112.34 | AX82: 114.25 | AY82: 116.24 | AZ82: 118.31 | BA82: 120.45 | BB82: 122.66 | BC82: 124.92 | BD82: 127.23 | BE82: 129.58 | BF82: 131.96 | BG82: 134.37 | BH82: 136.79 | BI82: 139.22 | BJ82: 141.66 | BK82: 144.09 | BL82: 146.5 | BM82: 148.9 | BN82: 151.27 | BO82: 153.6 | BP82: 155.9 | BQ82: 158.16 | BR82: 160.36 | BS82: 162.52 | BT82: 164.62 | BU82: 166.66 | BV82: 168.63 | BW82: 170.55 | BX82: 172.4 | BY82: 174.18 | BZ82: 175.9 | CA82: 177.55 | CB82: 179.13 | CC82: 180.64 | CD82: 182.09 | CE82: 183.47
A83: 92 | B83: 75.52 | C83: 75.88 | D83: 76.25 | E83: 76.63 | F83: 77.01 | G83: 77.39 | H83: 77.79 | I83: 78.19 | J83: 78.61 | K83: 79.03 | L83: 79.47 | M83: 79.92 | N83: 80.38 | O83: 80.86 | P83: 81.35 | Q83: 81.86 | R83: 82.39 | S83: 82.93 | T83: 83.49 | U83: 84.08 | V83: 84.68 | W83: 85.3 | X83: 85.95 | Y83: 86.62 | Z83: 87.31 | AA83: 88.02 | AB83: 88.77 | AC83: 89.54 | AD83: 90.35 | AE83: 91.18 | AF83: 92.05 | AG83: 92.95 | AH83: 93.88 | AI83: 94.85 | AJ83: 95.85 | AK83: 96.88 | AL83: 97.95 | AM83: 99.06 | AN83: 100.21 | AO83: 101.41 | AP83: 102.67 | AQ83: 103.98 | AR83: 105.36 | AS83: 106.82 | AT83: 108.37 | AU83: 110.03 | AV83: 111.8 | AW83: 113.68 | AX83: 115.65 | AY83: 117.71 | AZ83: 119.85 | BA83: 122.08 | BB83: 124.37 | BC83: 126.72 | BD83: 129.13 | BE83: 131.58 | BF83: 134.07 | BG83: 136.6 | BH83: 139.14 | BI83: 141.7 | BJ83: 144.26 | BK83: 146.83 | BL83: 149.38 | BM83: 151.92 | BN83: 154.44 | BO83: 156.92 | BP83: 159.37 | BQ83: 161.78 | BR83: 164.14 | BS83: 166.45 | BT83: 168.7 | BU83: 170.9 | BV83: 173.03 | BW83: 175.1 | BX83: 177.1 | BY83: 179.04 | BZ83: 180.9 | CA83: 182.7 | CB83: 184.42 | CC83: 186.07 | CD83: 187.66 | CE83: 189.17
A84: 93 | B84: 76.03 | C84: 76.4 | D84: 76.77 | E84: 77.15 | F84: 77.53 | G84: 77.93 | H84: 78.33 | I84: 78.74 | J84: 79.16 | K84: 79.59 | L84: 80.03 | M84: 80.49 | N84: 80.96 | O84: 81.44 | P84: 81.94 | Q84: 82.46 | R84: 82.99 | S84: 83.55 | T84: 84.12 | U84: 84.71 | V84: 85.32 | W84: 85.96 | X84: 86.61 | Y84: 87.29 | Z84: 88 | AA84: 88.73 | AB84: 89.48 | AC84: 90.27 | AD84: 91.09 | AE84: 91.94 | AF84: 92.82 | AG84: 93.74 | AH84: 94.69 | AI84: 95.68 | AJ84: 96.7 | AK84: 97.76 | AL84: 98.85 | AM84: 99.98 | AN84: 101.16 | AO84: 102.39 | AP84: 103.67 | AQ84: 105.02 | AR84: 106.44 | AS84: 107.93 | AT84: 109.52 | AU84: 111.23 | AV84: 113.05 | AW84: 114.98 | AX84: 117.01 | AY84: 119.14 | AZ84: 121.36 | BA84: 123.67 | BB84: 126.04 | BC84: 128.49 | BD84: 130.99 | BE84: 133.55 | BF84: 136.15 | BG84: 138.79 | BH84: 141.46 | BI84: 144.15 | BJ84: 146.84 | BK84: 149.54 | BL84: 152.24 | BM84: 154.92 | BN84: 157.58 | BO84: 160.22 | BP84: 162.83 | BQ84: 165.39 | BR84: 167.91 | BS84: 170.38 | BT84: 172.8 | BU84: 175.15 | BV84: 177.45 | BW84: 179.68 | BX84: 181.84 | BY84: 183.93 | BZ84: 185.95 | CA84: 187.9 | CB84: 189.78 | CC84: 191.58 | CD84: 193.31 | CE84: 194.97
A85: 94 | B85: 76.52 | C85: 76.9 | D85: 77.28 | E85: 77.66 | F85: 78.05 | G85: 78.45 | H85: 78.86 | I85: 79.27 | J85: 79.7 | K85: 80.13 | L85: 80.58 | M85: 81.05 | N85: 81.52 | O85: 82.01 | P85: 82.52 | Q85: 83.04 | R85: 83.59 | S85: 84.15 | T85: 84.73 | U85: 85.33 | V85: 85.95 | W85: 86.6 | X85: 87.26 | Y85: 87.95 | Z85: 88.67 | AA85: 89.41 | AB85: 90.18 | AC85: 90.98 | AD85: 91.82 | AE85: 92.68 | AF85: 93.58 | AG85: 94.52 | AH85: 95.49 | AI85: 96.5 | AJ85: 97.54 | AK85: 98.62 | AL85: 99.73 | AM85: 100.88 | AN85: 102.09 | AO85: 103.34 | AP85: 104.66 | AQ85: 106.04 | AR85: 107.49 | AS85: 109.01 | AT85: 110.64 | AU85: 112.4 | AV85: 114.27 | AW85: 116.26 | AX85: 118.35 | AY85: 120.55 | AZ85: 122.84 | BA85: 125.23 | BB85: 127.69 | BC85: 130.22 | BD85: 132.83 | BE85: 135.49 | BF85: 138.2 | BG85: 140.96 | BH85: 143.74 | BI85: 146.56 | BJ85: 149.39 | BK85: 152.23 | BL85: 155.06 | BM85: 157.9 | BN85: 160.71 | BO85: 163.5 | BP85: 166.27 | BQ85: 168.99 | BR85: 171.68 | BS85: 174.31 | BT85: 176.89 | BU85: 179.42 | BV85: 181.88 | BW85: 184.28 | BX85: 186.6 | BY85: 188.86 | BZ85: 191.05 | CA85: 193.16 | CB85: 195.19 | CC85: 197.15 | CD85: 199.03 | CE85: 200.84
A86: 95 | B86: 77.01 | C86: 77.38 | D86: 77.77 | E86: 78.16 | F86: 78.55 | G86: 78.96 | H86: 79.37 | I86: 79.79 | J86: 80.22 | K86: 80.66 | L86: 81.12 | M86: 81.59 | N86: 82.07 | O86: 82.57 | P86: 83.08 | Q86: 83.61 | R86: 84.16 | S86: 84.73 | T86: 85.32 | U86: 85.93 | V86: 86.57 | W86: 87.22 | X86: 87.9 | Y86: 88.6 | Z86: 89.33 | AA86: 90.08 | AB86: 90.86 | AC86: 91.68 | AD86: 92.53 | AE86: 93.41 | AF86: 94.33 | AG86: 95.28 | AH86: 96.27 | AI86: 97.29 | AJ86: 98.36 | AK86: 99.45 | AL86: 100.59 | AM86: 101.77 | AN86: 102.99 | AO86: 104.28 | AP86: 105.62 | AQ86: 107.03 | AR86: 108.51 | AS86: 110.07 | AT86: 111.74 | AU86: 113.54 | AV86: 115.47 | AW86: 117.51 | AX86: 119.66 | AY86: 121.93 | AZ86: 124.29 | BA86: 126.75 | BB86: 129.3 | BC86: 131.93 | BD86: 134.63 | BE86: 137.39 | BF86: 140.21 | BG86: 143.08 | BH86: 145.99 | BI86: 148.93 | BJ86: 151.9 | BK86: 154.87 | BL86: 157.86 | BM86: 160.84 | BN86: 163.81 | BO86: 166.76 | BP86: 169.68 | BQ86: 172.57 | BR86: 175.42 | BS86: 178.23 | BT86: 180.98 | BU86: 183.68 | BV86: 186.32 | BW86: 188.89 | BX86: 191.39 | BY86: 193.82 | BZ86: 196.17 | CA86: 198.45 | CB86: 200.66 | CC86: 202.78 | CD86: 204.83 | CE86: 206.79
A87: 96 | B87: 77.48 | C87: 77.86 | D87: 78.25 | E87: 78.64 | F87: 79.04 | G87: 79.45 | H87: 79.87 | I87: 80.29 | J87: 80.73 | K87: 81.18 | L87: 81.64 | M87: 82.12 | N87: 82.6 | O87: 83.11 | P87: 83.63 | Q87: 84.17 | R87: 84.73 | S87: 85.31 | T87: 85.9 | U87: 86.52 | V87: 87.16 | W87: 87.83 | X87: 88.51 | Y87: 89.23 | Z87: 89.97 | AA87: 90.73 | AB87: 91.53 | AC87: 92.36 | AD87: 93.22 | AE87: 94.12 | AF87: 95.05 | AG87: 96.02 | AH87: 97.02 | AI87: 98.07 | AJ87: 99.15 | AK87: 100.27 | AL87: 101.43 | AM87: 102.63 | AN87: 103.88 | AO87: 105.19 | AP87: 106.56 | AQ87: 108 | AR87: 109.51 | AS87: 111.11 | AT87: 112.82 | AU87: 114.66 | AV87: 116.63 | AW87: 118.73 | AX87: 120.94 | AY87: 123.27 | AZ87: 125.71 | BA87: 128.25 | BB87: 130.88 | BC87: 133.59 | BD87: 136.39 | BE87: 139.26 | BF87: 142.19 | BG87: 145.17 | BH87: 148.2 | BI87: 151.27 | BJ87: 154.37 | BK87: 157.49 | BL87: 160.62 | BM87: 163.75 | BN87: 166.87 | BO87: 169.98 | BP87: 173.07 | BQ87: 176.13 | BR87: 179.15 | BS87: 182.13 | BT87: 185.06 | BU87: 187.94 | BV87: 190.75 | BW87: 193.5 | BX87: 196.18 | BY87: 198.79 | BZ87: 201.33 | CA87: 203.79 | CB87: 206.16 | CC87: 208.46 | CD87: 210.68 | CE87: 212.81
A88: 97 | B88: 77.93 | C88: 78.32 | D88: 78.71 | E88: 79.11 | F88: 79.52 | G88: 79.93 | H88: 80.35 | I88: 80.79 | J88: 81.23 | K88: 81.68 | L88: 82.15 | M88: 82.63 | N88: 83.12 | O88: 83.63 | P88: 84.16 | Q88: 84.71 | R88: 85.28 | S88: 85.86 | T88: 86.47 | U88: 87.1 | V88: 87.75 | W88: 88.42 | X88: 89.12 | Y88: 89.84 | Z88: 90.59 | AA88: 91.37 | AB88: 92.17 | AC88: 93.02 | AD88: 93.89 | AE88: 94.8 | AF88: 95.75 | AG88: 96.74 | AH88: 97.76 | AI88: 98.83 | AJ88: 99.93 | AK88: 101.07 | AL88: 102.24 | AM88: 103.47 | AN88: 104.74 | AO88: 106.08 | AP88: 107.48 | AQ88: 108.94 | AR88: 110.49 | AS88: 112.12 | AT88: 113.87 | AU88: 115.75 | AV88: 117.77 | AW88: 119.92 | AX88: 122.19 | AY88: 124.59 | AZ88: 127.09 | BA88: 129.7 | BB88: 132.42 | BC88: 135.22 | BD88: 138.11 | BE88: 141.08 | BF88: 144.12 | BG88: 147.22 | BH88: 150.37 | BI88: 153.57 | BJ88: 156.8 | BK88: 160.06 | BL88: 163.33 | BM88: 166.62 | BN88: 169.9 | BO88: 173.17 | BP88: 176.43 | BQ88: 179.66 | BR88: 182.86 | BS88: 186.02 | BT88: 189.13 | BU88: 192.18 | BV88: 195.18 | BW88: 198.12 | BX88: 200.99 | BY88: 203.78 | BZ88: 206.5 | CA88: 209.15 | CB88: 211.71 | CC88: 214.19 | CD88: 216.58 | CE88: 218.9
A89: 98 | B89: 78.38 | C89: 78.77 | D89: 79.16 | E89: 79.57 | F89: 79.98 | G89: 80.4 | H89: 80.83 | I89: 81.26 | J89: 81.71 | K89: 82.17 | L89: 82.64 | M89: 83.13 | N89: 83.63 | O89: 84.15 | P89: 84.68 | Q89: 85.24 | R89: 85.81 | S89: 86.4 | T89: 87.02 | U89: 87.65 | V89: 88.31 | W89: 88.99 | X89: 89.7 | Y89: 90.44 | Z89: 91.2 | AA89: 91.98 | AB89: 92.8 | AC89: 93.66 | AD89: 94.55 | AE89: 95.47 | AF89: 96.44 | AG89: 97.44 | AH89: 98.48 | AI89: 99.56 | AJ89: 100.68 | AK89: 101.84 | AL89: 103.04 | AM89: 104.29 | AN89: 105.59 | AO89: 106.94 | AP89: 108.37 | AQ89: 109.87 | AR89: 111.44 | AS89: 113.1 | AT89: 114.89 | AU89: 116.81 | AV89: 118.88 | AW89: 121.08 | AX89: 123.41 | AY89: 125.87 | AZ89: 128.44 | BA89: 131.13 | BB89: 133.92 | BC89: 136.82 | BD89: 139.8 | BE89: 142.87 | BF89: 146.02 | BG89: 149.23 | BH89: 152.5 | BI89: 155.83 | BJ89: 159.19 | BK89: 162.59 | BL89: 166.01 | BM89: 169.45 | BN89: 172.89 | BO89: 176.33 | BP89: 179.75 | BQ89: 183.16 | BR89: 186.53 | BS89: 189.87 | BT89: 193.17 | BU89: 196.41 | BV89: 199.6 | BW89: 202.73 | BX89: 205.79 | BY89: 208.78 | BZ89: 211.69 | CA89: 214.53 | CB89: 217.28 | CC89: 219.95 | CD89: 222.54 | CE89: 225.03
A90: 99 | B90: 78.81 | C90: 79.2 | D90: 79.61 | E90: 80.01 | F90: 80.43 | G90: 80.85 | H90: 81.28 | I90: 81.73 | J90: 82.18 | K90: 82.65 | L90: 83.12 | M90: 83.62 | N90: 84.12 | O90: 84.65 | P90: 85.19 | Q90: 85.75 | R90: 86.33 | S90: 86.93 | T90: 87.55 | U90: 88.2 | V90: 88.86 | W90: 89.55 | X90: 90.27 | Y90: 91.01 | Z90: 91.79 | AA90: 92.59 | AB90: 93.42 | AC90: 94.28 | AD90: 95.19 | AE90: 96.13 | AF90: 97.11 | AG90: 98.12 | AH90: 99.18 | AI90: 100.28 | AJ90: 101.42 | AK90: 102.6 | AL90: 103.82 | AM90: 105.08 | AN90: 106.41 | AO90: 107.79 | AP90: 109.24 | AQ90: 110.76 | AR90: 112.37 | AS90: 114.06 | AT90: 115.88 | AU90: 117.85 | AV90: 119.96 | AW90: 122.21 | AX90: 124.6 | AY90: 127.12 | AZ90: 129.76 | BA90: 132.52 | BB90: 135.39 | BC90: 138.37 | BD90: 141.45 | BE90: 144.62 | BF90: 147.87 | BG90: 151.2 | BH90: 154.59 | BI90: 158.04 | BJ90: 161.54 | BK90: 165.08 | BL90: 168.65 | BM90: 172.24 | BN90: 175.84 | BO90: 179.44 | BP90: 183.04 | BQ90: 186.62 | BR90: 190.17 | BS90: 193.7 | BT90: 197.18 | BU90: 200.62 | BV90: 204.01 | BW90: 207.33 | BX90: 210.59 | BY90: 213.78 | BZ90: 216.89 | CA90: 219.92 | CB90: 222.88 | CC90: 225.74 | CD90: 228.53 | CE90: 231.22
B94: Annexure G - Annuity Rates per Rs.1000 Purchase Price
B96: SUD Life Immediate Annuity Plus
B98: Annuity Option : 5 (Joint Life Annuity with 100% of Life Annuity payable to the Spouse on death of the Primary Annuitant)
B100: Age of the Secondary Annuitant | R100: Age of the Secondary Annuitant | AH100: Age of the Secondary Annuitant | AX100: Age of the Secondary Annuitant
A101: Age of the Primary Annuitant | B101: 18 | C101: 19 | D101: 20 | E101: 21 | F101: 22 | G101: 23 | H101: 24 | I101: 25 | J101: 26 | K101: 27 | L101: 28 | M101: 29 | N101: 30 | O101: 31 | P101: 32 | Q101: 33 | R101: 34 | S101: 35 | T101: 36 | U101: 37 | V101: 38 | W101: 39 | X101: 40 | Y101: 41 | Z101: 42 | AA101: 43 | AB101: 44 | AC101: 45 | AD101: 46 | AE101: 47 | AF101: 48 | AG101: 49 | AH101: 50 | AI101: 51 | AJ101: 52 | AK101: 53 | AL101: 54 | AM101: 55 | AN101: 56 | AO101: 57 | AP101: 58 | AQ101: 59 | AR101: 60 | AS101: 61 | AT101: 62 | AU101: 63 | AV101: 64 | AW101: 65 | AX101: 66 | AY101: 67 | AZ101: 68 | BA101: 69 | BB101: 70 | BC101: =BB101+1 -> 71 | BD101: =BC101+1 -> 72 | BE101: 73 | BF101: 74 | BG101: 75 | BH101: 76 | BI101: 77 | BJ101: 78 | BK101: 79 | BL101: 80 | BM101: 81 | BN101: 82 | BO101: 83 | BP101: 84 | BQ101: =BP101+1 -> 85 | BR101: =BQ101+1 -> 86 | BS101: =BR101+1 -> 87 | BT101: =BS101+1 -> 88 | BU101: =BT101+1 -> 89 | BV101: =BU101+1 -> 90 | BW101: =BV101+1 -> 91 | BX101: =BW101+1 -> 92 | BY101: =BX101+1 -> 93 | BZ101: =BY101+1 -> 94 | CA101: =BZ101+1 -> 95 | CB101: =CA101+1 -> 96 | CC101: =CB101+1 -> 97 | CD101: =CC101+1 -> 98 | CE101: =CD101+1 -> 99
A102: 18 | B102: 47.38 | C102: 47.47 | D102: 47.56 | E102: 47.64 | F102: 47.72 | G102: 47.8 | H102: 47.87 | I102: 47.94 | J102: 48.01 | K102: 48.08 | L102: 48.14 | M102: 48.2 | N102: 48.26 | O102: 48.32 | P102: 48.37 | Q102: 48.42 | R102: 48.47 | S102: 48.51 | T102: 48.56 | U102: 48.6 | V102: 48.64 | W102: 48.68 | X102: 48.71 | Y102: 48.74 | Z102: 48.78 | AA102: 48.81 | AB102: 48.84 | AC102: 48.86 | AD102: 48.89 | AE102: 48.91 | AF102: 48.94 | AG102: 48.96 | AH102: 48.98 | AI102: 49 | AJ102: 49.02 | AK102: 49.04 | AL102: 49.06 | AM102: 49.07 | AN102: 49.09 | AO102: 49.1 | AP102: 49.12 | AQ102: 49.13 | AR102: 49.15 | AS102: 49.16 | AT102: 49.17 | AU102: 49.18 | AV102: 49.2 | AW102: 49.21 | AX102: 49.22 | AY102: 49.23 | AZ102: 49.24 | BA102: 49.25 | BB102: 49.26 | BC102: 49.27 | BD102: 49.28 | BE102: 49.29 | BF102: 49.3 | BG102: 49.3 | BH102: 49.31 | BI102: 49.32 | BJ102: 49.32 | BK102: 49.33 | BL102: 49.34 | BM102: 49.34 | BN102: 49.35 | BO102: 49.35 | BP102: 49.36 | BQ102: 49.36 | BR102: 49.36 | BS102: 49.37 | BT102: 49.37 | BU102: 49.37 | BV102: 49.38 | BW102: 49.38 | BX102: 49.38 | BY102: 49.39 | BZ102: 49.39 | CA102: 49.39 | CB102: 49.39 | CC102: 49.39 | CD102: 49.39 | CE102: 49.4
A103: 19 | B103: 47.47 | C103: 47.56 | D103: 47.65 | E103: 47.74 | F103: 47.83 | G103: 47.91 | H103: 47.99 | I103: 48.06 | J103: 48.14 | K103: 48.21 | L103: 48.28 | M103: 48.34 | N103: 48.4 | O103: 48.46 | P103: 48.52 | Q103: 48.57 | R103: 48.62 | S103: 48.67 | T103: 48.72 | U103: 48.77 | V103: 48.81 | W103: 48.85 | X103: 48.89 | Y103: 48.92 | Z103: 48.96 | AA103: 48.99 | AB103: 49.02 | AC103: 49.05 | AD103: 49.08 | AE103: 49.11 | AF103: 49.13 | AG103: 49.16 | AH103: 49.18 | AI103: 49.2 | AJ103: 49.22 | AK103: 49.24 | AL103: 49.26 | AM103: 49.28 | AN103: 49.3 | AO103: 49.31 | AP103: 49.33 | AQ103: 49.34 | AR103: 49.36 | AS103: 49.37 | AT103: 49.39 | AU103: 49.4 | AV103: 49.41 | AW103: 49.42 | AX103: 49.44 | AY103: 49.45 | AZ103: 49.46 | BA103: 49.47 | BB103: 49.48 | BC103: 49.49 | BD103: 49.5 | BE103: 49.51 | BF103: 49.52 | BG103: 49.52 | BH103: 49.53 | BI103: 49.54 | BJ103: 49.55 | BK103: 49.55 | BL103: 49.56 | BM103: 49.56 | BN103: 49.57 | BO103: 49.57 | BP103: 49.58 | BQ103: 49.58 | BR103: 49.59 | BS103: 49.59 | BT103: 49.59 | BU103: 49.6 | BV103: 49.6 | BW103: 49.6 | BX103: 49.61 | BY103: 49.61 | BZ103: 49.61 | CA103: 49.61 | CB103: 49.62 | CC103: 49.62 | CD103: 49.62 | CE103: 49.62
A104: 20 | B104: 47.56 | C104: 47.65 | D104: 47.75 | E104: 47.84 | F104: 47.93 | G104: 48.02 | H104: 48.1 | I104: 48.18 | J104: 48.26 | K104: 48.33 | L104: 48.41 | M104: 48.48 | N104: 48.54 | O104: 48.61 | P104: 48.67 | Q104: 48.73 | R104: 48.78 | S104: 48.83 | T104: 48.88 | U104: 48.93 | V104: 48.98 | W104: 49.02 | X104: 49.06 | Y104: 49.1 | Z104: 49.14 | AA104: 49.18 | AB104: 49.21 | AC104: 49.24 | AD104: 49.27 | AE104: 49.3 | AF104: 49.33 | AG104: 49.36 | AH104: 49.38 | AI104: 49.4 | AJ104: 49.43 | AK104: 49.45 | AL104: 49.47 | AM104: 49.49 | AN104: 49.51 | AO104: 49.52 | AP104: 49.54 | AQ104: 49.56 | AR104: 49.57 | AS104: 49.59 | AT104: 49.6 | AU104: 49.62 | AV104: 49.63 | AW104: 49.64 | AX104: 49.66 | AY104: 49.67 | AZ104: 49.68 | BA104: 49.69 | BB104: 49.7 | BC104: 49.71 | BD104: 49.72 | BE104: 49.73 | BF104: 49.74 | BG104: 49.75 | BH104: 49.76 | BI104: 49.76 | BJ104: 49.77 | BK104: 49.78 | BL104: 49.78 | BM104: 49.79 | BN104: 49.8 | BO104: 49.8 | BP104: 49.81 | BQ104: 49.81 | BR104: 49.81 | BS104: 49.82 | BT104: 49.82 | BU104: 49.83 | BV104: 49.83 | BW104: 49.83 | BX104: 49.84 | BY104: 49.84 | BZ104: 49.84 | CA104: 49.84 | CB104: 49.84 | CC104: 49.85 | CD104: 49.85 | CE104: 49.85
A105: 21 | B105: 47.64 | C105: 47.74 | D105: 47.84 | E105: 47.94 | F105: 48.03 | G105: 48.12 | H105: 48.21 | I105: 48.3 | J105: 48.38 | K105: 48.46 | L105: 48.54 | M105: 48.61 | N105: 48.68 | O105: 48.75 | P105: 48.81 | Q105: 48.88 | R105: 48.94 | S105: 48.99 | T105: 49.05 | U105: 49.1 | V105: 49.15 | W105: 49.2 | X105: 49.24 | Y105: 49.28 | Z105: 49.33 | AA105: 49.36 | AB105: 49.4 | AC105: 49.44 | AD105: 49.47 | AE105: 49.5 | AF105: 49.53 | AG105: 49.56 | AH105: 49.58 | AI105: 49.61 | AJ105: 49.63 | AK105: 49.66 | AL105: 49.68 | AM105: 49.7 | AN105: 49.72 | AO105: 49.74 | AP105: 49.76 | AQ105: 49.78 | AR105: 49.79 | AS105: 49.81 | AT105: 49.82 | AU105: 49.84 | AV105: 49.85 | AW105: 49.87 | AX105: 49.88 | AY105: 49.89 | AZ105: 49.91 | BA105: 49.92 | BB105: 49.93 | BC105: 49.94 | BD105: 49.95 | BE105: 49.96 | BF105: 49.97 | BG105: 49.98 | BH105: 49.99 | BI105: 49.99 | BJ105: 50 | BK105: 50.01 | BL105: 50.02 | BM105: 50.02 | BN105: 50.03 | BO105: 50.03 | BP105: 50.04 | BQ105: 50.04 | BR105: 50.05 | BS105: 50.05 | BT105: 50.06 | BU105: 50.06 | BV105: 50.06 | BW105: 50.07 | BX105: 50.07 | BY105: 50.07 | BZ105: 50.07 | CA105: 50.08 | CB105: 50.08 | CC105: 50.08 | CD105: 50.08 | CE105: 50.08
A106: 22 | B106: 47.72 | C106: 47.83 | D106: 47.93 | E106: 48.03 | F106: 48.13 | G106: 48.23 | H106: 48.32 | I106: 48.41 | J106: 48.5 | K106: 48.58 | L106: 48.66 | M106: 48.74 | N106: 48.82 | O106: 48.89 | P106: 48.96 | Q106: 49.03 | R106: 49.09 | S106: 49.15 | T106: 49.21 | U106: 49.27 | V106: 49.32 | W106: 49.37 | X106: 49.42 | Y106: 49.47 | Z106: 49.51 | AA106: 49.55 | AB106: 49.59 | AC106: 49.63 | AD106: 49.67 | AE106: 49.7 | AF106: 49.73 | AG106: 49.76 | AH106: 49.79 | AI106: 49.82 | AJ106: 49.85 | AK106: 49.87 | AL106: 49.89 | AM106: 49.92 | AN106: 49.94 | AO106: 49.96 | AP106: 49.98 | AQ106: 50 | AR106: 50.02 | AS106: 50.03 | AT106: 50.05 | AU106: 50.07 | AV106: 50.08 | AW106: 50.1 | AX106: 50.11 | AY106: 50.12 | AZ106: 50.14 | BA106: 50.15 | BB106: 50.16 | BC106: 50.17 | BD106: 50.18 | BE106: 50.2 | BF106: 50.2 | BG106: 50.21 | BH106: 50.22 | BI106: 50.23 | BJ106: 50.24 | BK106: 50.25 | BL106: 50.25 | BM106: 50.26 | BN106: 50.27 | BO106: 50.27 | BP106: 50.28 | BQ106: 50.28 | BR106: 50.29 | BS106: 50.29 | BT106: 50.29 | BU106: 50.3 | BV106: 50.3 | BW106: 50.3 | BX106: 50.31 | BY106: 50.31 | BZ106: 50.31 | CA106: 50.32 | CB106: 50.32 | CC106: 50.32 | CD106: 50.32 | CE106: 50.32
A107: 23 | B107: 47.8 | C107: 47.91 | D107: 48.02 | E107: 48.12 | F107: 48.23 | G107: 48.33 | H107: 48.43 | I107: 48.52 | J107: 48.61 | K107: 48.7 | L107: 48.79 | M107: 48.87 | N107: 48.95 | O107: 49.03 | P107: 49.11 | Q107: 49.18 | R107: 49.25 | S107: 49.31 | T107: 49.38 | U107: 49.44 | V107: 49.49 | W107: 49.55 | X107: 49.6 | Y107: 49.65 | Z107: 49.7 | AA107: 49.74 | AB107: 49.79 | AC107: 49.83 | AD107: 49.87 | AE107: 49.9 | AF107: 49.94 | AG107: 49.97 | AH107: 50 | AI107: 50.03 | AJ107: 50.06 | AK107: 50.09 | AL107: 50.11 | AM107: 50.14 | AN107: 50.16 | AO107: 50.18 | AP107: 50.2 | AQ107: 50.22 | AR107: 50.24 | AS107: 50.26 | AT107: 50.28 | AU107: 50.3 | AV107: 50.31 | AW107: 50.33 | AX107: 50.35 | AY107: 50.36 | AZ107: 50.37 | BA107: 50.39 | BB107: 50.4 | BC107: 50.41 | BD107: 50.42 | BE107: 50.44 | BF107: 50.45 | BG107: 50.46 | BH107: 50.46 | BI107: 50.47 | BJ107: 50.48 | BK107: 50.49 | BL107: 50.5 | BM107: 50.5 | BN107: 50.51 | BO107: 50.51 | BP107: 50.52 | BQ107: 50.53 | BR107: 50.53 | BS107: 50.53 | BT107: 50.54 | BU107: 50.54 | BV107: 50.55 | BW107: 50.55 | BX107: 50.55 | BY107: 50.56 | BZ107: 50.56 | CA107: 50.56 | CB107: 50.56 | CC107: 50.57 | CD107: 50.57 | CE107: 50.57
A108: 24 | B108: 47.87 | C108: 47.99 | D108: 48.1 | E108: 48.21 | F108: 48.32 | G108: 48.43 | H108: 48.53 | I108: 48.63 | J108: 48.73 | K108: 48.82 | L108: 48.91 | M108: 49 | N108: 49.09 | O108: 49.17 | P108: 49.25 | Q108: 49.33 | R108: 49.4 | S108: 49.47 | T108: 49.54 | U108: 49.6 | V108: 49.66 | W108: 49.72 | X108: 49.78 | Y108: 49.83 | Z108: 49.89 | AA108: 49.93 | AB108: 49.98 | AC108: 50.03 | AD108: 50.07 | AE108: 50.11 | AF108: 50.15 | AG108: 50.18 | AH108: 50.22 | AI108: 50.25 | AJ108: 50.28 | AK108: 50.31 | AL108: 50.34 | AM108: 50.36 | AN108: 50.39 | AO108: 50.41 | AP108: 50.43 | AQ108: 50.46 | AR108: 50.48 | AS108: 50.5 | AT108: 50.52 | AU108: 50.54 | AV108: 50.55 | AW108: 50.57 | AX108: 50.59 | AY108: 50.6 | AZ108: 50.62 | BA108: 50.63 | BB108: 50.65 | BC108: 50.66 | BD108: 50.67 | BE108: 50.68 | BF108: 50.69 | BG108: 50.7 | BH108: 50.71 | BI108: 50.72 | BJ108: 50.73 | BK108: 50.74 | BL108: 50.75 | BM108: 50.75 | BN108: 50.76 | BO108: 50.77 | BP108: 50.77 | BQ108: 50.78 | BR108: 50.78 | BS108: 50.79 | BT108: 50.79 | BU108: 50.79 | BV108: 50.8 | BW108: 50.8 | BX108: 50.8 | BY108: 50.81 | BZ108: 50.81 | CA108: 50.81 | CB108: 50.82 | CC108: 50.82 | CD108: 50.82 | CE108: 50.82
A109: 25 | B109: 47.94 | C109: 48.06 | D109: 48.18 | E109: 48.3 | F109: 48.41 | G109: 48.52 | H109: 48.63 | I109: 48.73 | J109: 48.84 | K109: 48.94 | L109: 49.03 | M109: 49.13 | N109: 49.22 | O109: 49.31 | P109: 49.39 | Q109: 49.47 | R109: 49.55 | S109: 49.63 | T109: 49.7 | U109: 49.77 | V109: 49.84 | W109: 49.9 | X109: 49.96 | Y109: 50.02 | Z109: 50.07 | AA109: 50.13 | AB109: 50.18 | AC109: 50.23 | AD109: 50.27 | AE109: 50.31 | AF109: 50.36 | AG109: 50.4 | AH109: 50.43 | AI109: 50.47 | AJ109: 50.5 | AK109: 50.53 | AL109: 50.56 | AM109: 50.59 | AN109: 50.62 | AO109: 50.65 | AP109: 50.67 | AQ109: 50.69 | AR109: 50.72 | AS109: 50.74 | AT109: 50.76 | AU109: 50.78 | AV109: 50.8 | AW109: 50.82 | AX109: 50.83 | AY109: 50.85 | AZ109: 50.87 | BA109: 50.88 | BB109: 50.9 | BC109: 50.91 | BD109: 50.92 | BE109: 50.93 | BF109: 50.95 | BG109: 50.96 | BH109: 50.97 | BI109: 50.98 | BJ109: 50.99 | BK109: 50.99 | BL109: 51 | BM109: 51.01 | BN109: 51.02 | BO109: 51.02 | BP109: 51.03 | BQ109: 51.03 | BR109: 51.04 | BS109: 51.04 | BT109: 51.05 | BU109: 51.05 | BV109: 51.06 | BW109: 51.06 | BX109: 51.06 | BY109: 51.07 | BZ109: 51.07 | CA109: 51.07 | CB109: 51.07 | CC109: 51.08 | CD109: 51.08 | CE109: 51.08
A110: 26 | B110: 48.01 | C110: 48.14 | D110: 48.26 | E110: 48.38 | F110: 48.5 | G110: 48.61 | H110: 48.73 | I110: 48.84 | J110: 48.94 | K110: 49.05 | L110: 49.15 | M110: 49.25 | N110: 49.35 | O110: 49.44 | P110: 49.53 | Q110: 49.62 | R110: 49.7 | S110: 49.78 | T110: 49.86 | U110: 49.94 | V110: 50.01 | W110: 50.08 | X110: 50.14 | Y110: 50.2 | Z110: 50.26 | AA110: 50.32 | AB110: 50.38 | AC110: 50.43 | AD110: 50.48 | AE110: 50.52 | AF110: 50.57 | AG110: 50.61 | AH110: 50.65 | AI110: 50.69 | AJ110: 50.73 | AK110: 50.76 | AL110: 50.79 | AM110: 50.83 | AN110: 50.86 | AO110: 50.88 | AP110: 50.91 | AQ110: 50.94 | AR110: 50.96 | AS110: 50.98 | AT110: 51.01 | AU110: 51.03 | AV110: 51.05 | AW110: 51.07 | AX110: 51.09 | AY110: 51.11 | AZ110: 51.12 | BA110: 51.14 | BB110: 51.15 | BC110: 51.17 | BD110: 51.18 | BE110: 51.2 | BF110: 51.21 | BG110: 51.22 | BH110: 51.23 | BI110: 51.24 | BJ110: 51.25 | BK110: 51.26 | BL110: 51.27 | BM110: 51.27 | BN110: 51.28 | BO110: 51.29 | BP110: 51.29 | BQ110: 51.3 | BR110: 51.31 | BS110: 51.31 | BT110: 51.31 | BU110: 51.32 | BV110: 51.32 | BW110: 51.33 | BX110: 51.33 | BY110: 51.33 | BZ110: 51.34 | CA110: 51.34 | CB110: 51.34 | CC110: 51.34 | CD110: 51.35 | CE110: 51.35
A111: 27 | B111: 48.08 | C111: 48.21 | D111: 48.33 | E111: 48.46 | F111: 48.58 | G111: 48.7 | H111: 48.82 | I111: 48.94 | J111: 49.05 | K111: 49.16 | L111: 49.27 | M111: 49.37 | N111: 49.47 | O111: 49.57 | P111: 49.67 | Q111: 49.76 | R111: 49.85 | S111: 49.94 | T111: 50.02 | U111: 50.1 | V111: 50.18 | W111: 50.25 | X111: 50.32 | Y111: 50.39 | Z111: 50.46 | AA111: 50.52 | AB111: 50.58 | AC111: 50.63 | AD111: 50.69 | AE111: 50.74 | AF111: 50.79 | AG111: 50.83 | AH111: 50.88 | AI111: 50.92 | AJ111: 50.96 | AK111: 50.99 | AL111: 51.03 | AM111: 51.06 | AN111: 51.1 | AO111: 51.13 | AP111: 51.16 | AQ111: 51.18 | AR111: 51.21 | AS111: 51.24 | AT111: 51.26 | AU111: 51.28 | AV111: 51.31 | AW111: 51.33 | AX111: 51.35 | AY111: 51.37 | AZ111: 51.38 | BA111: 51.4 | BB111: 51.42 | BC111: 51.43 | BD111: 51.45 | BE111: 51.46 | BF111: 51.48 | BG111: 51.49 | BH111: 51.5 | BI111: 51.51 | BJ111: 51.52 | BK111: 51.53 | BL111: 51.54 | BM111: 51.55 | BN111: 51.55 | BO111: 51.56 | BP111: 51.57 | BQ111: 51.57 | BR111: 51.58 | BS111: 51.58 | BT111: 51.59 | BU111: 51.59 | BV111: 51.6 | BW111: 51.6 | BX111: 51.61 | BY111: 51.61 | BZ111: 51.61 | CA111: 51.61 | CB111: 51.62 | CC111: 51.62 | CD111: 51.62 | CE111: 51.62
A112: 28 | B112: 48.14 | C112: 48.28 | D112: 48.41 | E112: 48.54 | F112: 48.66 | G112: 48.79 | H112: 48.91 | I112: 49.03 | J112: 49.15 | K112: 49.27 | L112: 49.38 | M112: 49.49 | N112: 49.6 | O112: 49.7 | P112: 49.81 | Q112: 49.9 | R112: 50 | S112: 50.09 | T112: 50.18 | U112: 50.27 | V112: 50.35 | W112: 50.43 | X112: 50.5 | Y112: 50.58 | Z112: 50.65 | AA112: 50.71 | AB112: 50.78 | AC112: 50.84 | AD112: 50.9 | AE112: 50.95 | AF112: 51 | AG112: 51.05 | AH112: 51.1 | AI112: 51.15 | AJ112: 51.19 | AK112: 51.23 | AL112: 51.27 | AM112: 51.31 | AN112: 51.34 | AO112: 51.37 | AP112: 51.41 | AQ112: 51.44 | AR112: 51.47 | AS112: 51.49 | AT112: 51.52 | AU112: 51.54 | AV112: 51.57 | AW112: 51.59 | AX112: 51.61 | AY112: 51.64 | AZ112: 51.65 | BA112: 51.67 | BB112: 51.69 | BC112: 51.71 | BD112: 51.72 | BE112: 51.74 | BF112: 51.75 | BG112: 51.77 | BH112: 51.78 | BI112: 51.79 | BJ112: 51.8 | BK112: 51.81 | BL112: 51.82 | BM112: 51.83 | BN112: 51.84 | BO112: 51.84 | BP112: 51.85 | BQ112: 51.86 | BR112: 51.86 | BS112: 51.87 | BT112: 51.87 | BU112: 51.88 | BV112: 51.88 | BW112: 51.89 | BX112: 51.89 | BY112: 51.89 | BZ112: 51.9 | CA112: 51.9 | CB112: 51.9 | CC112: 51.91 | CD112: 51.91 | CE112: 51.91
A113: 29 | B113: 48.2 | C113: 48.34 | D113: 48.48 | E113: 48.61 | F113: 48.74 | G113: 48.87 | H113: 49 | I113: 49.13 | J113: 49.25 | K113: 49.37 | L113: 49.49 | M113: 49.61 | N113: 49.72 | O113: 49.83 | P113: 49.94 | Q113: 50.04 | R113: 50.15 | S113: 50.24 | T113: 50.34 | U113: 50.43 | V113: 50.52 | W113: 50.6 | X113: 50.68 | Y113: 50.76 | Z113: 50.84 | AA113: 50.91 | AB113: 50.98 | AC113: 51.04 | AD113: 51.11 | AE113: 51.17 | AF113: 51.22 | AG113: 51.28 | AH113: 51.33 | AI113: 51.38 | AJ113: 51.43 | AK113: 51.47 | AL113: 51.51 | AM113: 51.55 | AN113: 51.59 | AO113: 51.63 | AP113: 51.66 | AQ113: 51.7 | AR113: 51.73 | AS113: 51.76 | AT113: 51.79 | AU113: 51.81 | AV113: 51.84 | AW113: 51.86 | AX113: 51.89 | AY113: 51.91 | AZ113: 51.93 | BA113: 51.95 | BB113: 51.97 | BC113: 51.99 | BD113: 52.01 | BE113: 52.02 | BF113: 52.04 | BG113: 52.05 | BH113: 52.07 | BI113: 52.08 | BJ113: 52.09 | BK113: 52.1 | BL113: 52.11 | BM113: 52.12 | BN113: 52.13 | BO113: 52.14 | BP113: 52.14 | BQ113: 52.15 | BR113: 52.16 | BS113: 52.16 | BT113: 52.17 | BU113: 52.17 | BV113: 52.18 | BW113: 52.18 | BX113: 52.18 | BY113: 52.19 | BZ113: 52.19 | CA113: 52.19 | CB113: 52.2 | CC113: 52.2 | CD113: 52.2 | CE113: 52.2
A114: 30 | B114: 48.26 | C114: 48.4 | D114: 48.54 | E114: 48.68 | F114: 48.82 | G114: 48.95 | H114: 49.09 | I114: 49.22 | J114: 49.35 | K114: 49.47 | L114: 49.6 | M114: 49.72 | N114: 49.84 | O114: 49.96 | P114: 50.07 | Q114: 50.18 | R114: 50.29 | S114: 50.39 | T114: 50.49 | U114: 50.59 | V114: 50.69 | W114: 50.78 | X114: 50.86 | Y114: 50.95 | Z114: 51.03 | AA114: 51.11 | AB114: 51.18 | AC114: 51.25 | AD114: 51.32 | AE114: 51.39 | AF114: 51.45 | AG114: 51.51 | AH114: 51.56 | AI114: 51.62 | AJ114: 51.67 | AK114: 51.72 | AL114: 51.76 | AM114: 51.81 | AN114: 51.85 | AO114: 51.89 | AP114: 51.92 | AQ114: 51.96 | AR114: 51.99 | AS114: 52.03 | AT114: 52.06 | AU114: 52.09 | AV114: 52.12 | AW114: 52.14 | AX114: 52.17 | AY114: 52.2 | AZ114: 52.22 | BA114: 52.24 | BB114: 52.26 | BC114: 52.28 | BD114: 52.3 | BE114: 52.32 | BF114: 52.33 | BG114: 52.35 | BH114: 52.36 | BI114: 52.38 | BJ114: 52.39 | BK114: 52.4 | BL114: 52.41 | BM114: 52.42 | BN114: 52.43 | BO114: 52.44 | BP114: 52.44 | BQ114: 52.45 | BR114: 52.46 | BS114: 52.46 | BT114: 52.47 | BU114: 52.48 | BV114: 52.48 | BW114: 52.49 | BX114: 52.49 | BY114: 52.49 | BZ114: 52.5 | CA114: 52.5 | CB114: 52.5 | CC114: 52.51 | CD114: 52.51 | CE114: 52.51
A115: 31 | B115: 48.32 | C115: 48.46 | D115: 48.61 | E115: 48.75 | F115: 48.89 | G115: 49.03 | H115: 49.17 | I115: 49.31 | J115: 49.44 | K115: 49.57 | L115: 49.7 | M115: 49.83 | N115: 49.96 | O115: 50.08 | P115: 50.2 | Q115: 50.32 | R115: 50.43 | S115: 50.54 | T115: 50.65 | U115: 50.75 | V115: 50.85 | W115: 50.95 | X115: 51.04 | Y115: 51.13 | Z115: 51.22 | AA115: 51.31 | AB115: 51.39 | AC115: 51.46 | AD115: 51.54 | AE115: 51.61 | AF115: 51.67 | AG115: 51.74 | AH115: 51.8 | AI115: 51.86 | AJ115: 51.91 | AK115: 51.96 | AL115: 52.02 | AM115: 52.06 | AN115: 52.11 | AO115: 52.15 | AP115: 52.19 | AQ115: 52.23 | AR115: 52.27 | AS115: 52.3 | AT115: 52.34 | AU115: 52.37 | AV115: 52.4 | AW115: 52.43 | AX115: 52.46 | AY115: 52.49 | AZ115: 52.51 | BA115: 52.54 | BB115: 52.56 | BC115: 52.58 | BD115: 52.6 | BE115: 52.62 | BF115: 52.64 | BG115: 52.65 | BH115: 52.67 | BI115: 52.68 | BJ115: 52.7 | BK115: 52.71 | BL115: 52.72 | BM115: 52.73 | BN115: 52.74 | BO115: 52.75 | BP115: 52.76 | BQ115: 52.77 | BR115: 52.77 | BS115: 52.78 | BT115: 52.79 | BU115: 52.79 | BV115: 52.8 | BW115: 52.8 | BX115: 52.81 | BY115: 52.81 | BZ115: 52.81 | CA115: 52.82 | CB115: 52.82 | CC115: 52.82 | CD115: 52.83 | CE115: 52.83
A116: 32 | B116: 48.37 | C116: 48.52 | D116: 48.67 | E116: 48.81 | F116: 48.96 | G116: 49.11 | H116: 49.25 | I116: 49.39 | J116: 49.53 | K116: 49.67 | L116: 49.81 | M116: 49.94 | N116: 50.07 | O116: 50.2 | P116: 50.33 | Q116: 50.45 | R116: 50.57 | S116: 50.69 | T116: 50.8 | U116: 50.91 | V116: 51.02 | W116: 51.12 | X116: 51.22 | Y116: 51.32 | Z116: 51.41 | AA116: 51.5 | AB116: 51.59 | AC116: 51.67 | AD116: 51.75 | AE116: 51.83 | AF116: 51.9 | AG116: 51.97 | AH116: 52.04 | AI116: 52.1 | AJ116: 52.16 | AK116: 52.22 | AL116: 52.27 | AM116: 52.32 | AN116: 52.37 | AO116: 52.42 | AP116: 52.47 | AQ116: 52.51 | AR116: 52.55 | AS116: 52.59 | AT116: 52.63 | AU116: 52.66 | AV116: 52.7 | AW116: 52.73 | AX116: 52.76 | AY116: 52.79 | AZ116: 52.82 | BA116: 52.84 | BB116: 52.87 | BC116: 52.89 | BD116: 52.91 | BE116: 52.93 | BF116: 52.95 | BG116: 52.97 | BH116: 52.99 | BI116: 53 | BJ116: 53.02 | BK116: 53.03 | BL116: 53.04 | BM116: 53.05 | BN116: 53.06 | BO116: 53.07 | BP116: 53.08 | BQ116: 53.09 | BR116: 53.1 | BS116: 53.11 | BT116: 53.11 | BU116: 53.12 | BV116: 53.12 | BW116: 53.13 | BX116: 53.13 | BY116: 53.14 | BZ116: 53.14 | CA116: 53.15 | CB116: 53.15 | CC116: 53.15 | CD116: 53.16 | CE116: 53.16
A117: 33 | B117: 48.42 | C117: 48.57 | D117: 48.73 | E117: 48.88 | F117: 49.03 | G117: 49.18 | H117: 49.33 | I117: 49.47 | J117: 49.62 | K117: 49.76 | L117: 49.9 | M117: 50.04 | N117: 50.18 | O117: 50.32 | P117: 50.45 | Q117: 50.58 | R117: 50.71 | S117: 50.83 | T117: 50.95 | U117: 51.07 | V117: 51.18 | W117: 51.29 | X117: 51.4 | Y117: 51.5 | Z117: 51.6 | AA117: 51.7 | AB117: 51.79 | AC117: 51.88 | AD117: 51.97 | AE117: 52.05 | AF117: 52.13 | AG117: 52.21 | AH117: 52.28 | AI117: 52.35 | AJ117: 52.41 | AK117: 52.48 | AL117: 52.53 | AM117: 52.59 | AN117: 52.65 | AO117: 52.7 | AP117: 52.75 | AQ117: 52.79 | AR117: 52.84 | AS117: 52.88 | AT117: 52.92 | AU117: 52.96 | AV117: 53 | AW117: 53.03 | AX117: 53.07 | AY117: 53.1 | AZ117: 53.13 | BA117: 53.16 | BB117: 53.19 | BC117: 53.21 | BD117: 53.24 | BE117: 53.26 | BF117: 53.28 | BG117: 53.3 | BH117: 53.32 | BI117: 53.33 | BJ117: 53.35 | BK117: 53.36 | BL117: 53.38 | BM117: 53.39 | BN117: 53.4 | BO117: 53.41 | BP117: 53.42 | BQ117: 53.43 | BR117: 53.44 | BS117: 53.45 | BT117: 53.45 | BU117: 53.46 | BV117: 53.47 | BW117: 53.47 | BX117: 53.48 | BY117: 53.48 | BZ117: 53.49 | CA117: 53.49 | CB117: 53.49 | CC117: 53.5 | CD117: 53.5 | CE117: 53.5
A118: 34 | B118: 48.47 | C118: 48.62 | D118: 48.78 | E118: 48.94 | F118: 49.09 | G118: 49.25 | H118: 49.4 | I118: 49.55 | J118: 49.7 | K118: 49.85 | L118: 50 | M118: 50.15 | N118: 50.29 | O118: 50.43 | P118: 50.57 | Q118: 50.71 | R118: 50.84 | S118: 50.97 | T118: 51.1 | U118: 51.22 | V118: 51.34 | W118: 51.46 | X118: 51.58 | Y118: 51.69 | Z118: 51.8 | AA118: 51.9 | AB118: 52 | AC118: 52.09 | AD118: 52.19 | AE118: 52.28 | AF118: 52.36 | AG118: 52.44 | AH118: 52.52 | AI118: 52.6 | AJ118: 52.67 | AK118: 52.74 | AL118: 52.8 | AM118: 52.86 | AN118: 52.92 | AO118: 52.98 | AP118: 53.03 | AQ118: 53.08 | AR118: 53.13 | AS118: 53.18 | AT118: 53.22 | AU118: 53.27 | AV118: 53.31 | AW118: 53.35 | AX118: 53.38 | AY118: 53.42 | AZ118: 53.45 | BA118: 53.48 | BB118: 53.51 | BC118: 53.54 | BD118: 53.57 | BE118: 53.59 | BF118: 53.62 | BG118: 53.64 | BH118: 53.66 | BI118: 53.68 | BJ118: 53.69 | BK118: 53.71 | BL118: 53.72 | BM118: 53.74 | BN118: 53.75 | BO118: 53.76 | BP118: 53.77 | BQ118: 53.78 | BR118: 53.79 | BS118: 53.8 | BT118: 53.81 | BU118: 53.82 | BV118: 53.82 | BW118: 53.83 | BX118: 53.83 | BY118: 53.84 | BZ118: 53.84 | CA118: 53.85 | CB118: 53.85 | CC118: 53.86 | CD118: 53.86 | CE118: 53.86
A119: 35 | B119: 48.51 | C119: 48.67 | D119: 48.83 | E119: 48.99 | F119: 49.15 | G119: 49.31 | H119: 49.47 | I119: 49.63 | J119: 49.78 | K119: 49.94 | L119: 50.09 | M119: 50.24 | N119: 50.39 | O119: 50.54 | P119: 50.69 | Q119: 50.83 | R119: 50.97 | S119: 51.11 | T119: 51.24 | U119: 51.38 | V119: 51.5 | W119: 51.63 | X119: 51.75 | Y119: 51.87 | Z119: 51.98 | AA119: 52.1 | AB119: 52.2 | AC119: 52.31 | AD119: 52.41 | AE119: 52.5 | AF119: 52.59 | AG119: 52.68 | AH119: 52.77 | AI119: 52.85 | AJ119: 52.93 | AK119: 53 | AL119: 53.07 | AM119: 53.14 | AN119: 53.2 | AO119: 53.27 | AP119: 53.32 | AQ119: 53.38 | AR119: 53.43 | AS119: 53.48 | AT119: 53.53 | AU119: 53.58 | AV119: 53.63 | AW119: 53.67 | AX119: 53.71 | AY119: 53.75 | AZ119: 53.79 | BA119: 53.82 | BB119: 53.85 | BC119: 53.88 | BD119: 53.91 | BE119: 53.94 | BF119: 53.97 | BG119: 53.99 | BH119: 54.01 | BI119: 54.03 | BJ119: 54.05 | BK119: 54.07 | BL119: 54.08 | BM119: 54.1 | BN119: 54.11 | BO119: 54.13 | BP119: 54.14 | BQ119: 54.15 | BR119: 54.16 | BS119: 54.17 | BT119: 54.18 | BU119: 54.18 | BV119: 54.19 | BW119: 54.2 | BX119: 54.2 | BY119: 54.21 | BZ119: 54.21 | CA119: 54.22 | CB119: 54.22 | CC119: 54.23 | CD119: 54.23 | CE119: 54.23
A120: 36 | B120: 48.56 | C120: 48.72 | D120: 48.88 | E120: 49.05 | F120: 49.21 | G120: 49.38 | H120: 49.54 | I120: 49.7 | J120: 49.86 | K120: 50.02 | L120: 50.18 | M120: 50.34 | N120: 50.49 | O120: 50.65 | P120: 50.8 | Q120: 50.95 | R120: 51.1 | S120: 51.24 | T120: 51.39 | U120: 51.53 | V120: 51.66 | W120: 51.8 | X120: 51.92 | Y120: 52.05 | Z120: 52.17 | AA120: 52.29 | AB120: 52.41 | AC120: 52.52 | AD120: 52.62 | AE120: 52.73 | AF120: 52.83 | AG120: 52.92 | AH120: 53.02 | AI120: 53.1 | AJ120: 53.19 | AK120: 53.27 | AL120: 53.35 | AM120: 53.42 | AN120: 53.49 | AO120: 53.56 | AP120: 53.62 | AQ120: 53.68 | AR120: 53.74 | AS120: 53.8 | AT120: 53.85 | AU120: 53.9 | AV120: 53.95 | AW120: 54 | AX120: 54.05 | AY120: 54.09 | AZ120: 54.13 | BA120: 54.17 | BB120: 54.2 | BC120: 54.24 | BD120: 54.27 | BE120: 54.3 | BF120: 54.33 | BG120: 54.35 | BH120: 54.38 | BI120: 54.4 | BJ120: 54.42 | BK120: 54.44 | BL120: 54.46 | BM120: 54.47 | BN120: 54.49 | BO120: 54.5 | BP120: 54.52 | BQ120: 54.53 | BR120: 54.54 | BS120: 54.55 | BT120: 54.56 | BU120: 54.57 | BV120: 54.58 | BW120: 54.58 | BX120: 54.59 | BY120: 54.6 | BZ120: 54.6 | CA120: 54.61 | CB120: 54.61 | CC120: 54.62 | CD120: 54.62 | CE120: 54.62
A121: 37 | B121: 48.6 | C121: 48.77 | D121: 48.93 | E121: 49.1 | F121: 49.27 | G121: 49.44 | H121: 49.6 | I121: 49.77 | J121: 49.94 | K121: 50.1 | L121: 50.27 | M121: 50.43 | N121: 50.59 | O121: 50.75 | P121: 50.91 | Q121: 51.07 | R121: 51.22 | S121: 51.38 | T121: 51.53 | U121: 51.67 | V121: 51.82 | W121: 51.96 | X121: 52.1 | Y121: 52.23 | Z121: 52.36 | AA121: 52.49 | AB121: 52.61 | AC121: 52.73 | AD121: 52.84 | AE121: 52.96 | AF121: 53.06 | AG121: 53.17 | AH121: 53.27 | AI121: 53.36 | AJ121: 53.45 | AK121: 53.54 | AL121: 53.62 | AM121: 53.7 | AN121: 53.78 | AO121: 53.85 | AP121: 53.92 | AQ121: 53.99 | AR121: 54.06 | AS121: 54.12 | AT121: 54.18 | AU121: 54.23 | AV121: 54.29 | AW121: 54.34 | AX121: 54.39 | AY121: 54.44 | AZ121: 54.48 | BA121: 54.52 | BB121: 54.56 | BC121: 54.6 | BD121: 54.64 | BE121: 54.67 | BF121: 54.7 | BG121: 54.73 | BH121: 54.75 | BI121: 54.78 | BJ121: 54.8 | BK121: 54.82 | BL121: 54.84 | BM121: 54.86 | BN121: 54.88 | BO121: 54.89 | BP121: 54.91 | BQ121: 54.92 | BR121: 54.93 | BS121: 54.95 | BT121: 54.96 | BU121: 54.97 | BV121: 54.97 | BW121: 54.98 | BX121: 54.99 | BY121: 55 | BZ121: 55 | CA121: 55.01 | CB121: 55.01 | CC121: 55.02 | CD121: 55.02 | CE121: 55.03
A122: 38 | B122: 48.64 | C122: 48.81 | D122: 48.98 | E122: 49.15 | F122: 49.32 | G122: 49.49 | H122: 49.66 | I122: 49.84 | J122: 50.01 | K122: 50.18 | L122: 50.35 | M122: 50.52 | N122: 50.69 | O122: 50.85 | P122: 51.02 | Q122: 51.18 | R122: 51.34 | S122: 51.5 | T122: 51.66 | U122: 51.82 | V122: 51.97 | W122: 52.12 | X122: 52.26 | Y122: 52.41 | Z122: 52.54 | AA122: 52.68 | AB122: 52.81 | AC122: 52.94 | AD122: 53.06 | AE122: 53.18 | AF122: 53.3 | AG122: 53.41 | AH122: 53.52 | AI122: 53.62 | AJ122: 53.72 | AK122: 53.81 | AL122: 53.91 | AM122: 53.99 | AN122: 54.08 | AO122: 54.16 | AP122: 54.23 | AQ122: 54.31 | AR122: 54.38 | AS122: 54.45 | AT122: 54.51 | AU122: 54.57 | AV122: 54.63 | AW122: 54.69 | AX122: 54.74 | AY122: 54.8 | AZ122: 54.85 | BA122: 54.89 | BB122: 54.94 | BC122: 54.98 | BD122: 55.02 | BE122: 55.05 | BF122: 55.09 | BG122: 55.12 | BH122: 55.15 | BI122: 55.17 | BJ122: 55.2 | BK122: 55.22 | BL122: 55.24 | BM122: 55.27 | BN122: 55.28 | BO122: 55.3 | BP122: 55.32 | BQ122: 55.33 | BR122: 55.35 | BS122: 55.36 | BT122: 55.37 | BU122: 55.38 | BV122: 55.39 | BW122: 55.4 | BX122: 55.41 | BY122: 55.41 | BZ122: 55.42 | CA122: 55.43 | CB122: 55.43 | CC122: 55.44 | CD122: 55.44 | CE122: 55.45
A123: 39 | B123: 48.68 | C123: 48.85 | D123: 49.02 | E123: 49.2 | F123: 49.37 | G123: 49.55 | H123: 49.72 | I123: 49.9 | J123: 50.08 | K123: 50.25 | L123: 50.43 | M123: 50.6 | N123: 50.78 | O123: 50.95 | P123: 51.12 | Q123: 51.29 | R123: 51.46 | S123: 51.63 | T123: 51.8 | U123: 51.96 | V123: 52.12 | W123: 52.28 | X123: 52.43 | Y123: 52.58 | Z123: 52.73 | AA123: 52.87 | AB123: 53.01 | AC123: 53.15 | AD123: 53.28 | AE123: 53.41 | AF123: 53.53 | AG123: 53.65 | AH123: 53.77 | AI123: 53.88 | AJ123: 53.99 | AK123: 54.09 | AL123: 54.19 | AM123: 54.29 | AN123: 54.38 | AO123: 54.46 | AP123: 54.55 | AQ123: 54.63 | AR123: 54.71 | AS123: 54.78 | AT123: 54.85 | AU123: 54.92 | AV123: 54.99 | AW123: 55.05 | AX123: 55.11 | AY123: 55.17 | AZ123: 55.22 | BA123: 55.27 | BB123: 55.32 | BC123: 55.36 | BD123: 55.41 | BE123: 55.45 | BF123: 55.48 | BG123: 55.52 | BH123: 55.55 | BI123: 55.58 | BJ123: 55.61 | BK123: 55.64 | BL123: 55.66 | BM123: 55.68 | BN123: 55.7 | BO123: 55.72 | BP123: 55.74 | BQ123: 55.76 | BR123: 55.77 | BS123: 55.79 | BT123: 55.8 | BU123: 55.81 | BV123: 55.82 | BW123: 55.83 | BX123: 55.84 | BY123: 55.85 | BZ123: 55.86 | CA123: 55.86 | CB123: 55.87 | CC123: 55.88 | CD123: 55.88 | CE123: 55.89
A124: 40 | B124: 48.71 | C124: 48.89 | D124: 49.06 | E124: 49.24 | F124: 49.42 | G124: 49.6 | H124: 49.78 | I124: 49.96 | J124: 50.14 | K124: 50.32 | L124: 50.5 | M124: 50.68 | N124: 50.86 | O124: 51.04 | P124: 51.22 | Q124: 51.4 | R124: 51.58 | S124: 51.75 | T124: 51.92 | U124: 52.1 | V124: 52.26 | W124: 52.43 | X124: 53.15 | Y124: 53.32 | Z124: 53.48 | AA124: 53.65 | AB124: 53.8 | AC124: 53.96 | AD124: 54.11 | AE124: 54.25 | AF124: 54.39 | AG124: 54.53 | AH124: 54.66 | AI124: 54.79 | AJ124: 54.92 | AK124: 55.03 | AL124: 55.15 | AM124: 55.26 | AN124: 55.36 | AO124: 55.46 | AP124: 55.56 | AQ124: 55.65 | AR124: 55.74 | AS124: 55.83 | AT124: 55.91 | AU124: 55.99 | AV124: 56.07 | AW124: 56.14 | AX124: 56.21 | AY124: 56.28 | AZ124: 56.34 | BA124: 56.4 | BB124: 56.46 | BC124: 56.51 | BD124: 56.56 | BE124: 56.61 | BF124: 56.66 | BG124: 56.7 | BH124: 56.73 | BI124: 56.77 | BJ124: 56.8 | BK124: 56.83 | BL124: 56.86 | BM124: 56.88 | BN124: 56.91 | BO124: 56.93 | BP124: 56.95 | BQ124: 56.97 | BR124: 56.99 | BS124: 57 | BT124: 57.01 | BU124: 57.03 | BV124: 57.04 | BW124: 57.05 | BX124: 57.06 | BY124: 57.07 | BZ124: 57.08 | CA124: 57.08 | CB124: 57.09 | CC124: 57.1 | CD124: 57.1 | CE124: 57.11
A125: 41 | B125: 48.74 | C125: 48.92 | D125: 49.1 | E125: 49.28 | F125: 49.47 | G125: 49.65 | H125: 49.83 | I125: 50.02 | J125: 50.2 | K125: 50.39 | L125: 50.58 | M125: 50.76 | N125: 50.95 | O125: 51.13 | P125: 51.32 | Q125: 51.5 | R125: 51.69 | S125: 51.87 | T125: 52.05 | U125: 52.23 | V125: 52.41 | W125: 52.58 | X125: 53.32 | Y125: 53.5 | Z125: 53.67 | AA125: 53.84 | AB125: 54.01 | AC125: 54.18 | AD125: 54.34 | AE125: 54.49 | AF125: 54.65 | AG125: 54.79 | AH125: 54.94 | AI125: 55.07 | AJ125: 55.21 | AK125: 55.34 | AL125: 55.46 | AM125: 55.58 | AN125: 55.69 | AO125: 55.8 | AP125: 55.91 | AQ125: 56.01 | AR125: 56.11 | AS125: 56.2 | AT125: 56.29 | AU125: 56.38 | AV125: 56.47 | AW125: 56.55 | AX125: 56.63 | AY125: 56.7 | AZ125: 56.77 | BA125: 56.84 | BB125: 56.9 | BC125: 56.96 | BD125: 57.01 | BE125: 57.07 | BF125: 57.11 | BG125: 57.16 | BH125: 57.2 | BI125: 57.24 | BJ125: 57.28 | BK125: 57.31 | BL125: 57.34 | BM125: 57.37 | BN125: 57.39 | BO125: 57.42 | BP125: 57.44 | BQ125: 57.46 | BR125: 57.48 | BS125: 57.5 | BT125: 57.51 | BU125: 57.53 | BV125: 57.54 | BW125: 57.55 | BX125: 57.56 | BY125: 57.57 | BZ125: 57.58 | CA125: 57.59 | CB125: 57.6 | CC125: 57.61 | CD125: 57.61 | CE125: 57.62
A126: 42 | B126: 48.78 | C126: 48.96 | D126: 49.14 | E126: 49.33 | F126: 49.51 | G126: 49.7 | H126: 49.89 | I126: 50.07 | J126: 50.26 | K126: 50.46 | L126: 50.65 | M126: 50.84 | N126: 51.03 | O126: 51.22 | P126: 51.41 | Q126: 51.6 | R126: 51.8 | S126: 51.98 | T126: 52.17 | U126: 52.36 | V126: 52.54 | W126: 52.73 | X126: 53.48 | Y126: 53.67 | Z126: 53.86 | AA126: 54.04 | AB126: 54.22 | AC126: 54.39 | AD126: 54.57 | AE126: 54.73 | AF126: 54.9 | AG126: 55.05 | AH126: 55.21 | AI126: 55.36 | AJ126: 55.5 | AK126: 55.64 | AL126: 55.77 | AM126: 55.9 | AN126: 56.03 | AO126: 56.15 | AP126: 56.26 | AQ126: 56.37 | AR126: 56.48 | AS126: 56.59 | AT126: 56.68 | AU126: 56.78 | AV126: 56.87 | AW126: 56.96 | AX126: 57.05 | AY126: 57.13 | AZ126: 57.21 | BA126: 57.28 | BB126: 57.35 | BC126: 57.42 | BD126: 57.48 | BE126: 57.53 | BF126: 57.59 | BG126: 57.64 | BH126: 57.68 | BI126: 57.73 | BJ126: 57.77 | BK126: 57.8 | BL126: 57.84 | BM126: 57.87 | BN126: 57.9 | BO126: 57.93 | BP126: 57.95 | BQ126: 57.97 | BR126: 57.99 | BS126: 58.01 | BT126: 58.03 | BU126: 58.05 | BV126: 58.06 | BW126: 58.08 | BX126: 58.09 | BY126: 58.1 | BZ126: 58.11 | CA126: 58.12 | CB126: 58.13 | CC126: 58.14 | CD126: 58.14 | CE126: 58.15
A127: 43 | B127: 48.81 | C127: 48.99 | D127: 49.18 | E127: 49.36 | F127: 49.55 | G127: 49.74 | H127: 49.93 | I127: 50.13 | J127: 50.32 | K127: 50.52 | L127: 50.71 | M127: 50.91 | N127: 51.11 | O127: 51.31 | P127: 51.5 | Q127: 51.7 | R127: 51.9 | S127: 52.1 | T127: 52.29 | U127: 52.49 | V127: 52.68 | W127: 52.87 | X127: 53.65 | Y127: 53.84 | Z127: 54.04 | AA127: 54.23 | AB127: 54.42 | AC127: 54.61 | AD127: 54.79 | AE127: 54.97 | AF127: 55.14 | AG127: 55.31 | AH127: 55.48 | AI127: 55.64 | AJ127: 55.79 | AK127: 55.95 | AL127: 56.09 | AM127: 56.23 | AN127: 56.37 | AO127: 56.5 | AP127: 56.62 | AQ127: 56.74 | AR127: 56.86 | AS127: 56.97 | AT127: 57.08 | AU127: 57.19 | AV127: 57.29 | AW127: 57.39 | AX127: 57.48 | AY127: 57.57 | AZ127: 57.66 | BA127: 57.74 | BB127: 57.82 | BC127: 57.89 | BD127: 57.96 | BE127: 58.02 | BF127: 58.08 | BG127: 58.13 | BH127: 58.19 | BI127: 58.23 | BJ127: 58.28 | BK127: 58.32 | BL127: 58.36 | BM127: 58.39 | BN127: 58.43 | BO127: 58.46 | BP127: 58.48 | BQ127: 58.51 | BR127: 58.53 | BS127: 58.55 | BT127: 58.57 | BU127: 58.59 | BV127: 58.61 | BW127: 58.62 | BX127: 58.64 | BY127: 58.65 | BZ127: 58.66 | CA127: 58.67 | CB127: 58.68 | CC127: 58.69 | CD127: 58.7 | CE127: 58.7
A128: 44 | B128: 48.84 | C128: 49.02 | D128: 49.21 | E128: 49.4 | F128: 49.59 | G128: 49.79 | H128: 49.98 | I128: 50.18 | J128: 50.38 | K128: 50.58 | L128: 50.78 | M128: 50.98 | N128: 51.18 | O128: 51.39 | P128: 51.59 | Q128: 51.79 | R128: 52 | S128: 52.2 | T128: 52.41 | U128: 52.61 | V128: 52.81 | W128: 53.01 | X128: 53.8 | Y128: 54.01 | Z128: 54.22 | AA128: 54.42 | AB128: 54.62 | AC128: 54.82 | AD128: 55.02 | AE128: 55.21 | AF128: 55.39 | AG128: 55.57 | AH128: 55.75 | AI128: 55.92 | AJ128: 56.09 | AK128: 56.25 | AL128: 56.41 | AM128: 56.56 | AN128: 56.71 | AO128: 56.85 | AP128: 56.99 | AQ128: 57.12 | AR128: 57.25 | AS128: 57.37 | AT128: 57.49 | AU128: 57.61 | AV128: 57.72 | AW128: 57.83 | AX128: 57.93 | AY128: 58.03 | AZ128: 58.13 | BA128: 58.21 | BB128: 58.3 | BC128: 58.38 | BD128: 58.45 | BE128: 58.52 | BF128: 58.59 | BG128: 58.65 | BH128: 58.71 | BI128: 58.76 | BJ128: 58.81 | BK128: 58.86 | BL128: 58.9 | BM128: 58.94 | BN128: 58.97 | BO128: 59.01 | BP128: 59.04 | BQ128: 59.07 | BR128: 59.09 | BS128: 59.12 | BT128: 59.14 | BU128: 59.16 | BV128: 59.18 | BW128: 59.19 | BX128: 59.21 | BY128: 59.22 | BZ128: 59.23 | CA128: 59.25 | CB128: 59.26 | CC128: 59.27 | CD128: 59.28 | CE128: 59.28
A129: 45 | B129: 48.86 | C129: 49.05 | D129: 49.24 | E129: 49.44 | F129: 49.63 | G129: 49.83 | H129: 50.03 | I129: 50.23 | J129: 50.43 | K129: 50.63 | L129: 50.84 | M129: 51.04 | N129: 51.25 | O129: 51.46 | P129: 51.67 | Q129: 51.88 | R129: 52.09 | S129: 52.31 | T129: 52.52 | U129: 52.73 | V129: 52.94 | W129: 53.15 | X129: 53.96 | Y129: 54.18 | Z129: 54.39 | AA129: 54.61 | AB129: 54.82 | AC129: 55.03 | AD129: 55.24 | AE129: 55.44 | AF129: 55.64 | AG129: 55.83 | AH129: 56.02 | AI129: 56.21 | AJ129: 56.39 | AK129: 56.56 | AL129: 56.73 | AM129: 56.9 | AN129: 57.05 | AO129: 57.21 | AP129: 57.36 | AQ129: 57.5 | AR129: 57.64 | AS129: 57.78 | AT129: 57.91 | AU129: 58.04 | AV129: 58.16 | AW129: 58.28 | AX129: 58.39 | AY129: 58.5 | AZ129: 58.61 | BA129: 58.7 | BB129: 58.8 | BC129: 58.88 | BD129: 58.97 | BE129: 59.05 | BF129: 59.12 | BG129: 59.19 | BH129: 59.25 | BI129: 59.31 | BJ129: 59.36 | BK129: 59.41 | BL129: 59.46 | BM129: 59.5 | BN129: 59.54 | BO129: 59.58 | BP129: 59.62 | BQ129: 59.65 | BR129: 59.68 | BS129: 59.7 | BT129: 59.73 | BU129: 59.75 | BV129: 59.77 | BW129: 59.79 | BX129: 59.81 | BY129: 59.82 | BZ129: 59.84 | CA129: 59.85 | CB129: 59.86 | CC129: 59.87 | CD129: 59.88 | CE129: 59.89
A130: 46 | B130: 48.89 | C130: 49.08 | D130: 49.27 | E130: 49.47 | F130: 49.67 | G130: 49.87 | H130: 50.07 | I130: 50.27 | J130: 50.48 | K130: 50.69 | L130: 50.9 | M130: 51.11 | N130: 51.32 | O130: 51.54 | P130: 51.75 | Q130: 51.97 | R130: 52.19 | S130: 52.41 | T130: 52.62 | U130: 52.84 | V130: 53.06 | W130: 53.28 | X130: 54.11 | Y130: 54.34 | Z130: 54.57 | AA130: 54.79 | AB130: 55.02 | AC130: 55.24 | AD130: 55.45 | AE130: 55.67 | AF130: 55.88 | AG130: 56.09 | AH130: 56.29 | AI130: 56.49 | AJ130: 56.68 | AK130: 56.87 | AL130: 57.05 | AM130: 57.23 | AN130: 57.4 | AO130: 57.57 | AP130: 57.73 | AQ130: 57.89 | AR130: 58.04 | AS130: 58.19 | AT130: 58.34 | AU130: 58.47 | AV130: 58.61 | AW130: 58.74 | AX130: 58.87 | AY130: 58.99 | AZ130: 59.1 | BA130: 59.21 | BB130: 59.31 | BC130: 59.41 | BD130: 59.5 | BE130: 59.59 | BF130: 59.67 | BG130: 59.74 | BH130: 59.81 | BI130: 59.88 | BJ130: 59.94 | BK130: 60 | BL130: 60.05 | BM130: 60.1 | BN130: 60.14 | BO130: 60.18 | BP130: 60.22 | BQ130: 60.26 | BR130: 60.29 | BS130: 60.32 | BT130: 60.35 | BU130: 60.37 | BV130: 60.39 | BW130: 60.41 | BX130: 60.43 | BY130: 60.45 | BZ130: 60.47 | CA130: 60.48 | CB130: 60.5 | CC130: 60.51 | CD130: 60.52 | CE130: 60.53
A131: 47 | B131: 48.91 | C131: 49.11 | D131: 49.3 | E131: 49.5 | F131: 49.7 | G131: 49.9 | H131: 50.11 | I131: 50.31 | J131: 50.52 | K131: 50.74 | L131: 50.95 | M131: 51.17 | N131: 51.39 | O131: 51.61 | P131: 51.83 | Q131: 52.05 | R131: 52.28 | S131: 52.5 | T131: 52.73 | U131: 52.96 | V131: 53.18 | W131: 53.41 | X131: 54.25 | Y131: 54.49 | Z131: 54.73 | AA131: 54.97 | AB131: 55.21 | AC131: 55.44 | AD131: 55.67 | AE131: 55.9 | AF131: 56.12 | AG131: 56.34 | AH131: 56.56 | AI131: 56.77 | AJ131: 56.98 | AK131: 57.18 | AL131: 57.38 | AM131: 57.57 | AN131: 57.76 | AO131: 57.94 | AP131: 58.11 | AQ131: 58.29 | AR131: 58.45 | AS131: 58.61 | AT131: 58.77 | AU131: 58.92 | AV131: 59.07 | AW131: 59.21 | AX131: 59.35 | AY131: 59.48 | AZ131: 59.61 | BA131: 59.73 | BB131: 59.84 | BC131: 59.95 | BD131: 60.05 | BE131: 60.15 | BF131: 60.24 | BG131: 60.32 | BH131: 60.4 | BI131: 60.47 | BJ131: 60.54 | BK131: 60.6 | BL131: 60.66 | BM131: 60.71 | BN131: 60.76 | BO131: 60.81 | BP131: 60.85 | BQ131: 60.89 | BR131: 60.93 | BS131: 60.96 | BT131: 60.99 | BU131: 61.02 | BV131: 61.05 | BW131: 61.07 | BX131: 61.09 | BY131: 61.11 | BZ131: 61.13 | CA131: 61.15 | CB131: 61.16 | CC131: 61.17 | CD131: 61.19 | CE131: 61.2
A132: 48 | B132: 48.94 | C132: 49.13 | D132: 49.33 | E132: 49.53 | F132: 49.73 | G132: 49.94 | H132: 50.15 | I132: 50.36 | J132: 50.57 | K132: 50.79 | L132: 51 | M132: 51.22 | N132: 51.45 | O132: 51.67 | P132: 51.9 | Q132: 52.13 | R132: 52.36 | S132: 52.59 | T132: 52.83 | U132: 53.06 | V132: 53.3 | W132: 53.53 | X132: 54.39 | Y132: 54.65 | Z132: 54.9 | AA132: 55.14 | AB132: 55.39 | AC132: 55.64 | AD132: 55.88 | AE132: 56.12 | AF132: 56.36 | AG132: 56.59 | AH132: 56.83 | AI132: 57.05 | AJ132: 57.27 | AK132: 57.49 | AL132: 57.7 | AM132: 57.91 | AN132: 58.11 | AO132: 58.31 | AP132: 58.5 | AQ132: 58.68 | AR132: 58.87 | AS132: 59.04 | AT132: 59.21 | AU132: 59.38 | AV132: 59.54 | AW132: 59.7 | AX132: 59.85 | AY132: 60 | AZ132: 60.13 | BA132: 60.27 | BB132: 60.39 | BC132: 60.51 | BD132: 60.62 | BE132: 60.73 | BF132: 60.83 | BG132: 60.92 | BH132: 61.01 | BI132: 61.09 | BJ132: 61.16 | BK132: 61.23 | BL132: 61.3 | BM132: 61.36 | BN132: 61.41 | BO132: 61.46 | BP132: 61.51 | BQ132: 61.55 | BR132: 61.6 | BS132: 61.63 | BT132: 61.67 | BU132: 61.7 | BV132: 61.73 | BW132: 61.75 | BX132: 61.78 | BY132: 61.8 | BZ132: 61.82 | CA132: 61.84 | CB132: 61.86 | CC132: 61.87 | CD132: 61.89 | CE132: 61.9
A133: 49 | B133: 48.96 | C133: 49.16 | D133: 49.36 | E133: 49.56 | F133: 49.76 | G133: 49.97 | H133: 50.18 | I133: 50.4 | J133: 50.61 | K133: 50.83 | L133: 51.05 | M133: 51.28 | N133: 51.51 | O133: 51.74 | P133: 51.97 | Q133: 52.21 | R133: 52.44 | S133: 52.68 | T133: 52.92 | U133: 53.17 | V133: 53.41 | W133: 53.65 | X133: 54.53 | Y133: 54.79 | Z133: 55.05 | AA133: 55.31 | AB133: 55.57 | AC133: 55.83 | AD133: 56.09 | AE133: 56.34 | AF133: 56.59 | AG133: 56.84 | AH133: 57.09 | AI133: 57.33 | AJ133: 57.57 | AK133: 57.8 | AL133: 58.03 | AM133: 58.25 | AN133: 58.47 | AO133: 58.68 | AP133: 58.89 | AQ133: 59.09 | AR133: 59.28 | AS133: 59.47 | AT133: 59.66 | AU133: 59.84 | AV133: 60.02 | AW133: 60.19 | AX133: 60.36 | AY133: 60.52 | AZ133: 60.67 | BA133: 60.82 | BB133: 60.96 | BC133: 61.09 | BD133: 61.21 | BE133: 61.33 | BF133: 61.44 | BG133: 61.54 | BH133: 61.64 | BI133: 61.72 | BJ133: 61.81 | BK133: 61.89 | BL133: 61.96 | BM133: 62.03 | BN133: 62.09 | BO133: 62.14 | BP133: 62.2 | BQ133: 62.25 | BR133: 62.29 | BS133: 62.33 | BT133: 62.37 | BU133: 62.41 | BV133: 62.44 | BW133: 62.47 | BX133: 62.5 | BY133: 62.52 | BZ133: 62.54 | CA133: 62.57 | CB133: 62.58 | CC133: 62.6 | CD133: 62.62 | CE133: 62.63
A134: 50 | B134: 48.98 | C134: 49.18 | D134: 49.38 | E134: 49.58 | F134: 49.79 | G134: 50 | H134: 50.22 | I134: 50.43 | J134: 50.65 | K134: 50.88 | L134: 51.1 | M134: 51.33 | N134: 51.56 | O134: 51.8 | P134: 52.04 | Q134: 52.28 | R134: 52.52 | S134: 52.77 | T134: 53.02 | U134: 53.27 | V134: 53.52 | W134: 53.77 | X134: 54.66 | Y134: 54.94 | Z134: 55.21 | AA134: 55.48 | AB134: 55.75 | AC134: 56.02 | AD134: 56.29 | AE134: 56.56 | AF134: 56.83 | AG134: 57.09 | AH134: 57.35 | AI134: 57.61 | AJ134: 57.86 | AK134: 58.11 | AL134: 58.35 | AM134: 58.59 | AN134: 58.82 | AO134: 59.05 | AP134: 59.28 | AQ134: 59.49 | AR134: 59.71 | AS134: 59.91 | AT134: 60.12 | AU134: 60.32 | AV134: 60.51 | AW134: 60.7 | AX134: 60.88 | AY134: 61.06 | AZ134: 61.23 | BA134: 61.39 | BB134: 61.54 | BC134: 61.68 | BD134: 61.82 | BE134: 61.95 | BF134: 62.07 | BG134: 62.18 | BH134: 62.29 | BI134: 62.39 | BJ134: 62.48 | BK134: 62.57 | BL134: 62.65 | BM134: 62.72 | BN134: 62.79 | BO134: 62.85 | BP134: 62.91 | BQ134: 62.97 | BR134: 63.02 | BS134: 63.06 | BT134: 63.11 | BU134: 63.15 | BV134: 63.18 | BW134: 63.22 | BX134: 63.25 | BY134: 63.27 | BZ134: 63.3 | CA134: 63.32 | CB134: 63.35 | CC134: 63.37 | CD134: 63.38 | CE134: 63.4
A135: 51 | B135: 49 | C135: 49.2 | D135: 49.4 | E135: 49.61 | F135: 49.82 | G135: 50.03 | H135: 50.25 | I135: 50.47 | J135: 50.69 | K135: 50.92 | L135: 51.15 | M135: 51.38 | N135: 51.62 | O135: 51.86 | P135: 52.1 | Q135: 52.35 | R135: 52.6 | S135: 52.85 | T135: 53.1 | U135: 53.36 | V135: 53.62 | W135: 53.88 | X135: 54.79 | Y135: 55.07 | Z135: 55.36 | AA135: 55.64 | AB135: 55.92 | AC135: 56.21 | AD135: 56.49 | AE135: 56.77 | AF135: 57.05 | AG135: 57.33 | AH135: 57.61 | AI135: 57.88 | AJ135: 58.15 | AK135: 58.41 | AL135: 58.67 | AM135: 58.93 | AN135: 59.18 | AO135: 59.43 | AP135: 59.67 | AQ135: 59.9 | AR135: 60.13 | AS135: 60.36 | AT135: 60.58 | AU135: 60.8 | AV135: 61.01 | AW135: 61.22 | AX135: 61.42 | AY135: 61.61 | AZ135: 61.79 | BA135: 61.97 | BB135: 62.14 | BC135: 62.3 | BD135: 62.45 | BE135: 62.59 | BF135: 62.72 | BG135: 62.85 | BH135: 62.97 | BI135: 63.08 | BJ135: 63.18 | BK135: 63.27 | BL135: 63.36 | BM135: 63.45 | BN135: 63.52 | BO135: 63.59 | BP135: 63.66 | BQ135: 63.72 | BR135: 63.78 | BS135: 63.83 | BT135: 63.87 | BU135: 63.92 | BV135: 63.96 | BW135: 64 | BX135: 64.03 | BY135: 64.06 | BZ135: 64.09 | CA135: 64.12 | CB135: 64.14 | CC135: 64.16 | CD135: 64.19 | CE135: 64.2
A136: 52 | B136: 49.02 | C136: 49.22 | D136: 49.43 | E136: 49.63 | F136: 49.85 | G136: 50.06 | H136: 50.28 | I136: 50.5 | J136: 50.73 | K136: 50.96 | L136: 51.19 | M136: 51.43 | N136: 51.67 | O136: 51.91 | P136: 52.16 | Q136: 52.41 | R136: 52.67 | S136: 52.93 | T136: 53.19 | U136: 53.45 | V136: 53.72 | W136: 53.99 | X136: 54.92 | Y136: 55.21 | Z136: 55.5 | AA136: 55.79 | AB136: 56.09 | AC136: 56.39 | AD136: 56.68 | AE136: 56.98 | AF136: 57.27 | AG136: 57.57 | AH136: 57.86 | AI136: 58.15 | AJ136: 58.43 | AK136: 58.72 | AL136: 58.99 | AM136: 59.27 | AN136: 59.54 | AO136: 59.8 | AP136: 60.06 | AQ136: 60.32 | AR136: 60.57 | AS136: 60.81 | AT136: 61.05 | AU136: 61.29 | AV136: 61.52 | AW136: 61.74 | AX136: 61.96 | AY136: 62.17 | AZ136: 62.37 | BA136: 62.57 | BB136: 62.75 | BC136: 62.93 | BD136: 63.09 | BE136: 63.25 | BF136: 63.4 | BG136: 63.54 | BH136: 63.67 | BI136: 63.79 | BJ136: 63.9 | BK136: 64.01 | BL136: 64.11 | BM136: 64.2 | BN136: 64.28 | BO136: 64.36 | BP136: 64.43 | BQ136: 64.5 | BR136: 64.56 | BS136: 64.62 | BT136: 64.67 | BU136: 64.72 | BV136: 64.77 | BW136: 64.81 | BX136: 64.85 | BY136: 64.88 | BZ136: 64.91 | CA136: 64.94 | CB136: 64.97 | CC136: 65 | CD136: 65.02 | CE136: 65.04
A137: 53 | B137: 49.04 | C137: 49.24 | D137: 49.45 | E137: 49.66 | F137: 49.87 | G137: 50.09 | H137: 50.31 | I137: 50.53 | J137: 50.76 | K137: 50.99 | L137: 51.23 | M137: 51.47 | N137: 51.72 | O137: 51.96 | P137: 52.22 | Q137: 52.48 | R137: 52.74 | S137: 53 | T137: 53.27 | U137: 53.54 | V137: 53.81 | W137: 54.09 | X137: 55.03 | Y137: 55.34 | Z137: 55.64 | AA137: 55.95 | AB137: 56.25 | AC137: 56.56 | AD137: 56.87 | AE137: 57.18 | AF137: 57.49 | AG137: 57.8 | AH137: 58.11 | AI137: 58.41 | AJ137: 58.72 | AK137: 59.02 | AL137: 59.31 | AM137: 59.6 | AN137: 59.89 | AO137: 60.17 | AP137: 60.45 | AQ137: 60.73 | AR137: 61 | AS137: 61.26 | AT137: 61.52 | AU137: 61.78 | AV137: 62.03 | AW137: 62.28 | AX137: 62.52 | AY137: 62.75 | AZ137: 62.97 | BA137: 63.18 | BB137: 63.38 | BC137: 63.57 | BD137: 63.76 | BE137: 63.93 | BF137: 64.09 | BG137: 64.25 | BH137: 64.39 | BI137: 64.52 | BJ137: 64.65 | BK137: 64.77 | BL137: 64.87 | BM137: 64.98 | BN137: 65.07 | BO137: 65.16 | BP137: 65.24 | BQ137: 65.31 | BR137: 65.38 | BS137: 65.44 | BT137: 65.5 | BU137: 65.56 | BV137: 65.61 | BW137: 65.65 | BX137: 65.7 | BY137: 65.73 | BZ137: 65.77 | CA137: 65.8 | CB137: 65.83 | CC137: 65.86 | CD137: 65.89 | CE137: 65.91
A138: 54 | B138: 49.06 | C138: 49.26 | D138: 49.47 | E138: 49.68 | F138: 49.89 | G138: 50.11 | H138: 50.34 | I138: 50.56 | J138: 50.79 | K138: 51.03 | L138: 51.27 | M138: 51.51 | N138: 51.76 | O138: 52.02 | P138: 52.27 | Q138: 52.53 | R138: 52.8 | S138: 53.07 | T138: 53.35 | U138: 53.62 | V138: 53.91 | W138: 54.19 | X138: 55.15 | Y138: 55.46 | Z138: 55.77 | AA138: 56.09 | AB138: 56.41 | AC138: 56.73 | AD138: 57.05 | AE138: 57.38 | AF138: 57.7 | AG138: 58.03 | AH138: 58.35 | AI138: 58.67 | AJ138: 58.99 | AK138: 59.31 | AL138: 59.63 | AM138: 59.94 | AN138: 60.24 | AO138: 60.55 | AP138: 60.85 | AQ138: 61.14 | AR138: 61.43 | AS138: 61.72 | AT138: 62 | AU138: 62.28 | AV138: 62.55 | AW138: 62.82 | AX138: 63.08 | AY138: 63.33 | AZ138: 63.57 | BA138: 63.81 | BB138: 64.03 | BC138: 64.24 | BD138: 64.44 | BE138: 64.63 | BF138: 64.81 | BG138: 64.98 | BH138: 65.14 | BI138: 65.28 | BJ138: 65.42 | BK138: 65.55 | BL138: 65.67 | BM138: 65.78 | BN138: 65.89 | BO138: 65.98 | BP138: 66.07 | BQ138: 66.16 | BR138: 66.23 | BS138: 66.3 | BT138: 66.37 | BU138: 66.43 | BV138: 66.48 | BW138: 66.53 | BX138: 66.58 | BY138: 66.62 | BZ138: 66.66 | CA138: 66.7 | CB138: 66.73 | CC138: 66.76 | CD138: 66.79 | CE138: 66.82
A139: 55 | B139: 49.07 | C139: 49.28 | D139: 49.49 | E139: 49.7 | F139: 49.92 | G139: 50.14 | H139: 50.36 | I139: 50.59 | J139: 50.83 | K139: 51.06 | L139: 51.31 | M139: 51.55 | N139: 51.81 | O139: 52.06 | P139: 52.32 | Q139: 52.59 | R139: 52.86 | S139: 53.14 | T139: 53.42 | U139: 53.7 | V139: 53.99 | W139: 54.29 | X139: 55.26 | Y139: 55.58 | Z139: 55.9 | AA139: 56.23 | AB139: 56.56 | AC139: 56.9 | AD139: 57.23 | AE139: 57.57 | AF139: 57.91 | AG139: 58.25 | AH139: 58.59 | AI139: 58.93 | AJ139: 59.27 | AK139: 59.6 | AL139: 59.94 | AM139: 60.27 | AN139: 60.59 | AO139: 60.92 | AP139: 61.24 | AQ139: 61.56 | AR139: 61.87 | AS139: 62.18 | AT139: 62.48 | AU139: 62.78 | AV139: 63.08 | AW139: 63.37 | AX139: 63.65 | AY139: 63.93 | AZ139: 64.19 | BA139: 64.45 | BB139: 64.69 | BC139: 64.92 | BD139: 65.14 | BE139: 65.35 | BF139: 65.55 | BG139: 65.74 | BH139: 65.91 | BI139: 66.07 | BJ139: 66.23 | BK139: 66.37 | BL139: 66.5 | BM139: 66.63 | BN139: 66.74 | BO139: 66.85 | BP139: 66.95 | BQ139: 67.04 | BR139: 67.12 | BS139: 67.2 | BT139: 67.27 | BU139: 67.34 | BV139: 67.4 | BW139: 67.45 | BX139: 67.51 | BY139: 67.55 | BZ139: 67.6 | CA139: 67.64 | CB139: 67.67 | CC139: 67.71 | CD139: 67.74 | CE139: 67.77
A140: 56 | B140: 49.09 | C140: 49.3 | D140: 49.51 | E140: 49.72 | F140: 49.94 | G140: 50.16 | H140: 50.39 | I140: 50.62 | J140: 50.86 | K140: 51.1 | L140: 51.34 | M140: 51.59 | N140: 51.85 | O140: 52.11 | P140: 52.37 | Q140: 52.65 | R140: 52.92 | S140: 53.2 | T140: 53.49 | U140: 53.78 | V140: 54.08 | W140: 54.38 | X140: 55.36 | Y140: 55.69 | Z140: 56.03 | AA140: 56.37 | AB140: 56.71 | AC140: 57.05 | AD140: 57.4 | AE140: 57.76 | AF140: 58.11 | AG140: 58.47 | AH140: 58.82 | AI140: 59.18 | AJ140: 59.54 | AK140: 59.89 | AL140: 60.24 | AM140: 60.59 | AN140: 60.94 | AO140: 61.29 | AP140: 61.63 | AQ140: 61.97 | AR140: 62.31 | AS140: 62.64 | AT140: 62.97 | AU140: 63.29 | AV140: 63.62 | AW140: 63.93 | AX140: 64.24 | AY140: 64.54 | AZ140: 64.83 | BA140: 65.11 | BB140: 65.37 | BC140: 65.63 | BD140: 65.87 | BE140: 66.1 | BF140: 66.32 | BG140: 66.52 | BH140: 66.71 | BI140: 66.89 | BJ140: 67.06 | BK140: 67.22 | BL140: 67.37 | BM140: 67.5 | BN140: 67.63 | BO140: 67.75 | BP140: 67.86 | BQ140: 67.96 | BR140: 68.05 | BS140: 68.14 | BT140: 68.22 | BU140: 68.29 | BV140: 68.36 | BW140: 68.42 | BX140: 68.48 | BY140: 68.53 | BZ140: 68.58 | CA140: 68.62 | CB140: 68.66 | CC140: 68.7 | CD140: 68.73 | CE140: 68.77
A141: 57 | B141: 49.1 | C141: 49.31 | D141: 49.52 | E141: 49.74 | F141: 49.96 | G141: 50.18 | H141: 50.41 | I141: 50.65 | J141: 50.88 | K141: 51.13 | L141: 51.37 | M141: 51.63 | N141: 51.89 | O141: 52.15 | P141: 52.42 | Q141: 52.7 | R141: 52.98 | S141: 53.27 | T141: 53.56 | U141: 53.85 | V141: 54.16 | W141: 54.46 | X141: 55.46 | Y141: 55.8 | Z141: 56.15 | AA141: 56.5 | AB141: 56.85 | AC141: 57.21 | AD141: 57.57 | AE141: 57.94 | AF141: 58.31 | AG141: 58.68 | AH141: 59.05 | AI141: 59.43 | AJ141: 59.8 | AK141: 60.17 | AL141: 60.55 | AM141: 60.92 | AN141: 61.29 | AO141: 61.66 | AP141: 62.02 | AQ141: 62.39 | AR141: 62.75 | AS141: 63.1 | AT141: 63.46 | AU141: 63.81 | AV141: 64.16 | AW141: 64.5 | AX141: 64.84 | AY141: 65.16 | AZ141: 65.48 | BA141: 65.78 | BB141: 66.07 | BC141: 66.35 | BD141: 66.62 | BE141: 66.87 | BF141: 67.11 | BG141: 67.34 | BH141: 67.55 | BI141: 67.75 | BJ141: 67.93 | BK141: 68.11 | BL141: 68.27 | BM141: 68.42 | BN141: 68.56 | BO141: 68.69 | BP141: 68.81 | BQ141: 68.92 | BR141: 69.03 | BS141: 69.12 | BT141: 69.21 | BU141: 69.29 | BV141: 69.36 | BW141: 69.43 | BX141: 69.5 | BY141: 69.55 | BZ141: 69.61 | CA141: 69.66 | CB141: 69.7 | CC141: 69.74 | CD141: 69.78 | CE141: 69.82
A142: 58 | B142: 49.12 | C142: 49.33 | D142: 49.54 | E142: 49.76 | F142: 49.98 | G142: 50.2 | H142: 50.43 | I142: 50.67 | J142: 50.91 | K142: 51.16 | L142: 51.41 | M142: 51.66 | N142: 51.92 | O142: 52.19 | P142: 52.47 | Q142: 52.75 | R142: 53.03 | S142: 53.32 | T142: 53.62 | U142: 53.92 | V142: 54.23 | W142: 54.55 | X142: 55.56 | Y142: 55.91 | Z142: 56.26 | AA142: 56.62 | AB142: 56.99 | AC142: 57.36 | AD142: 57.73 | AE142: 58.11 | AF142: 58.5 | AG142: 58.89 | AH142: 59.28 | AI142: 59.67 | AJ142: 60.06 | AK142: 60.45 | AL142: 60.85 | AM142: 61.24 | AN142: 61.63 | AO142: 62.02 | AP142: 62.41 | AQ142: 62.8 | AR142: 63.19 | AS142: 63.57 | AT142: 63.95 | AU142: 64.33 | AV142: 64.71 | AW142: 65.08 | AX142: 65.44 | AY142: 65.8 | AZ142: 66.14 | BA142: 66.47 | BB142: 66.79 | BC142: 67.1 | BD142: 67.39 | BE142: 67.67 | BF142: 67.93 | BG142: 68.18 | BH142: 68.42 | BI142: 68.64 | BJ142: 68.84 | BK142: 69.03 | BL142: 69.21 | BM142: 69.38 | BN142: 69.54 | BO142: 69.68 | BP142: 69.81 | BQ142: 69.94 | BR142: 70.05 | BS142: 70.16 | BT142: 70.25 | BU142: 70.34 | BV142: 70.43 | BW142: 70.5 | BX142: 70.57 | BY142: 70.64 | BZ142: 70.7 | CA142: 70.75 | CB142: 70.8 | CC142: 70.85 | CD142: 70.89 | CE142: 70.93
A143: 59 | B143: 49.13 | C143: 49.34 | D143: 49.56 | E143: 49.78 | F143: 50 | G143: 50.22 | H143: 50.46 | I143: 50.69 | J143: 50.94 | K143: 51.18 | L143: 51.44 | M143: 51.7 | N143: 51.96 | O143: 52.23 | P143: 52.51 | Q143: 52.79 | R143: 53.08 | S143: 53.38 | T143: 53.68 | U143: 53.99 | V143: 54.31 | W143: 54.63 | X143: 55.65 | Y143: 56.01 | Z143: 56.37 | AA143: 56.74 | AB143: 57.12 | AC143: 57.5 | AD143: 57.89 | AE143: 58.29 | AF143: 58.68 | AG143: 59.09 | AH143: 59.49 | AI143: 59.9 | AJ143: 60.32 | AK143: 60.73 | AL143: 61.14 | AM143: 61.56 | AN143: 61.97 | AO143: 62.39 | AP143: 62.8 | AQ143: 63.21 | AR143: 63.63 | AS143: 64.04 | AT143: 64.45 | AU143: 64.86 | AV143: 65.26 | AW143: 65.67 | AX143: 66.06 | AY143: 66.45 | AZ143: 66.82 | BA143: 67.19 | BB143: 67.54 | BC143: 67.87 | BD143: 68.19 | BE143: 68.5 | BF143: 68.79 | BG143: 69.06 | BH143: 69.32 | BI143: 69.56 | BJ143: 69.79 | BK143: 70 | BL143: 70.2 | BM143: 70.39 | BN143: 70.56 | BO143: 70.72 | BP143: 70.87 | BQ143: 71.01 | BR143: 71.13 | BS143: 71.25 | BT143: 71.36 | BU143: 71.46 | BV143: 71.55 | BW143: 71.63 | BX143: 71.71 | BY143: 71.78 | BZ143: 71.85 | CA143: 71.91 | CB143: 71.96 | CC143: 72.02 | CD143: 72.06 | CE143: 72.11
A144: 60 | B144: 49.15 | C144: 49.36 | D144: 49.57 | E144: 49.79 | F144: 50.02 | G144: 50.24 | H144: 50.48 | I144: 50.72 | J144: 50.96 | K144: 51.21 | L144: 51.47 | M144: 51.73 | N144: 51.99 | O144: 52.27 | P144: 52.55 | Q144: 52.84 | R144: 53.13 | S144: 53.43 | T144: 53.74 | U144: 54.06 | V144: 54.38 | W144: 54.71 | X144: 55.74 | Y144: 56.11 | Z144: 56.48 | AA144: 56.86 | AB144: 57.25 | AC144: 57.64 | AD144: 58.04 | AE144: 58.45 | AF144: 58.87 | AG144: 59.28 | AH144: 59.71 | AI144: 60.13 | AJ144: 60.57 | AK144: 61 | AL144: 61.43 | AM144: 61.87 | AN144: 62.31 | AO144: 62.75 | AP144: 63.19 | AQ144: 63.63 | AR144: 64.07 | AS144: 64.5 | AT144: 64.94 | AU144: 65.38 | AV144: 65.82 | AW144: 66.26 | AX144: 66.69 | AY144: 67.11 | AZ144: 67.52 | BA144: 67.91 | BB144: 68.3 | BC144: 68.66 | BD144: 69.02 | BE144: 69.35 | BF144: 69.67 | BG144: 69.97 | BH144: 70.26 | BI144: 70.53 | BJ144: 70.78 | BK144: 71.02 | BL144: 71.24 | BM144: 71.45 | BN144: 71.64 | BO144: 71.82 | BP144: 71.98 | BQ144: 72.13 | BR144: 72.27 | BS144: 72.41 | BT144: 72.53 | BU144: 72.64 | BV144: 72.74 | BW144: 72.83 | BX144: 72.92 | BY144: 73 | BZ144: 73.07 | CA144: 73.14 | CB144: 73.2 | CC144: 73.26 | CD144: 73.31 | CE144: 73.36
A145: 61 | B145: 49.16 | C145: 49.37 | D145: 49.59 | E145: 49.81 | F145: 50.03 | G145: 50.26 | H145: 50.5 | I145: 50.74 | J145: 50.98 | K145: 51.24 | L145: 51.49 | M145: 51.76 | N145: 52.03 | O145: 52.3 | P145: 52.59 | Q145: 52.88 | R145: 53.18 | S145: 53.48 | T145: 53.8 | U145: 54.12 | V145: 54.45 | W145: 54.78 | X145: 55.83 | Y145: 56.2 | Z145: 56.59 | AA145: 56.97 | AB145: 57.37 | AC145: 57.78 | AD145: 58.19 | AE145: 58.61 | AF145: 59.04 | AG145: 59.47 | AH145: 59.91 | AI145: 60.36 | AJ145: 60.81 | AK145: 61.26 | AL145: 61.72 | AM145: 62.18 | AN145: 62.64 | AO145: 63.1 | AP145: 63.57 | AQ145: 64.04 | AR145: 64.5 | AS145: 64.97 | AT145: 65.44 | AU145: 65.92 | AV145: 66.39 | AW145: 66.86 | AX145: 67.33 | AY145: 67.78 | AZ145: 68.23 | BA145: 68.66 | BB145: 69.08 | BC145: 69.48 | BD145: 69.87 | BE145: 70.24 | BF145: 70.59 | BG145: 70.92 | BH145: 71.24 | BI145: 71.54 | BJ145: 71.82 | BK145: 72.08 | BL145: 72.33 | BM145: 72.56 | BN145: 72.77 | BO145: 72.97 | BP145: 73.15 | BQ145: 73.32 | BR145: 73.48 | BS145: 73.63 | BT145: 73.76 | BU145: 73.88 | BV145: 74 | BW145: 74.1 | BX145: 74.2 | BY145: 74.29 | BZ145: 74.37 | CA145: 74.44 | CB145: 74.51 | CC145: 74.58 | CD145: 74.63 | CE145: 74.69
A146: 62 | B146: 49.17 | C146: 49.39 | D146: 49.6 | E146: 49.82 | F146: 50.05 | G146: 50.28 | H146: 50.52 | I146: 50.76 | J146: 51.01 | K146: 51.26 | L146: 51.52 | M146: 51.79 | N146: 52.06 | O146: 52.34 | P146: 52.63 | Q146: 52.92 | R146: 53.22 | S146: 53.53 | T146: 53.85 | U146: 54.18 | V146: 54.51 | W146: 54.85 | X146: 55.91 | Y146: 56.29 | Z146: 56.68 | AA146: 57.08 | AB146: 57.49 | AC146: 57.91 | AD146: 58.34 | AE146: 58.77 | AF146: 59.21 | AG146: 59.66 | AH146: 60.12 | AI146: 60.58 | AJ146: 61.05 | AK146: 61.52 | AL146: 62 | AM146: 62.48 | AN146: 62.97 | AO146: 63.46 | AP146: 63.95 | AQ146: 64.45 | AR146: 64.94 | AS146: 65.44 | AT146: 65.95 | AU146: 66.46 | AV146: 66.97 | AW146: 67.47 | AX146: 67.98 | AY146: 68.47 | AZ146: 68.96 | BA146: 69.43 | BB146: 69.89 | BC146: 70.33 | BD146: 70.75 | BE146: 71.16 | BF146: 71.55 | BG146: 71.92 | BH146: 72.27 | BI146: 72.6 | BJ146: 72.91 | BK146: 73.2 | BL146: 73.48 | BM146: 73.73 | BN146: 73.97 | BO146: 74.2 | BP146: 74.4 | BQ146: 74.59 | BR146: 74.77 | BS146: 74.93 | BT146: 75.09 | BU146: 75.23 | BV146: 75.35 | BW146: 75.47 | BX146: 75.58 | BY146: 75.68 | BZ146: 75.77 | CA146: 75.86 | CB146: 75.93 | CC146: 76 | CD146: 76.07 | CE146: 76.13
A147: 63 | B147: 49.18 | C147: 49.4 | D147: 49.62 | E147: 49.84 | F147: 50.07 | G147: 50.3 | H147: 50.54 | I147: 50.78 | J147: 51.03 | K147: 51.28 | L147: 51.54 | M147: 51.81 | N147: 52.09 | O147: 52.37 | P147: 52.66 | Q147: 52.96 | R147: 53.27 | S147: 53.58 | T147: 53.9 | U147: 54.23 | V147: 54.57 | W147: 54.92 | X147: 55.99 | Y147: 56.38 | Z147: 56.78 | AA147: 57.19 | AB147: 57.61 | AC147: 58.04 | AD147: 58.47 | AE147: 58.92 | AF147: 59.38 | AG147: 59.84 | AH147: 60.32 | AI147: 60.8 | AJ147: 61.29 | AK147: 61.78 | AL147: 62.28 | AM147: 62.78 | AN147: 63.29 | AO147: 63.81 | AP147: 64.33 | AQ147: 64.86 | AR147: 65.38 | AS147: 65.92 | AT147: 66.46 | AU147: 67 | AV147: 67.55 | AW147: 68.1 | AX147: 68.64 | AY147: 69.18 | AZ147: 69.71 | BA147: 70.22 | BB147: 70.72 | BC147: 71.21 | BD147: 71.68 | BE147: 72.13 | BF147: 72.56 | BG147: 72.96 | BH147: 73.35 | BI147: 73.72 | BJ147: 74.07 | BK147: 74.4 | BL147: 74.7 | BM147: 74.99 | BN147: 75.26 | BO147: 75.51 | BP147: 75.74 | BQ147: 75.96 | BR147: 76.16 | BS147: 76.35 | BT147: 76.52 | BU147: 76.68 | BV147: 76.82 | BW147: 76.96 | BX147: 77.08 | BY147: 77.19 | BZ147: 77.3 | CA147: 77.39 | CB147: 77.48 | CC147: 77.56 | CD147: 77.63 | CE147: 77.7
A148: 64 | B148: 49.2 | C148: 49.41 | D148: 49.63 | E148: 49.85 | F148: 50.08 | G148: 50.31 | H148: 50.55 | I148: 50.8 | J148: 51.05 | K148: 51.31 | L148: 51.57 | M148: 51.84 | N148: 52.12 | O148: 52.4 | P148: 52.7 | Q148: 53 | R148: 53.31 | S148: 53.63 | T148: 53.95 | U148: 54.29 | V148: 54.63 | W148: 54.99 | X148: 56.07 | Y148: 56.47 | Z148: 56.87 | AA148: 57.29 | AB148: 57.72 | AC148: 58.16 | AD148: 58.61 | AE148: 59.07 | AF148: 59.54 | AG148: 60.02 | AH148: 60.51 | AI148: 61.01 | AJ148: 61.52 | AK148: 62.03 | AL148: 62.55 | AM148: 63.08 | AN148: 63.62 | AO148: 64.16 | AP148: 64.71 | AQ148: 65.26 | AR148: 65.82 | AS148: 66.39 | AT148: 66.97 | AU148: 67.55 | AV148: 68.14 | AW148: 68.73 | AX148: 69.32 | AY148: 69.9 | AZ148: 70.47 | BA148: 71.04 | BB148: 71.58 | BC148: 72.12 | BD148: 72.63 | BE148: 73.13 | BF148: 73.6 | BG148: 74.06 | BH148: 74.49 | BI148: 74.9 | BJ148: 75.29 | BK148: 75.66 | BL148: 76 | BM148: 76.33 | BN148: 76.63 | BO148: 76.91 | BP148: 77.17 | BQ148: 77.42 | BR148: 77.65 | BS148: 77.86 | BT148: 78.05 | BU148: 78.23 | BV148: 78.4 | BW148: 78.55 | BX148: 78.69 | BY148: 78.82 | BZ148: 78.94 | CA148: 79.05 | CB148: 79.15 | CC148: 79.25 | CD148: 79.33 | CE148: 79.41
A149: 65 | B149: 49.21 | C149: 49.42 | D149: 49.64 | E149: 49.87 | F149: 50.1 | G149: 50.33 | H149: 50.57 | I149: 50.82 | J149: 51.07 | K149: 51.33 | L149: 51.59 | M149: 51.86 | N149: 52.14 | O149: 52.43 | P149: 52.73 | Q149: 53.03 | R149: 53.35 | S149: 53.67 | T149: 54 | U149: 54.34 | V149: 54.69 | W149: 55.05 | X149: 56.14 | Y149: 56.55 | Z149: 56.96 | AA149: 57.39 | AB149: 57.83 | AC149: 58.28 | AD149: 58.74 | AE149: 59.21 | AF149: 59.7 | AG149: 60.19 | AH149: 60.7 | AI149: 61.22 | AJ149: 61.74 | AK149: 62.28 | AL149: 62.82 | AM149: 63.37 | AN149: 63.93 | AO149: 64.5 | AP149: 65.08 | AQ149: 65.67 | AR149: 66.26 | AS149: 66.86 | AT149: 67.47 | AU149: 68.1 | AV149: 68.73 | AW149: 69.36 | AX149: 70 | AY149: 70.63 | AZ149: 71.25 | BA149: 71.86 | BB149: 72.46 | BC149: 73.05 | BD149: 73.61 | BE149: 74.16 | BF149: 74.69 | BG149: 75.19 | BH149: 75.67 | BI149: 76.13 | BJ149: 76.57 | BK149: 76.98 | BL149: 77.36 | BM149: 77.73 | BN149: 78.07 | BO149: 78.39 | BP149: 78.69 | BQ149: 78.97 | BR149: 79.23 | BS149: 79.47 | BT149: 79.69 | BU149: 79.9 | BV149: 80.09 | BW149: 80.26 | BX149: 80.42 | BY149: 80.57 | BZ149: 80.71 | CA149: 80.84 | CB149: 80.95 | CC149: 81.06 | CD149: 81.16 | CE149: 81.25
A150: 66 | B150: 49.22 | C150: 49.44 | D150: 49.66 | E150: 49.88 | F150: 50.11 | G150: 50.35 | H150: 50.59 | I150: 50.83 | J150: 51.09 | K150: 51.35 | L150: 51.61 | M150: 51.89 | N150: 52.17 | O150: 52.46 | P150: 52.76 | Q150: 53.07 | R150: 53.38 | S150: 53.71 | T150: 54.05 | U150: 54.39 | V150: 54.74 | W150: 55.11 | X150: 56.21 | Y150: 56.63 | Z150: 57.05 | AA150: 57.48 | AB150: 57.93 | AC150: 58.39 | AD150: 58.87 | AE150: 59.35 | AF150: 59.85 | AG150: 60.36 | AH150: 60.88 | AI150: 61.42 | AJ150: 61.96 | AK150: 62.52 | AL150: 63.08 | AM150: 63.65 | AN150: 64.24 | AO150: 64.84 | AP150: 65.44 | AQ150: 66.06 | AR150: 66.69 | AS150: 67.33 | AT150: 67.98 | AU150: 68.64 | AV150: 69.32 | AW150: 70 | AX150: 70.68 | AY150: 71.36 | AZ150: 72.04 | BA150: 72.7 | BB150: 73.36 | BC150: 74 | BD150: 74.62 | BE150: 75.22 | BF150: 75.8 | BG150: 76.36 | BH150: 76.89 | BI150: 77.4 | BJ150: 77.89 | BK150: 78.35 | BL150: 78.79 | BM150: 79.2 | BN150: 79.58 | BO150: 79.94 | BP150: 80.28 | BQ150: 80.6 | BR150: 80.89 | BS150: 81.17 | BT150: 81.42 | BU150: 81.66 | BV150: 81.88 | BW150: 82.08 | BX150: 82.27 | BY150: 82.44 | BZ150: 82.6 | CA150: 82.74 | CB150: 82.88 | CC150: 83 | CD150: 83.12 | CE150: 83.22
A151: 67 | B151: 49.23 | C151: 49.45 | D151: 49.67 | E151: 49.89 | F151: 50.12 | G151: 50.36 | H151: 50.6 | I151: 50.85 | J151: 51.11 | K151: 51.37 | L151: 51.64 | M151: 51.91 | N151: 52.2 | O151: 52.49 | P151: 52.79 | Q151: 53.1 | R151: 53.42 | S151: 53.75 | T151: 54.09 | U151: 54.44 | V151: 54.8 | W151: 55.17 | X151: 56.28 | Y151: 56.7 | Z151: 57.13 | AA151: 57.57 | AB151: 58.03 | AC151: 58.5 | AD151: 58.99 | AE151: 59.48 | AF151: 60 | AG151: 60.52 | AH151: 61.06 | AI151: 61.61 | AJ151: 62.17 | AK151: 62.75 | AL151: 63.33 | AM151: 63.93 | AN151: 64.54 | AO151: 65.16 | AP151: 65.8 | AQ151: 66.45 | AR151: 67.11 | AS151: 67.78 | AT151: 68.47 | AU151: 69.18 | AV151: 69.9 | AW151: 70.63 | AX151: 71.36 | AY151: 72.1 | AZ151: 72.83 | BA151: 73.55 | BB151: 74.26 | BC151: 74.96 | BD151: 75.64 | BE151: 76.3 | BF151: 76.94 | BG151: 77.56 | BH151: 78.15 | BI151: 78.72 | BJ151: 79.26 | BK151: 79.77 | BL151: 80.26 | BM151: 80.72 | BN151: 81.16 | BO151: 81.57 | BP151: 81.95 | BQ151: 82.31 | BR151: 82.65 | BS151: 82.96 | BT151: 83.25 | BU151: 83.52 | BV151: 83.77 | BW151: 84 | BX151: 84.22 | BY151: 84.42 | BZ151: 84.6 | CA151: 84.77 | CB151: 84.93 | CC151: 85.07 | CD151: 85.2 | CE151: 85.33
A152: 68 | B152: 49.24 | C152: 49.46 | D152: 49.68 | E152: 49.91 | F152: 50.14 | G152: 50.37 | H152: 50.62 | I152: 50.87 | J152: 51.12 | K152: 51.38 | L152: 51.65 | M152: 51.93 | N152: 52.22 | O152: 52.51 | P152: 52.82 | Q152: 53.13 | R152: 53.45 | S152: 53.79 | T152: 54.13 | U152: 54.48 | V152: 54.85 | W152: 55.22 | X152: 56.34 | Y152: 56.77 | Z152: 57.21 | AA152: 57.66 | AB152: 58.13 | AC152: 58.61 | AD152: 59.1 | AE152: 59.61 | AF152: 60.13 | AG152: 60.67 | AH152: 61.23 | AI152: 61.79 | AJ152: 62.37 | AK152: 62.97 | AL152: 63.57 | AM152: 64.19 | AN152: 64.83 | AO152: 65.48 | AP152: 66.14 | AQ152: 66.82 | AR152: 67.52 | AS152: 68.23 | AT152: 68.96 | AU152: 69.71 | AV152: 70.47 | AW152: 71.25 | AX152: 72.04 | AY152: 72.83 | AZ152: 73.61 | BA152: 74.4 | BB152: 75.17 | BC152: 75.93 | BD152: 76.67 | BE152: 77.39 | BF152: 78.1 | BG152: 78.78 | BH152: 79.43 | BI152: 80.06 | BJ152: 80.67 | BK152: 81.24 | BL152: 81.79 | BM152: 82.3 | BN152: 82.79 | BO152: 83.25 | BP152: 83.69 | BQ152: 84.09 | BR152: 84.48 | BS152: 84.83 | BT152: 85.17 | BU152: 85.48 | BV152: 85.76 | BW152: 86.03 | BX152: 86.28 | BY152: 86.51 | BZ152: 86.72 | CA152: 86.92 | CB152: 87.1 | CC152: 87.27 | CD152: 87.42 | CE152: 87.56
A153: 69 | B153: 49.25 | C153: 49.47 | D153: 49.69 | E153: 49.92 | F153: 50.15 | G153: 50.39 | H153: 50.63 | I153: 50.88 | J153: 51.14 | K153: 51.4 | L153: 51.67 | M153: 51.95 | N153: 52.24 | O153: 52.54 | P153: 52.84 | Q153: 53.16 | R153: 53.48 | S153: 53.82 | T153: 54.17 | U153: 54.52 | V153: 54.89 | W153: 55.27 | X153: 56.4 | Y153: 56.84 | Z153: 57.28 | AA153: 57.74 | AB153: 58.21 | AC153: 58.7 | AD153: 59.21 | AE153: 59.73 | AF153: 60.27 | AG153: 60.82 | AH153: 61.39 | AI153: 61.97 | AJ153: 62.57 | AK153: 63.18 | AL153: 63.81 | AM153: 64.45 | AN153: 65.11 | AO153: 65.78 | AP153: 66.47 | AQ153: 67.19 | AR153: 67.91 | AS153: 68.66 | AT153: 69.43 | AU153: 70.22 | AV153: 71.04 | AW153: 71.86 | AX153: 72.7 | AY153: 73.55 | AZ153: 74.4 | BA153: 75.24 | BB153: 76.07 | BC153: 76.9 | BD153: 77.71 | BE153: 78.5 | BF153: 79.27 | BG153: 80.02 | BH153: 80.74 | BI153: 81.44 | BJ153: 82.1 | BK153: 82.74 | BL153: 83.35 | BM153: 83.93 | BN153: 84.48 | BO153: 85 | BP153: 85.49 | BQ153: 85.95 | BR153: 86.38 | BS153: 86.79 | BT153: 87.17 | BU153: 87.52 | BV153: 87.85 | BW153: 88.16 | BX153: 88.44 | BY153: 88.71 | BZ153: 88.95 | CA153: 89.18 | CB153: 89.39 | CC153: 89.58 | CD153: 89.76 | CE153: 89.93
A154: 70 | B154: 49.26 | C154: 49.48 | D154: 49.7 | E154: 49.93 | F154: 50.16 | G154: 50.4 | H154: 50.65 | I154: 50.9 | J154: 51.15 | K154: 51.42 | L154: 51.69 | M154: 51.97 | N154: 52.26 | O154: 52.56 | P154: 52.87 | Q154: 53.19 | R154: 53.51 | S154: 53.85 | T154: 54.2 | U154: 54.56 | V154: 54.94 | W154: 55.32 | X154: 56.46 | Y154: 56.9 | Z154: 57.35 | AA154: 57.82 | AB154: 58.3 | AC154: 58.8 | AD154: 59.31 | AE154: 59.84 | AF154: 60.39 | AG154: 60.96 | AH154: 61.54 | AI154: 62.14 | AJ154: 62.75 | AK154: 63.38 | AL154: 64.03 | AM154: 64.69 | AN154: 65.37 | AO154: 66.07 | AP154: 66.79 | AQ154: 67.54 | AR154: 68.3 | AS154: 69.08 | AT154: 69.89 | AU154: 70.72 | AV154: 71.58 | AW154: 72.46 | AX154: 73.36 | AY154: 74.26 | AZ154: 75.17 | BA154: 76.07 | BB154: 76.97 | BC154: 77.87 | BD154: 78.74 | BE154: 79.61 | BF154: 80.45 | BG154: 81.27 | BH154: 82.06 | BI154: 82.83 | BJ154: 83.57 | BK154: 84.28 | BL154: 84.95 | BM154: 85.6 | BN154: 86.21 | BO154: 86.8 | BP154: 87.35 | BQ154: 87.87 | BR154: 88.36 | BS154: 88.82 | BT154: 89.25 | BU154: 89.65 | BV154: 90.03 | BW154: 90.38 | BX154: 90.7 | BY154: 91.01 | BZ154: 91.29 | CA154: 91.55 | CB154: 91.79 | CC154: 92.02 | CD154: 92.23 | CE154: 92.42
A155: 71 | B155: 49.27 | C155: 49.49 | D155: 49.71 | E155: 49.94 | F155: 50.17 | G155: 50.41 | H155: 50.66 | I155: 50.91 | J155: 51.17 | K155: 51.43 | L155: 51.71 | M155: 51.99 | N155: 52.28 | O155: 52.58 | P155: 52.89 | Q155: 53.21 | R155: 53.54 | S155: 53.88 | T155: 54.24 | U155: 54.6 | V155: 54.98 | W155: 55.36 | X155: 56.51 | Y155: 56.96 | Z155: 57.42 | AA155: 57.89 | AB155: 58.38 | AC155: 58.88 | AD155: 59.41 | AE155: 59.95 | AF155: 60.51 | AG155: 61.09 | AH155: 61.68 | AI155: 62.3 | AJ155: 62.93 | AK155: 63.57 | AL155: 64.24 | AM155: 64.92 | AN155: 65.63 | AO155: 66.35 | AP155: 67.1 | AQ155: 67.87 | AR155: 68.66 | AS155: 69.48 | AT155: 70.33 | AU155: 71.21 | AV155: 72.12 | AW155: 73.05 | AX155: 74 | AY155: 74.96 | AZ155: 75.93 | BA155: 76.9 | BB155: 77.87 | BC155: 78.83 | BD155: 79.78 | BE155: 80.71 | BF155: 81.63 | BG155: 82.52 | BH155: 83.39 | BI155: 84.24 | BJ155: 85.05 | BK155: 85.84 | BL155: 86.59 | BM155: 87.3 | BN155: 87.99 | BO155: 88.64 | BP155: 89.26 | BQ155: 89.84 | BR155: 90.39 | BS155: 90.91 | BT155: 91.4 | BU155: 91.86 | BV155: 92.29 | BW155: 92.69 | BX155: 93.06 | BY155: 93.41 | BZ155: 93.73 | CA155: 94.04 | CB155: 94.32 | CC155: 94.58 | CD155: 94.82 | CE155: 95.04
A156: 72 | B156: 49.28 | C156: 49.5 | D156: 49.72 | E156: 49.95 | F156: 50.18 | G156: 50.42 | H156: 50.67 | I156: 50.92 | J156: 51.18 | K156: 51.45 | L156: 51.72 | M156: 52.01 | N156: 52.3 | O156: 52.6 | P156: 52.91 | Q156: 53.24 | R156: 53.57 | S156: 53.91 | T156: 54.27 | U156: 54.64 | V156: 55.02 | W156: 55.41 | X156: 56.56 | Y156: 57.01 | Z156: 57.48 | AA156: 57.96 | AB156: 58.45 | AC156: 58.97 | AD156: 59.5 | AE156: 60.05 | AF156: 60.62 | AG156: 61.21 | AH156: 61.82 | AI156: 62.45 | AJ156: 63.09 | AK156: 63.76 | AL156: 64.44 | AM156: 65.14 | AN156: 65.87 | AO156: 66.62 | AP156: 67.39 | AQ156: 68.19 | AR156: 69.02 | AS156: 69.87 | AT156: 70.75 | AU156: 71.68 | AV156: 72.63 | AW156: 73.61 | AX156: 74.62 | AY156: 75.64 | AZ156: 76.67 | BA156: 77.71 | BB156: 78.74 | BC156: 79.78 | BD156: 80.8 | BE156: 81.81 | BF156: 82.81 | BG156: 83.78 | BH156: 84.73 | BI156: 85.65 | BJ156: 86.55 | BK156: 87.41 | BL156: 88.24 | BM156: 89.04 | BN156: 89.8 | BO156: 90.52 | BP156: 91.22 | BQ156: 91.87 | BR156: 92.49 | BS156: 93.07 | BT156: 93.63 | BU156: 94.14 | BV156: 94.63 | BW156: 95.09 | BX156: 95.51 | BY156: 95.91 | BZ156: 96.28 | CA156: 96.63 | CB156: 96.95 | CC156: 97.25 | CD156: 97.53 | CE156: 97.78
A157: 73 | B157: 49.29 | C157: 49.51 | D157: 49.73 | E157: 49.96 | F157: 50.2 | G157: 50.44 | H157: 50.68 | I157: 50.93 | J157: 51.2 | K157: 51.46 | L157: 51.74 | M157: 52.02 | N157: 52.32 | O157: 52.62 | P157: 52.93 | Q157: 53.26 | R157: 53.59 | S157: 53.94 | T157: 54.3 | U157: 54.67 | V157: 55.05 | W157: 55.45 | X157: 56.61 | Y157: 57.07 | Z157: 57.53 | AA157: 58.02 | AB157: 58.52 | AC157: 59.05 | AD157: 59.59 | AE157: 60.15 | AF157: 60.73 | AG157: 61.33 | AH157: 61.95 | AI157: 62.59 | AJ157: 63.25 | AK157: 63.93 | AL157: 64.63 | AM157: 65.35 | AN157: 66.1 | AO157: 66.87 | AP157: 67.67 | AQ157: 68.5 | AR157: 69.35 | AS157: 70.24 | AT157: 71.16 | AU157: 72.13 | AV157: 73.13 | AW157: 74.16 | AX157: 75.22 | AY157: 76.3 | AZ157: 77.39 | BA157: 78.5 | BB157: 79.61 | BC157: 80.71 | BD157: 81.81 | BE157: 82.9 | BF157: 83.98 | BG157: 85.03 | BH157: 86.07 | BI157: 87.07 | BJ157: 88.05 | BK157: 89 | BL157: 89.91 | BM157: 90.79 | BN157: 91.64 | BO157: 92.44 | BP157: 93.21 | BQ157: 93.94 | BR157: 94.64 | BS157: 95.29 | BT157: 95.91 | BU157: 96.5 | BV157: 97.05 | BW157: 97.56 | BX157: 98.05 | BY157: 98.5 | BZ157: 98.93 | CA157: 99.32 | CB157: 99.69 | CC157: 100.03 | CD157: 100.35 | CE157: 100.65
A158: 74 | B158: 49.3 | C158: 49.52 | D158: 49.74 | E158: 49.97 | F158: 50.2 | G158: 50.45 | H158: 50.69 | I158: 50.95 | J158: 51.21 | K158: 51.48 | L158: 51.75 | M158: 52.04 | N158: 52.33 | O158: 52.64 | P158: 52.95 | Q158: 53.28 | R158: 53.62 | S158: 53.97 | T158: 54.33 | U158: 54.7 | V158: 55.09 | W158: 55.48 | X158: 56.66 | Y158: 57.11 | Z158: 57.59 | AA158: 58.08 | AB158: 58.59 | AC158: 59.12 | AD158: 59.67 | AE158: 60.24 | AF158: 60.83 | AG158: 61.44 | AH158: 62.07 | AI158: 62.72 | AJ158: 63.4 | AK158: 64.09 | AL158: 64.81 | AM158: 65.55 | AN158: 66.32 | AO158: 67.11 | AP158: 67.93 | AQ158: 68.79 | AR158: 69.67 | AS158: 70.59 | AT158: 71.55 | AU158: 72.56 | AV158: 73.6 | AW158: 74.69 | AX158: 75.8 | AY158: 76.94 | AZ158: 78.1 | BA158: 79.27 | BB158: 80.45 | BC158: 81.63 | BD158: 82.81 | BE158: 83.98 | BF158: 85.14 | BG158: 86.28 | BH158: 87.4 | BI158: 88.49 | BJ158: 89.56 | BK158: 90.59 | BL158: 91.6 | BM158: 92.56 | BN158: 93.49 | BO158: 94.38 | BP158: 95.24 | BQ158: 96.05 | BR158: 96.83 | BS158: 97.56 | BT158: 98.26 | BU158: 98.91 | BV158: 99.53 | BW158: 100.12 | BX158: 100.67 | BY158: 101.18 | BZ158: 101.66 | CA158: 102.11 | CB158: 102.53 | CC158: 102.93 | CD158: 103.29 | CE158: 103.64
A159: 75 | B159: 49.3 | C159: 49.52 | D159: 49.75 | E159: 49.98 | F159: 50.21 | G159: 50.46 | H159: 50.7 | I159: 50.96 | J159: 51.22 | K159: 51.49 | L159: 51.77 | M159: 52.05 | N159: 52.35 | O159: 52.65 | P159: 52.97 | Q159: 53.3 | R159: 53.64 | S159: 53.99 | T159: 54.35 | U159: 54.73 | V159: 55.12 | W159: 55.52 | X159: 56.7 | Y159: 57.16 | Z159: 57.64 | AA159: 58.13 | AB159: 58.65 | AC159: 59.19 | AD159: 59.74 | AE159: 60.32 | AF159: 60.92 | AG159: 61.54 | AH159: 62.18 | AI159: 62.85 | AJ159: 63.54 | AK159: 64.25 | AL159: 64.98 | AM159: 65.74 | AN159: 66.52 | AO159: 67.34 | AP159: 68.18 | AQ159: 69.06 | AR159: 69.97 | AS159: 70.92 | AT159: 71.92 | AU159: 72.96 | AV159: 74.06 | AW159: 75.19 | AX159: 76.36 | AY159: 77.56 | AZ159: 78.78 | BA159: 80.02 | BB159: 81.27 | BC159: 82.52 | BD159: 83.78 | BE159: 85.03 | BF159: 86.28 | BG159: 87.5 | BH159: 88.71 | BI159: 89.9 | BJ159: 91.06 | BK159: 92.19 | BL159: 93.28 | BM159: 94.34 | BN159: 95.36 | BO159: 96.35 | BP159: 97.29 | BQ159: 98.19 | BR159: 99.05 | BS159: 99.87 | BT159: 100.65 | BU159: 101.39 | BV159: 102.08 | BW159: 102.74 | BX159: 103.36 | BY159: 103.94 | BZ159: 104.49 | CA159: 105 | CB159: 105.48 | CC159: 105.93 | CD159: 106.35 | CE159: 106.74
A160: 76 | B160: 49.31 | C160: 49.53 | D160: 49.76 | E160: 49.99 | F160: 50.22 | G160: 50.46 | H160: 50.71 | I160: 50.97 | J160: 51.23 | K160: 51.5 | L160: 51.78 | M160: 52.07 | N160: 52.36 | O160: 52.67 | P160: 52.99 | Q160: 53.32 | R160: 53.66 | S160: 54.01 | T160: 54.38 | U160: 54.75 | V160: 55.15 | W160: 55.55 | X160: 56.73 | Y160: 57.2 | Z160: 57.68 | AA160: 58.19 | AB160: 58.71 | AC160: 59.25 | AD160: 59.81 | AE160: 60.4 | AF160: 61.01 | AG160: 61.64 | AH160: 62.29 | AI160: 62.97 | AJ160: 63.67 | AK160: 64.39 | AL160: 65.14 | AM160: 65.91 | AN160: 66.71 | AO160: 67.55 | AP160: 68.42 | AQ160: 69.32 | AR160: 70.26 | AS160: 71.24 | AT160: 72.27 | AU160: 73.35 | AV160: 74.49 | AW160: 75.67 | AX160: 76.89 | AY160: 78.15 | AZ160: 79.43 | BA160: 80.74 | BB160: 82.06 | BC160: 83.39 | BD160: 84.73 | BE160: 86.07 | BF160: 87.4 | BG160: 88.71 | BH160: 90.01 | BI160: 91.29 | BJ160: 92.55 | BK160: 93.77 | BL160: 94.96 | BM160: 96.12 | BN160: 97.24 | BO160: 98.32 | BP160: 99.36 | BQ160: 100.36 | BR160: 101.31 | BS160: 102.22 | BT160: 103.08 | BU160: 103.91 | BV160: 104.69 | BW160: 105.42 | BX160: 106.12 | BY160: 106.78 | BZ160: 107.39 | CA160: 107.97 | CB160: 108.52 | CC160: 109.03 | CD160: 109.5 | CE160: 109.95
A161: 77 | B161: 49.32 | C161: 49.54 | D161: 49.76 | E161: 49.99 | F161: 50.23 | G161: 50.47 | H161: 50.72 | I161: 50.98 | J161: 51.24 | K161: 51.51 | L161: 51.79 | M161: 52.08 | N161: 52.38 | O161: 52.68 | P161: 53 | Q161: 53.33 | R161: 53.68 | S161: 54.03 | T161: 54.4 | U161: 54.78 | V161: 55.17 | W161: 55.58 | X161: 56.77 | Y161: 57.24 | Z161: 57.73 | AA161: 58.23 | AB161: 58.76 | AC161: 59.31 | AD161: 59.88 | AE161: 60.47 | AF161: 61.09 | AG161: 61.72 | AH161: 62.39 | AI161: 63.08 | AJ161: 63.79 | AK161: 64.52 | AL161: 65.28 | AM161: 66.07 | AN161: 66.89 | AO161: 67.75 | AP161: 68.64 | AQ161: 69.56 | AR161: 70.53 | AS161: 71.54 | AT161: 72.6 | AU161: 73.72 | AV161: 74.9 | AW161: 76.13 | AX161: 77.4 | AY161: 78.72 | AZ161: 80.06 | BA161: 81.44 | BB161: 82.83 | BC161: 84.24 | BD161: 85.65 | BE161: 87.07 | BF161: 88.49 | BG161: 89.9 | BH161: 91.29 | BI161: 92.67 | BJ161: 94.02 | BK161: 95.35 | BL161: 96.64 | BM161: 97.9 | BN161: 99.12 | BO161: 100.3 | BP161: 101.44 | BQ161: 102.54 | BR161: 103.59 | BS161: 104.59 | BT161: 105.55 | BU161: 106.47 | BV161: 107.34 | BW161: 108.16 | BX161: 108.94 | BY161: 109.68 | BZ161: 110.37 | CA161: 111.03 | CB161: 111.64 | CC161: 112.22 | CD161: 112.76 | CE161: 113.27
A162: 78 | B162: 49.32 | C162: 49.55 | D162: 49.77 | E162: 50 | F162: 50.24 | G162: 50.48 | H162: 50.73 | I162: 50.99 | J162: 51.25 | K162: 51.52 | L162: 51.8 | M162: 52.09 | N162: 52.39 | O162: 52.7 | P162: 53.02 | Q162: 53.35 | R162: 53.69 | S162: 54.05 | T162: 54.42 | U162: 54.8 | V162: 55.2 | W162: 55.61 | X162: 56.8 | Y162: 57.28 | Z162: 57.77 | AA162: 58.28 | AB162: 58.81 | AC162: 59.36 | AD162: 59.94 | AE162: 60.54 | AF162: 61.16 | AG162: 61.81 | AH162: 62.48 | AI162: 63.18 | AJ162: 63.9 | AK162: 64.65 | AL162: 65.42 | AM162: 66.23 | AN162: 67.06 | AO162: 67.93 | AP162: 68.84 | AQ162: 69.79 | AR162: 70.78 | AS162: 71.82 | AT162: 72.91 | AU162: 74.07 | AV162: 75.29 | AW162: 76.57 | AX162: 77.89 | AY162: 79.26 | AZ162: 80.67 | BA162: 82.1 | BB162: 83.57 | BC162: 85.05 | BD162: 86.55 | BE162: 88.05 | BF162: 89.56 | BG162: 91.06 | BH162: 92.55 | BI162: 94.02 | BJ162: 95.47 | BK162: 96.9 | BL162: 98.3 | BM162: 99.66 | BN162: 100.99 | BO162: 102.28 | BP162: 103.53 | BQ162: 104.73 | BR162: 105.88 | BS162: 106.99 | BT162: 108.05 | BU162: 109.07 | BV162: 110.03 | BW162: 110.95 | BX162: 111.82 | BY162: 112.64 | BZ162: 113.42 | CA162: 114.16 | CB162: 114.85 | CC162: 115.51 | CD162: 116.12 | CE162: 116.69
A163: 79 | B163: 49.33 | C163: 49.55 | D163: 49.78 | E163: 50.01 | F163: 50.25 | G163: 50.49 | H163: 50.74 | I163: 50.99 | J163: 51.26 | K163: 51.53 | L163: 51.81 | M163: 52.1 | N163: 52.4 | O163: 52.71 | P163: 53.03 | Q163: 53.36 | R163: 53.71 | S163: 54.07 | T163: 54.44 | U163: 54.82 | V163: 55.22 | W163: 55.64 | X163: 56.83 | Y163: 57.31 | Z163: 57.8 | AA163: 58.32 | AB163: 58.86 | AC163: 59.41 | AD163: 60 | AE163: 60.6 | AF163: 61.23 | AG163: 61.89 | AH163: 62.57 | AI163: 63.27 | AJ163: 64.01 | AK163: 64.77 | AL163: 65.55 | AM163: 66.37 | AN163: 67.22 | AO163: 68.11 | AP163: 69.03 | AQ163: 70 | AR163: 71.02 | AS163: 72.08 | AT163: 73.2 | AU163: 74.4 | AV163: 75.66 | AW163: 76.98 | AX163: 78.35 | AY163: 79.77 | AZ163: 81.24 | BA163: 82.74 | BB163: 84.28 | BC163: 85.84 | BD163: 87.41 | BE163: 89 | BF163: 90.59 | BG163: 92.19 | BH163: 93.77 | BI163: 95.35 | BJ163: 96.9 | BK163: 98.43 | BL163: 99.94 | BM163: 101.41 | BN163: 102.85 | BO163: 104.25 | BP163: 105.61 | BQ163: 106.92 | BR163: 108.18 | BS163: 109.4 | BT163: 110.57 | BU163: 111.69 | BV163: 112.76 | BW163: 113.78 | BX163: 114.75 | BY163: 115.66 | BZ163: 116.54 | CA163: 117.36 | CB163: 118.14 | CC163: 118.87 | CD163: 119.56 | CE163: 120.21
A164: 80 | B164: 49.34 | C164: 49.56 | D164: 49.78 | E164: 50.02 | F164: 50.25 | G164: 50.5 | H164: 50.75 | I164: 51 | J164: 51.27 | K164: 51.54 | L164: 51.82 | M164: 52.11 | N164: 52.41 | O164: 52.72 | P164: 53.04 | Q164: 53.38 | R164: 53.72 | S164: 54.08 | T164: 54.46 | U164: 54.84 | V164: 55.24 | W164: 55.66 | X164: 56.86 | Y164: 57.34 | Z164: 57.84 | AA164: 58.36 | AB164: 58.9 | AC164: 59.46 | AD164: 60.05 | AE164: 60.66 | AF164: 61.3 | AG164: 61.96 | AH164: 62.65 | AI164: 63.36 | AJ164: 64.11 | AK164: 64.87 | AL164: 65.67 | AM164: 66.5 | AN164: 67.37 | AO164: 68.27 | AP164: 69.21 | AQ164: 70.2 | AR164: 71.24 | AS164: 72.33 | AT164: 73.48 | AU164: 74.7 | AV164: 76 | AW164: 77.36 | AX164: 78.79 | AY164: 80.26 | AZ164: 81.79 | BA164: 83.35 | BB164: 84.95 | BC164: 86.59 | BD164: 88.24 | BE164: 89.91 | BF164: 91.6 | BG164: 93.28 | BH164: 94.96 | BI164: 96.64 | BJ164: 98.3 | BK164: 99.94 | BL164: 101.56 | BM164: 103.14 | BN164: 104.69 | BO164: 106.21 | BP164: 107.68 | BQ164: 109.11 | BR164: 110.49 | BS164: 111.82 | BT164: 113.1 | BU164: 114.33 | BV164: 115.51 | BW164: 116.64 | BX164: 117.71 | BY164: 118.73 | BZ164: 119.7 | CA164: 120.62 | CB164: 121.49 | CC164: 122.32 | CD164: 123.09 | CE164: 123.82
A165: 81 | B165: 49.34 | C165: 49.56 | D165: 49.79 | E165: 50.02 | F165: 50.26 | G165: 50.5 | H165: 50.75 | I165: 51.01 | J165: 51.27 | K165: 51.55 | L165: 51.83 | M165: 52.12 | N165: 52.42 | O165: 52.73 | P165: 53.05 | Q165: 53.39 | R165: 53.74 | S165: 54.1 | T165: 54.47 | U165: 54.86 | V165: 55.27 | W165: 55.68 | X165: 56.88 | Y165: 57.37 | Z165: 57.87 | AA165: 58.39 | AB165: 58.94 | AC165: 59.5 | AD165: 60.1 | AE165: 60.71 | AF165: 61.36 | AG165: 62.03 | AH165: 62.72 | AI165: 63.45 | AJ165: 64.2 | AK165: 64.98 | AL165: 65.78 | AM165: 66.63 | AN165: 67.5 | AO165: 68.42 | AP165: 69.38 | AQ165: 70.39 | AR165: 71.45 | AS165: 72.56 | AT165: 73.73 | AU165: 74.99 | AV165: 76.33 | AW165: 77.73 | AX165: 79.2 | AY165: 80.72 | AZ165: 82.3 | BA165: 83.93 | BB165: 85.6 | BC165: 87.3 | BD165: 89.04 | BE165: 90.79 | BF165: 92.56 | BG165: 94.34 | BH165: 96.12 | BI165: 97.9 | BJ165: 99.66 | BK165: 101.41 | BL165: 103.14 | BM165: 104.84 | BN165: 106.51 | BO165: 108.14 | BP165: 109.73 | BQ165: 111.28 | BR165: 112.78 | BS165: 114.24 | BT165: 115.64 | BU165: 116.99 | BV165: 118.28 | BW165: 119.52 | BX165: 120.71 | BY165: 121.84 | BZ165: 122.91 | CA165: 123.94 | CB165: 124.91 | CC165: 125.83 | CD165: 126.7 | CE165: 127.52
A166: 82 | B166: 49.35 | C166: 49.57 | D166: 49.8 | E166: 50.03 | F166: 50.27 | G166: 50.51 | H166: 50.76 | I166: 51.02 | J166: 51.28 | K166: 51.55 | L166: 51.84 | M166: 52.13 | N166: 52.43 | O166: 52.74 | P166: 53.06 | Q166: 53.4 | R166: 53.75 | S166: 54.11 | T166: 54.49 | U166: 54.88 | V166: 55.28 | W166: 55.7 | X166: 56.91 | Y166: 57.39 | Z166: 57.9 | AA166: 58.43 | AB166: 58.97 | AC166: 59.54 | AD166: 60.14 | AE166: 60.76 | AF166: 61.41 | AG166: 62.09 | AH166: 62.79 | AI166: 63.52 | AJ166: 64.28 | AK166: 65.07 | AL166: 65.89 | AM166: 66.74 | AN166: 67.63 | AO166: 68.56 | AP166: 69.54 | AQ166: 70.56 | AR166: 71.64 | AS166: 72.77 | AT166: 73.97 | AU166: 75.26 | AV166: 76.63 | AW166: 78.07 | AX166: 79.58 | AY166: 81.16 | AZ166: 82.79 | BA166: 84.48 | BB166: 86.21 | BC166: 87.99 | BD166: 89.8 | BE166: 91.64 | BF166: 93.49 | BG166: 95.36 | BH166: 97.24 | BI166: 99.12 | BJ166: 100.99 | BK166: 102.85 | BL166: 104.69 | BM166: 106.51 | BN166: 108.3 | BO166: 110.05 | BP166: 111.77 | BQ166: 113.44 | BR166: 115.07 | BS166: 116.64 | BT166: 118.17 | BU166: 119.64 | BV166: 121.06 | BW166: 122.42 | BX166: 123.73 | BY166: 124.97 | BZ166: 126.16 | CA166: 127.3 | CB166: 128.38 | CC166: 129.4 | CD166: 130.37 | CE166: 131.29
A167: 83 | B167: 49.35 | C167: 49.57 | D167: 49.8 | E167: 50.03 | F167: 50.27 | G167: 50.51 | H167: 50.77 | I167: 51.02 | J167: 51.29 | K167: 51.56 | L167: 51.84 | M167: 52.14 | N167: 52.44 | O167: 52.75 | P167: 53.07 | Q167: 53.41 | R167: 53.76 | S167: 54.13 | T167: 54.5 | U167: 54.89 | V167: 55.3 | W167: 55.72 | X167: 56.93 | Y167: 57.42 | Z167: 57.93 | AA167: 58.46 | AB167: 59.01 | AC167: 59.58 | AD167: 60.18 | AE167: 60.81 | AF167: 61.46 | AG167: 62.14 | AH167: 62.85 | AI167: 63.59 | AJ167: 64.36 | AK167: 65.16 | AL167: 65.98 | AM167: 66.85 | AN167: 67.75 | AO167: 68.69 | AP167: 69.68 | AQ167: 70.72 | AR167: 71.82 | AS167: 72.97 | AT167: 74.2 | AU167: 75.51 | AV167: 76.91 | AW167: 78.39 | AX167: 79.94 | AY167: 81.57 | AZ167: 83.25 | BA167: 85 | BB167: 86.8 | BC167: 88.64 | BD167: 90.52 | BE167: 92.44 | BF167: 94.38 | BG167: 96.35 | BH167: 98.32 | BI167: 100.3 | BJ167: 102.28 | BK167: 104.25 | BL167: 106.21 | BM167: 108.14 | BN167: 110.05 | BO167: 111.93 | BP167: 113.77 | BQ167: 115.57 | BR167: 117.33 | BS167: 119.04 | BT167: 120.69 | BU167: 122.3 | BV167: 123.84 | BW167: 125.33 | BX167: 126.76 | BY167: 128.13 | BZ167: 129.44 | CA167: 130.7 | CB167: 131.89 | CC167: 133.03 | CD167: 134.1 | CE167: 135.13
A168: 84 | B168: 49.36 | C168: 49.58 | D168: 49.81 | E168: 50.04 | F168: 50.28 | G168: 50.52 | H168: 50.77 | I168: 51.03 | J168: 51.29 | K168: 51.57 | L168: 51.85 | M168: 52.14 | N168: 52.44 | O168: 52.76 | P168: 53.08 | Q168: 53.42 | R168: 53.77 | S168: 54.14 | T168: 54.52 | U168: 54.91 | V168: 55.32 | W168: 55.74 | X168: 56.95 | Y168: 57.44 | Z168: 57.95 | AA168: 58.48 | AB168: 59.04 | AC168: 59.62 | AD168: 60.22 | AE168: 60.85 | AF168: 61.51 | AG168: 62.2 | AH168: 62.91 | AI168: 63.66 | AJ168: 64.43 | AK168: 65.24 | AL168: 66.07 | AM168: 66.95 | AN168: 67.86 | AO168: 68.81 | AP168: 69.81 | AQ168: 70.87 | AR168: 71.98 | AS168: 73.15 | AT168: 74.4 | AU168: 75.74 | AV168: 77.17 | AW168: 78.69 | AX168: 80.28 | AY168: 81.95 | AZ168: 83.69 | BA168: 85.49 | BB168: 87.35 | BC168: 89.26 | BD168: 91.22 | BE168: 93.21 | BF168: 95.24 | BG168: 97.29 | BH168: 99.36 | BI168: 101.44 | BJ168: 103.53 | BK168: 105.61 | BL168: 107.68 | BM168: 109.73 | BN168: 111.77 | BO168: 113.77 | BP168: 115.74 | BQ168: 117.68 | BR168: 119.57 | BS168: 121.41 | BT168: 123.2 | BU168: 124.94 | BV168: 126.62 | BW168: 128.24 | BX168: 129.8 | BY168: 131.3 | BZ168: 132.74 | CA168: 134.12 | CB168: 135.44 | CC168: 136.7 | CD168: 137.89 | CE168: 139.03
A169: 85 | B169: 49.36 | C169: 49.58 | D169: 49.81 | E169: 50.04 | F169: 50.28 | G169: 50.53 | H169: 50.78 | I169: 51.03 | J169: 51.3 | K169: 51.57 | L169: 51.86 | M169: 52.15 | N169: 52.45 | O169: 52.77 | P169: 53.09 | Q169: 53.43 | R169: 53.78 | S169: 54.15 | T169: 54.53 | U169: 54.92 | V169: 55.33 | W169: 55.76 | X169: 56.97 | Y169: 57.46 | Z169: 57.97 | AA169: 58.51 | AB169: 59.07 | AC169: 59.65 | AD169: 60.26 | AE169: 60.89 | AF169: 61.55 | AG169: 62.25 | AH169: 62.97 | AI169: 63.72 | AJ169: 64.5 | AK169: 65.31 | AL169: 66.16 | AM169: 67.04 | AN169: 67.96 | AO169: 68.92 | AP169: 69.94 | AQ169: 71.01 | AR169: 72.13 | AS169: 73.32 | AT169: 74.59 | AU169: 75.96 | AV169: 77.42 | AW169: 78.97 | AX169: 80.6 | AY169: 82.31 | AZ169: 84.09 | BA169: 85.95 | BB169: 87.87 | BC169: 89.84 | BD169: 91.87 | BE169: 93.94 | BF169: 96.05 | BG169: 98.19 | BH169: 100.36 | BI169: 102.54 | BJ169: 104.73 | BK169: 106.92 | BL169: 109.11 | BM169: 111.28 | BN169: 113.44 | BO169: 115.57 | BP169: 117.68 | BQ169: 119.74 | BR169: 121.77 | BS169: 123.75 | BT169: 125.68 | BU169: 127.56 | BV169: 129.38 | BW169: 131.14 | BX169: 132.84 | BY169: 134.48 | BZ169: 136.06 | CA169: 137.57 | CB169: 139.02 | CC169: 140.4 | CD169: 141.72 | CE169: 142.98
A170: 86 | B170: 49.36 | C170: 49.59 | D170: 49.81 | E170: 50.05 | F170: 50.29 | G170: 50.53 | H170: 50.78 | I170: 51.04 | J170: 51.31 | K170: 51.58 | L170: 51.86 | M170: 52.16 | N170: 52.46 | O170: 52.77 | P170: 53.1 | Q170: 53.44 | R170: 53.79 | S170: 54.16 | T170: 54.54 | U170: 54.93 | V170: 55.35 | W170: 55.77 | X170: 56.99 | Y170: 57.48 | Z170: 57.99 | AA170: 58.53 | AB170: 59.09 | AC170: 59.68 | AD170: 60.29 | AE170: 60.93 | AF170: 61.6 | AG170: 62.29 | AH170: 63.02 | AI170: 63.78 | AJ170: 64.56 | AK170: 65.38 | AL170: 66.23 | AM170: 67.12 | AN170: 68.05 | AO170: 69.03 | AP170: 70.05 | AQ170: 71.13 | AR170: 72.27 | AS170: 73.48 | AT170: 74.77 | AU170: 76.16 | AV170: 77.65 | AW170: 79.23 | AX170: 80.89 | AY170: 82.65 | AZ170: 84.48 | BA170: 86.38 | BB170: 88.36 | BC170: 90.39 | BD170: 92.49 | BE170: 94.64 | BF170: 96.83 | BG170: 99.05 | BH170: 101.31 | BI170: 103.59 | BJ170: 105.88 | BK170: 108.18 | BL170: 110.49 | BM170: 112.78 | BN170: 115.07 | BO170: 117.33 | BP170: 119.57 | BQ170: 121.77 | BR170: 123.93 | BS170: 126.06 | BT170: 128.13 | BU170: 130.15 | BV170: 132.12 | BW170: 134.03 | BX170: 135.87 | BY170: 137.66 | BZ170: 139.38 | CA170: 141.03 | CB170: 142.61 | CC170: 144.13 | CD170: 145.59 | CE170: 146.98
A171: 87 | B171: 49.37 | C171: 49.59 | D171: 49.82 | E171: 50.05 | F171: 50.29 | G171: 50.53 | H171: 50.79 | I171: 51.04 | J171: 51.31 | K171: 51.58 | L171: 51.87 | M171: 52.16 | N171: 52.46 | O171: 52.78 | P171: 53.11 | Q171: 53.45 | R171: 53.8 | S171: 54.17 | T171: 54.55 | U171: 54.95 | V171: 55.36 | W171: 55.79 | X171: 57 | Y171: 57.5 | Z171: 58.01 | AA171: 58.55 | AB171: 59.12 | AC171: 59.7 | AD171: 60.32 | AE171: 60.96 | AF171: 61.63 | AG171: 62.33 | AH171: 63.06 | AI171: 63.83 | AJ171: 64.62 | AK171: 65.44 | AL171: 66.3 | AM171: 67.2 | AN171: 68.14 | AO171: 69.12 | AP171: 70.16 | AQ171: 71.25 | AR171: 72.41 | AS171: 73.63 | AT171: 74.93 | AU171: 76.35 | AV171: 77.86 | AW171: 79.47 | AX171: 81.17 | AY171: 82.96 | AZ171: 84.83 | BA171: 86.79 | BB171: 88.82 | BC171: 90.91 | BD171: 93.07 | BE171: 95.29 | BF171: 97.56 | BG171: 99.87 | BH171: 102.22 | BI171: 104.59 | BJ171: 106.99 | BK171: 109.4 | BL171: 111.82 | BM171: 114.24 | BN171: 116.64 | BO171: 119.04 | BP171: 121.41 | BQ171: 123.75 | BR171: 126.06 | BS171: 128.32 | BT171: 130.54 | BU171: 132.71 | BV171: 134.83 | BW171: 136.89 | BX171: 138.89 | BY171: 140.82 | BZ171: 142.69 | CA171: 144.49 | CB171: 146.22 | CC171: 147.89 | CD171: 149.48 | CE171: 151.01
A172: 88 | B172: 49.37 | C172: 49.59 | D172: 49.82 | E172: 50.06 | F172: 50.29 | G172: 50.54 | H172: 50.79 | I172: 51.05 | J172: 51.31 | K172: 51.59 | L172: 51.87 | M172: 52.17 | N172: 52.47 | O172: 52.79 | P172: 53.11 | Q172: 53.45 | R172: 53.81 | S172: 54.18 | T172: 54.56 | U172: 54.96 | V172: 55.37 | W172: 55.8 | X172: 57.01 | Y172: 57.51 | Z172: 58.03 | AA172: 58.57 | AB172: 59.14 | AC172: 59.73 | AD172: 60.35 | AE172: 60.99 | AF172: 61.67 | AG172: 62.37 | AH172: 63.11 | AI172: 63.87 | AJ172: 64.67 | AK172: 65.5 | AL172: 66.37 | AM172: 67.27 | AN172: 68.22 | AO172: 69.21 | AP172: 70.25 | AQ172: 71.36 | AR172: 72.53 | AS172: 73.76 | AT172: 75.09 | AU172: 76.52 | AV172: 78.05 | AW172: 79.69 | AX172: 81.42 | AY172: 83.25 | AZ172: 85.17 | BA172: 87.17 | BB172: 89.25 | BC172: 91.4 | BD172: 93.63 | BE172: 95.91 | BF172: 98.26 | BG172: 100.65 | BH172: 103.08 | BI172: 105.55 | BJ172: 108.05 | BK172: 110.57 | BL172: 113.1 | BM172: 115.64 | BN172: 118.17 | BO172: 120.69 | BP172: 123.2 | BQ172: 125.68 | BR172: 128.13 | BS172: 130.54 | BT172: 132.91 | BU172: 135.24 | BV172: 137.51 | BW172: 139.72 | BX172: 141.88 | BY172: 143.97 | BZ172: 145.99 | CA172: 147.94 | CB172: 149.83 | CC172: 151.65 | CD172: 153.39 | CE172: 155.06
A173: 89 | B173: 49.37 | C173: 49.6 | D173: 49.83 | E173: 50.06 | F173: 50.3 | G173: 50.54 | H173: 50.79 | I173: 51.05 | J173: 51.32 | K173: 51.59 | L173: 51.88 | M173: 52.17 | N173: 52.48 | O173: 52.79 | P173: 53.12 | Q173: 53.46 | R173: 53.82 | S173: 54.18 | T173: 54.57 | U173: 54.97 | V173: 55.38 | W173: 55.81 | X173: 57.03 | Y173: 57.53 | Z173: 58.05 | AA173: 58.59 | AB173: 59.16 | AC173: 59.75 | AD173: 60.37 | AE173: 61.02 | AF173: 61.7 | AG173: 62.41 | AH173: 63.15 | AI173: 63.92 | AJ173: 64.72 | AK173: 65.56 | AL173: 66.43 | AM173: 67.34 | AN173: 68.29 | AO173: 69.29 | AP173: 70.34 | AQ173: 71.46 | AR173: 72.64 | AS173: 73.88 | AT173: 75.23 | AU173: 76.68 | AV173: 78.23 | AW173: 79.9 | AX173: 81.66 | AY173: 83.52 | AZ173: 85.48 | BA173: 87.52 | BB173: 89.65 | BC173: 91.86 | BD173: 94.14 | BE173: 96.5 | BF173: 98.91 | BG173: 101.39 | BH173: 103.91 | BI173: 106.47 | BJ173: 109.07 | BK173: 111.69 | BL173: 114.33 | BM173: 116.99 | BN173: 119.64 | BO173: 122.3 | BP173: 124.94 | BQ173: 127.56 | BR173: 130.15 | BS173: 132.71 | BT173: 135.24 | BU173: 137.72 | BV173: 140.14 | BW173: 142.52 | BX173: 144.83 | BY173: 147.08 | BZ173: 149.27 | CA173: 151.38 | CB173: 153.43 | CC173: 155.4 | CD173: 157.31 | CE173: 159.13
A174: 90 | B174: 49.38 | C174: 49.6 | D174: 49.83 | E174: 50.06 | F174: 50.3 | G174: 50.55 | H174: 50.8 | I174: 51.06 | J174: 51.32 | K174: 51.6 | L174: 51.88 | M174: 52.18 | N174: 52.48 | O174: 52.8 | P174: 53.12 | Q174: 53.47 | R174: 53.82 | S174: 54.19 | T174: 54.58 | U174: 54.97 | V174: 55.39 | W174: 55.82 | X174: 57.04 | Y174: 57.54 | Z174: 58.06 | AA174: 58.61 | AB174: 59.18 | AC174: 59.77 | AD174: 60.39 | AE174: 61.05 | AF174: 61.73 | AG174: 62.44 | AH174: 63.18 | AI174: 63.96 | AJ174: 64.77 | AK174: 65.61 | AL174: 66.48 | AM174: 67.4 | AN174: 68.36 | AO174: 69.36 | AP174: 70.43 | AQ174: 71.55 | AR174: 72.74 | AS174: 74 | AT174: 75.35 | AU174: 76.82 | AV174: 78.4 | AW174: 80.09 | AX174: 81.88 | AY174: 83.77 | AZ174: 85.76 | BA174: 87.85 | BB174: 90.03 | BC174: 92.29 | BD174: 94.63 | BE174: 97.05 | BF174: 99.53 | BG174: 102.08 | BH174: 104.69 | BI174: 107.34 | BJ174: 110.03 | BK174: 112.76 | BL174: 115.51 | BM174: 118.28 | BN174: 121.06 | BO174: 123.84 | BP174: 126.62 | BQ174: 129.38 | BR174: 132.12 | BS174: 134.83 | BT174: 137.51 | BU174: 140.14 | BV174: 142.73 | BW174: 145.27 | BX174: 147.75 | BY174: 150.17 | BZ174: 152.52 | CA174: 154.8 | CB174: 157.02 | CC174: 159.16 | CD174: 161.22 | CE174: 163.21
A175: 91 | B175: 49.38 | C175: 49.6 | D175: 49.83 | E175: 50.07 | F175: 50.3 | G175: 50.55 | H175: 50.8 | I175: 51.06 | J175: 51.33 | K175: 51.6 | L175: 51.89 | M175: 52.18 | N175: 52.49 | O175: 52.8 | P175: 53.13 | Q175: 53.47 | R175: 53.83 | S175: 54.2 | T175: 54.58 | U175: 54.98 | V175: 55.4 | W175: 55.83 | X175: 57.05 | Y175: 57.55 | Z175: 58.08 | AA175: 58.62 | AB175: 59.19 | AC175: 59.79 | AD175: 60.41 | AE175: 61.07 | AF175: 61.75 | AG175: 62.47 | AH175: 63.22 | AI175: 64 | AJ175: 64.81 | AK175: 65.65 | AL175: 66.53 | AM175: 67.45 | AN175: 68.42 | AO175: 69.43 | AP175: 70.5 | AQ175: 71.63 | AR175: 72.83 | AS175: 74.1 | AT175: 75.47 | AU175: 76.96 | AV175: 78.55 | AW175: 80.26 | AX175: 82.08 | AY175: 84 | AZ175: 86.03 | BA175: 88.16 | BB175: 90.38 | BC175: 92.69 | BD175: 95.09 | BE175: 97.56 | BF175: 100.12 | BG175: 102.74 | BH175: 105.42 | BI175: 108.16 | BJ175: 110.95 | BK175: 113.78 | BL175: 116.64 | BM175: 119.52 | BN175: 122.42 | BO175: 125.33 | BP175: 128.24 | BQ175: 131.14 | BR175: 134.03 | BS175: 136.89 | BT175: 139.72 | BU175: 142.52 | BV175: 145.27 | BW175: 147.97 | BX175: 150.62 | BY175: 153.21 | BZ175: 155.73 | CA175: 158.19 | CB175: 160.58 | CC175: 162.89 | CD175: 165.13 | CE175: 167.29
A176: 92 | B176: 49.38 | C176: 49.61 | D176: 49.84 | E176: 50.07 | F176: 50.31 | G176: 50.55 | H176: 50.8 | I176: 51.06 | J176: 51.33 | K176: 51.61 | L176: 51.89 | M176: 52.18 | N176: 52.49 | O176: 52.81 | P176: 53.13 | Q176: 53.48 | R176: 53.83 | S176: 54.2 | T176: 54.59 | U176: 54.99 | V176: 55.41 | W176: 55.84 | X176: 57.06 | Y176: 57.56 | Z176: 58.09 | AA176: 58.64 | AB176: 59.21 | AC176: 59.81 | AD176: 60.43 | AE176: 61.09 | AF176: 61.78 | AG176: 62.5 | AH176: 63.25 | AI176: 64.03 | AJ176: 64.85 | AK176: 65.7 | AL176: 66.58 | AM176: 67.51 | AN176: 68.48 | AO176: 69.5 | AP176: 70.57 | AQ176: 71.71 | AR176: 72.92 | AS176: 74.2 | AT176: 75.58 | AU176: 77.08 | AV176: 78.69 | AW176: 80.42 | AX176: 82.27 | AY176: 84.22 | AZ176: 86.28 | BA176: 88.44 | BB176: 90.7 | BC176: 93.06 | BD176: 95.51 | BE176: 98.05 | BF176: 100.67 | BG176: 103.36 | BH176: 106.12 | BI176: 108.94 | BJ176: 111.82 | BK176: 114.75 | BL176: 117.71 | BM176: 120.71 | BN176: 123.73 | BO176: 126.76 | BP176: 129.8 | BQ176: 132.84 | BR176: 135.87 | BS176: 138.89 | BT176: 141.88 | BU176: 144.83 | BV176: 147.75 | BW176: 150.62 | BX176: 153.44 | BY176: 156.2 | BZ176: 158.9 | CA176: 161.54 | CB176: 164.1 | CC176: 166.6 | CD176: 169.01 | CE176: 171.35
A177: 93 | B177: 49.39 | C177: 49.61 | D177: 49.84 | E177: 50.07 | F177: 50.31 | G177: 50.56 | H177: 50.81 | I177: 51.07 | J177: 51.33 | K177: 51.61 | L177: 51.89 | M177: 52.19 | N177: 52.49 | O177: 52.81 | P177: 53.14 | Q177: 53.48 | R177: 53.84 | S177: 54.21 | T177: 54.6 | U177: 55 | V177: 55.41 | W177: 55.85 | X177: 57.07 | Y177: 57.57 | Z177: 58.1 | AA177: 58.65 | AB177: 59.22 | AC177: 59.82 | AD177: 60.45 | AE177: 61.11 | AF177: 61.8 | AG177: 62.52 | AH177: 63.27 | AI177: 64.06 | AJ177: 64.88 | AK177: 65.73 | AL177: 66.62 | AM177: 67.55 | AN177: 68.53 | AO177: 69.55 | AP177: 70.64 | AQ177: 71.78 | AR177: 73 | AS177: 74.29 | AT177: 75.68 | AU177: 77.19 | AV177: 78.82 | AW177: 80.57 | AX177: 82.44 | AY177: 84.42 | AZ177: 86.51 | BA177: 88.71 | BB177: 91.01 | BC177: 93.41 | BD177: 95.91 | BE177: 98.5 | BF177: 101.18 | BG177: 103.94 | BH177: 106.78 | BI177: 109.68 | BJ177: 112.64 | BK177: 115.66 | BL177: 118.73 | BM177: 121.84 | BN177: 124.97 | BO177: 128.13 | BP177: 131.3 | BQ177: 134.48 | BR177: 137.66 | BS177: 140.82 | BT177: 143.97 | BU177: 147.08 | BV177: 150.17 | BW177: 153.21 | BX177: 156.2 | BY177: 159.14 | BZ177: 162.03 | CA177: 164.84 | CB177: 167.59 | CC177: 170.27 | CD177: 172.87 | CE177: 175.39
A178: 94 | B178: 49.39 | C178: 49.61 | D178: 49.84 | E178: 50.07 | F178: 50.31 | G178: 50.56 | H178: 50.81 | I178: 51.07 | J178: 51.34 | K178: 51.61 | L178: 51.9 | M178: 52.19 | N178: 52.5 | O178: 52.81 | P178: 53.14 | Q178: 53.49 | R178: 53.84 | S178: 54.21 | T178: 54.6 | U178: 55 | V178: 55.42 | W178: 55.86 | X178: 57.08 | Y178: 57.58 | Z178: 58.11 | AA178: 58.66 | AB178: 59.23 | AC178: 59.84 | AD178: 60.47 | AE178: 61.13 | AF178: 61.82 | AG178: 62.54 | AH178: 63.3 | AI178: 64.09 | AJ178: 64.91 | AK178: 65.77 | AL178: 66.66 | AM178: 67.6 | AN178: 68.58 | AO178: 69.61 | AP178: 70.7 | AQ178: 71.85 | AR178: 73.07 | AS178: 74.37 | AT178: 75.77 | AU178: 77.3 | AV178: 78.94 | AW178: 80.71 | AX178: 82.6 | AY178: 84.6 | AZ178: 86.72 | BA178: 88.95 | BB178: 91.29 | BC178: 93.73 | BD178: 96.28 | BE178: 98.93 | BF178: 101.66 | BG178: 104.49 | BH178: 107.39 | BI178: 110.37 | BJ178: 113.42 | BK178: 116.54 | BL178: 119.7 | BM178: 122.91 | BN178: 126.16 | BO178: 129.44 | BP178: 132.74 | BQ178: 136.06 | BR178: 139.38 | BS178: 142.69 | BT178: 145.99 | BU178: 149.27 | BV178: 152.52 | BW178: 155.73 | BX178: 158.9 | BY178: 162.03 | BZ178: 165.09 | CA178: 168.1 | CB178: 171.03 | CC178: 173.9 | CD178: 176.69 | CE178: 179.41
A179: 95 | B179: 49.39 | C179: 49.61 | D179: 49.84 | E179: 50.08 | F179: 50.32 | G179: 50.56 | H179: 50.81 | I179: 51.07 | J179: 51.34 | K179: 51.61 | L179: 51.9 | M179: 52.19 | N179: 52.5 | O179: 52.82 | P179: 53.15 | Q179: 53.49 | R179: 53.85 | S179: 54.22 | T179: 54.61 | U179: 55.01 | V179: 55.43 | W179: 55.86 | X179: 57.08 | Y179: 57.59 | Z179: 58.12 | AA179: 58.67 | AB179: 59.25 | AC179: 59.85 | AD179: 60.48 | AE179: 61.15 | AF179: 61.84 | AG179: 62.57 | AH179: 63.32 | AI179: 64.12 | AJ179: 64.94 | AK179: 65.8 | AL179: 66.7 | AM179: 67.64 | AN179: 68.62 | AO179: 69.66 | AP179: 70.75 | AQ179: 71.91 | AR179: 73.14 | AS179: 74.44 | AT179: 75.86 | AU179: 77.39 | AV179: 79.05 | AW179: 80.84 | AX179: 82.74 | AY179: 84.77 | AZ179: 86.92 | BA179: 89.18 | BB179: 91.55 | BC179: 94.04 | BD179: 96.63 | BE179: 99.32 | BF179: 102.11 | BG179: 105 | BH179: 107.97 | BI179: 111.03 | BJ179: 114.16 | BK179: 117.36 | BL179: 120.62 | BM179: 123.94 | BN179: 127.3 | BO179: 130.7 | BP179: 134.12 | BQ179: 137.57 | BR179: 141.03 | BS179: 144.49 | BT179: 147.94 | BU179: 151.38 | BV179: 154.8 | BW179: 158.19 | BX179: 161.54 | BY179: 164.84 | BZ179: 168.1 | CA179: 171.29 | CB179: 174.42 | CC179: 177.48 | CD179: 180.47 | CE179: 183.39
A180: 96 | B180: 49.39 | C180: 49.62 | D180: 49.84 | E180: 50.08 | F180: 50.32 | G180: 50.56 | H180: 50.82 | I180: 51.07 | J180: 51.34 | K180: 51.62 | L180: 51.9 | M180: 52.2 | N180: 52.5 | O180: 52.82 | P180: 53.15 | Q180: 53.49 | R180: 53.85 | S180: 54.22 | T180: 54.61 | U180: 55.01 | V180: 55.43 | W180: 55.87 | X180: 57.09 | Y180: 57.6 | Z180: 58.13 | AA180: 58.68 | AB180: 59.26 | AC180: 59.86 | AD180: 60.5 | AE180: 61.16 | AF180: 61.86 | AG180: 62.58 | AH180: 63.35 | AI180: 64.14 | AJ180: 64.97 | AK180: 65.83 | AL180: 66.73 | AM180: 67.67 | AN180: 68.66 | AO180: 69.7 | AP180: 70.8 | AQ180: 71.96 | AR180: 73.2 | AS180: 74.51 | AT180: 75.93 | AU180: 77.48 | AV180: 79.15 | AW180: 80.95 | AX180: 82.88 | AY180: 84.93 | AZ180: 87.1 | BA180: 89.39 | BB180: 91.79 | BC180: 94.32 | BD180: 96.95 | BE180: 99.69 | BF180: 102.53 | BG180: 105.48 | BH180: 108.52 | BI180: 111.64 | BJ180: 114.85 | BK180: 118.14 | BL180: 121.49 | BM180: 124.91 | BN180: 128.38 | BO180: 131.89 | BP180: 135.44 | BQ180: 139.02 | BR180: 142.61 | BS180: 146.22 | BT180: 149.83 | BU180: 153.43 | BV180: 157.02 | BW180: 160.58 | BX180: 164.1 | BY180: 167.59 | BZ180: 171.03 | CA180: 174.42 | CB180: 177.75 | CC180: 181.01 | CD180: 184.2 | CE180: 187.32
A181: 97 | B181: 49.39 | C181: 49.62 | D181: 49.85 | E181: 50.08 | F181: 50.32 | G181: 50.57 | H181: 50.82 | I181: 51.08 | J181: 51.34 | K181: 51.62 | L181: 51.91 | M181: 52.2 | N181: 52.51 | O181: 52.82 | P181: 53.15 | Q181: 53.5 | R181: 53.86 | S181: 54.23 | T181: 54.62 | U181: 55.02 | V181: 55.44 | W181: 55.88 | X181: 57.1 | Y181: 57.61 | Z181: 58.14 | AA181: 58.69 | AB181: 59.27 | AC181: 59.87 | AD181: 60.51 | AE181: 61.17 | AF181: 61.87 | AG181: 62.6 | AH181: 63.37 | AI181: 64.16 | AJ181: 65 | AK181: 65.86 | AL181: 66.76 | AM181: 67.71 | AN181: 68.7 | AO181: 69.74 | AP181: 70.85 | AQ181: 72.02 | AR181: 73.26 | AS181: 74.58 | AT181: 76 | AU181: 77.56 | AV181: 79.25 | AW181: 81.06 | AX181: 83 | AY181: 85.07 | AZ181: 87.27 | BA181: 89.58 | BB181: 92.02 | BC181: 94.58 | BD181: 97.25 | BE181: 100.03 | BF181: 102.93 | BG181: 105.93 | BH181: 109.03 | BI181: 112.22 | BJ181: 115.51 | BK181: 118.87 | BL181: 122.32 | BM181: 125.83 | BN181: 129.4 | BO181: 133.03 | BP181: 136.7 | BQ181: 140.4 | BR181: 144.13 | BS181: 147.89 | BT181: 151.65 | BU181: 155.4 | BV181: 159.16 | BW181: 162.89 | BX181: 166.6 | BY181: 170.27 | BZ181: 173.9 | CA181: 177.48 | CB181: 181.01 | CC181: 184.47 | CD181: 187.87 | CE181: 191.2
A182: 98 | B182: 49.39 | C182: 49.62 | D182: 49.85 | E182: 50.08 | F182: 50.32 | G182: 50.57 | H182: 50.82 | I182: 51.08 | J182: 51.35 | K182: 51.62 | L182: 51.91 | M182: 52.2 | N182: 52.51 | O182: 52.83 | P182: 53.16 | Q182: 53.5 | R182: 53.86 | S182: 54.23 | T182: 54.62 | U182: 55.02 | V182: 55.44 | W182: 55.88 | X182: 57.1 | Y182: 57.61 | Z182: 58.14 | AA182: 58.7 | AB182: 59.28 | AC182: 59.88 | AD182: 60.52 | AE182: 61.19 | AF182: 61.89 | AG182: 62.62 | AH182: 63.38 | AI182: 64.19 | AJ182: 65.02 | AK182: 65.89 | AL182: 66.79 | AM182: 67.74 | AN182: 68.73 | AO182: 69.78 | AP182: 70.89 | AQ182: 72.06 | AR182: 73.31 | AS182: 74.63 | AT182: 76.07 | AU182: 77.63 | AV182: 79.33 | AW182: 81.16 | AX182: 83.12 | AY182: 85.2 | AZ182: 87.42 | BA182: 89.76 | BB182: 92.23 | BC182: 94.82 | BD182: 97.53 | BE182: 100.35 | BF182: 103.29 | BG182: 106.35 | BH182: 109.5 | BI182: 112.76 | BJ182: 116.12 | BK182: 119.56 | BL182: 123.09 | BM182: 126.7 | BN182: 130.37 | BO182: 134.1 | BP182: 137.89 | BQ182: 141.72 | BR182: 145.59 | BS182: 149.48 | BT182: 153.39 | BU182: 157.31 | BV182: 161.22 | BW182: 165.13 | BX182: 169.01 | BY182: 172.87 | BZ182: 176.69 | CA182: 180.47 | CB182: 184.2 | CC182: 187.87 | CD182: 191.48 | CE182: 195.02
A183: 99 | B183: 49.4 | C183: 49.62 | D183: 49.85 | E183: 50.08 | F183: 50.32 | G183: 50.57 | H183: 50.82 | I183: 51.08 | J183: 51.35 | K183: 51.62 | L183: 51.91 | M183: 52.2 | N183: 52.51 | O183: 52.83 | P183: 53.16 | Q183: 53.5 | R183: 53.86 | S183: 54.23 | T183: 54.62 | U183: 55.03 | V183: 55.45 | W183: 55.89 | X183: 57.11 | Y183: 57.62 | Z183: 58.15 | AA183: 58.7 | AB183: 59.28 | AC183: 59.89 | AD183: 60.53 | AE183: 61.2 | AF183: 61.9 | AG183: 62.63 | AH183: 63.4 | AI183: 64.2 | AJ183: 65.04 | AK183: 65.91 | AL183: 66.82 | AM183: 67.77 | AN183: 68.77 | AO183: 69.82 | AP183: 70.93 | AQ183: 72.11 | AR183: 73.36 | AS183: 74.69 | AT183: 76.13 | AU183: 77.7 | AV183: 79.41 | AW183: 81.25 | AX183: 83.22 | AY183: 85.33 | AZ183: 87.56 | BA183: 89.93 | BB183: 92.42 | BC183: 95.04 | BD183: 97.78 | BE183: 100.65 | BF183: 103.64 | BG183: 106.74 | BH183: 109.95 | BI183: 113.27 | BJ183: 116.69 | BK183: 120.21 | BL183: 123.82 | BM183: 127.52 | BN183: 131.29 | BO183: 135.13 | BP183: 139.03 | BQ183: 142.98 | BR183: 146.98 | BS183: 151.01 | BT183: 155.06 | BU183: 159.13 | BV183: 163.21 | BW183: 167.29 | BX183: 171.35 | BY183: 175.39 | BZ183: 179.41 | CA183: 183.39 | CB183: 187.32 | CC183: 191.2 | CD183: 195.02 | CE183: 198.77
B186: Annexure G - Annuity Rates per Rs.1000 Purchase Price
B188: SUD Life Immediate Annuity Plus - Annuity Option 6 -Joint Life Annuity with 100% of Life Annuity payable to the Secondary Annuitant (Spouse) on death of the Primary Annuitant and Return of Purchase Price on death of the last survivor.
B190: Yearly Annuity rates for a purchase price of Rs. 1,000 payable on monthly basis
B192: Secondary Life
A193: Primary Life | B193: 18 | C193: 19 | D193: 20 | E193: 21 | F193: 22 | G193: 23 | H193: 24 | I193: 25 | J193: 26 | K193: 27 | L193: 28 | M193: 29 | N193: 30 | O193: 31 | P193: 32 | Q193: 33 | R193: 34 | S193: 35 | T193: 36 | U193: 37 | V193: 38 | W193: 39 | X193: 40 | Y193: 41 | Z193: 42 | AA193: 43 | AB193: 44 | AC193: 45 | AD193: 46 | AE193: 47 | AF193: 48 | AG193: 49 | AH193: 50 | AI193: 51 | AJ193: 52 | AK193: 53 | AL193: 54 | AM193: 55 | AN193: 56 | AO193: 57 | AP193: 58 | AQ193: 59 | AR193: 60 | AS193: 61 | AT193: 62 | AU193: 63 | AV193: 64 | AW193: 65 | AX193: 66 | AY193: 67 | AZ193: 68 | BA193: 69 | BB193: 70 | BC193: 71 | BD193: 72 | BE193: 73 | BF193: 74 | BG193: 75 | BH193: 76 | BI193: 77 | BJ193: 78 | BK193: 79 | BL193: 80 | BM193: 81 | BN193: 82 | BO193: 83 | BP193: 84 | BQ193: 85 | BR193: 86 | BS193: 87 | BT193: 88 | BU193: 89 | BV193: 90 | BW193: 91 | BX193: 92 | BY193: 93 | BZ193: 94 | CA193: 95 | CB193: 96 | CC193: 97 | CD193: 98 | CE193: 99
A194: 18 | B194: 45.36 | C194: 45.41 | D194: 45.46 | E194: 45.51 | F194: 45.56 | G194: 45.6 | H194: 45.65 | I194: 45.69 | J194: 45.72 | K194: 45.76 | L194: 45.8 | M194: 45.83 | N194: 45.86 | O194: 45.89 | P194: 45.92 | Q194: 45.94 | R194: 45.97 | S194: 45.99 | T194: 46.01 | U194: 46.03 | V194: 46.05 | W194: 46.07 | X194: 46.08 | Y194: 46.1 | Z194: 46.11 | AA194: 46.13 | AB194: 46.14 | AC194: 46.15 | AD194: 46.16 | AE194: 46.17 | AF194: 46.18 | AG194: 46.19 | AH194: 46.19 | AI194: 46.2 | AJ194: 46.2 | AK194: 46.21 | AL194: 46.21 | AM194: 46.22 | AN194: 46.22 | AO194: 46.23 | AP194: 46.23 | AQ194: 46.23 | AR194: 46.23 | AS194: 46.23 | AT194: 46.24 | AU194: 46.24 | AV194: 46.24 | AW194: 46.24 | AX194: 46.24 | AY194: 46.24 | AZ194: 46.24 | BA194: 46.24 | BB194: 46.24 | BC194: 46.24 | BD194: 46.24 | BE194: 46.24 | BF194: 46.24 | BG194: 46.24 | BH194: 46.23 | BI194: 46.23 | BJ194: 46.23 | BK194: 46.23 | BL194: 46.23 | BM194: 46.23 | BN194: 46.23 | BO194: 46.23 | BP194: 46.23 | BQ194: 46.23 | BR194: 46.23 | BS194: 46.23 | BT194: 46.23 | BU194: 46.23 | BV194: 46.23 | BW194: 46.23 | BX194: 46.23 | BY194: 46.22 | BZ194: 46.22 | CA194: 46.22 | CB194: 46.22 | CC194: 46.22 | CD194: 46.22 | CE194: 46.22
A195: 19 | B195: 45.41 | C195: 45.47 | D195: 45.52 | E195: 45.57 | F195: 45.62 | G195: 45.67 | H195: 45.71 | I195: 45.76 | J195: 45.8 | K195: 45.84 | L195: 45.87 | M195: 45.91 | N195: 45.94 | O195: 45.97 | P195: 46 | Q195: 46.03 | R195: 46.06 | S195: 46.08 | T195: 46.11 | U195: 46.13 | V195: 46.15 | W195: 46.17 | X195: 46.18 | Y195: 46.2 | Z195: 46.22 | AA195: 46.23 | AB195: 46.24 | AC195: 46.25 | AD195: 46.27 | AE195: 46.28 | AF195: 46.28 | AG195: 46.29 | AH195: 46.3 | AI195: 46.31 | AJ195: 46.31 | AK195: 46.32 | AL195: 46.33 | AM195: 46.33 | AN195: 46.33 | AO195: 46.34 | AP195: 46.34 | AQ195: 46.34 | AR195: 46.35 | AS195: 46.35 | AT195: 46.35 | AU195: 46.35 | AV195: 46.35 | AW195: 46.35 | AX195: 46.35 | AY195: 46.35 | AZ195: 46.35 | BA195: 46.35 | BB195: 46.35 | BC195: 46.35 | BD195: 46.35 | BE195: 46.35 | BF195: 46.35 | BG195: 46.35 | BH195: 46.35 | BI195: 46.35 | BJ195: 46.35 | BK195: 46.35 | BL195: 46.35 | BM195: 46.34 | BN195: 46.34 | BO195: 46.34 | BP195: 46.34 | BQ195: 46.34 | BR195: 46.34 | BS195: 46.34 | BT195: 46.34 | BU195: 46.34 | BV195: 46.34 | BW195: 46.34 | BX195: 46.34 | BY195: 46.34 | BZ195: 46.34 | CA195: 46.34 | CB195: 46.34 | CC195: 46.34 | CD195: 46.34 | CE195: 46.34
A196: 20 | B196: 45.46 | C196: 45.52 | D196: 45.58 | E196: 45.63 | F196: 45.68 | G196: 45.73 | H196: 45.78 | I196: 45.83 | J196: 45.87 | K196: 45.91 | L196: 45.95 | M196: 45.99 | N196: 46.02 | O196: 46.06 | P196: 46.09 | Q196: 46.12 | R196: 46.15 | S196: 46.17 | T196: 46.2 | U196: 46.22 | V196: 46.24 | W196: 46.26 | X196: 46.28 | Y196: 46.3 | Z196: 46.32 | AA196: 46.33 | AB196: 46.35 | AC196: 46.36 | AD196: 46.37 | AE196: 46.38 | AF196: 46.39 | AG196: 46.4 | AH196: 46.41 | AI196: 46.42 | AJ196: 46.42 | AK196: 46.43 | AL196: 46.44 | AM196: 46.44 | AN196: 46.45 | AO196: 46.45 | AP196: 46.45 | AQ196: 46.46 | AR196: 46.46 | AS196: 46.46 | AT196: 46.46 | AU196: 46.46 | AV196: 46.46 | AW196: 46.47 | AX196: 46.47 | AY196: 46.47 | AZ196: 46.47 | BA196: 46.47 | BB196: 46.47 | BC196: 46.47 | BD196: 46.47 | BE196: 46.46 | BF196: 46.46 | BG196: 46.46 | BH196: 46.46 | BI196: 46.46 | BJ196: 46.46 | BK196: 46.46 | BL196: 46.46 | BM196: 46.46 | BN196: 46.46 | BO196: 46.46 | BP196: 46.46 | BQ196: 46.46 | BR196: 46.46 | BS196: 46.46 | BT196: 46.45 | BU196: 46.45 | BV196: 46.45 | BW196: 46.45 | BX196: 46.45 | BY196: 46.45 | BZ196: 46.45 | CA196: 46.45 | CB196: 46.45 | CC196: 46.45 | CD196: 46.45 | CE196: 46.45
A197: 21 | B197: 45.51 | C197: 45.57 | D197: 45.63 | E197: 45.69 | F197: 45.74 | G197: 45.79 | H197: 45.84 | I197: 45.89 | J197: 45.94 | K197: 45.98 | L197: 46.02 | M197: 46.06 | N197: 46.1 | O197: 46.14 | P197: 46.17 | Q197: 46.2 | R197: 46.23 | S197: 46.26 | T197: 46.29 | U197: 46.31 | V197: 46.34 | W197: 46.36 | X197: 46.38 | Y197: 46.4 | Z197: 46.42 | AA197: 46.43 | AB197: 46.45 | AC197: 46.46 | AD197: 46.48 | AE197: 46.49 | AF197: 46.5 | AG197: 46.51 | AH197: 46.52 | AI197: 46.53 | AJ197: 46.54 | AK197: 46.54 | AL197: 46.55 | AM197: 46.55 | AN197: 46.56 | AO197: 46.56 | AP197: 46.57 | AQ197: 46.57 | AR197: 46.57 | AS197: 46.57 | AT197: 46.58 | AU197: 46.58 | AV197: 46.58 | AW197: 46.58 | AX197: 46.58 | AY197: 46.58 | AZ197: 46.58 | BA197: 46.58 | BB197: 46.58 | BC197: 46.58 | BD197: 46.58 | BE197: 46.58 | BF197: 46.58 | BG197: 46.58 | BH197: 46.58 | BI197: 46.58 | BJ197: 46.58 | BK197: 46.58 | BL197: 46.58 | BM197: 46.57 | BN197: 46.57 | BO197: 46.57 | BP197: 46.57 | BQ197: 46.57 | BR197: 46.57 | BS197: 46.57 | BT197: 46.57 | BU197: 46.57 | BV197: 46.57 | BW197: 46.57 | BX197: 46.57 | BY197: 46.57 | BZ197: 46.57 | CA197: 46.57 | CB197: 46.57 | CC197: 46.57 | CD197: 46.57 | CE197: 46.57
A198: 22 | B198: 45.56 | C198: 45.62 | D198: 45.68 | E198: 45.74 | F198: 45.8 | G198: 45.85 | H198: 45.91 | I198: 45.96 | J198: 46.01 | K198: 46.05 | L198: 46.1 | M198: 46.14 | N198: 46.18 | O198: 46.22 | P198: 46.25 | Q198: 46.29 | R198: 46.32 | S198: 46.35 | T198: 46.38 | U198: 46.41 | V198: 46.43 | W198: 46.46 | X198: 46.48 | Y198: 46.5 | Z198: 46.52 | AA198: 46.54 | AB198: 46.55 | AC198: 46.57 | AD198: 46.58 | AE198: 46.6 | AF198: 46.61 | AG198: 46.62 | AH198: 46.63 | AI198: 46.64 | AJ198: 46.65 | AK198: 46.65 | AL198: 46.66 | AM198: 46.67 | AN198: 46.67 | AO198: 46.68 | AP198: 46.68 | AQ198: 46.68 | AR198: 46.69 | AS198: 46.69 | AT198: 46.69 | AU198: 46.69 | AV198: 46.69 | AW198: 46.7 | AX198: 46.7 | AY198: 46.7 | AZ198: 46.7 | BA198: 46.7 | BB198: 46.7 | BC198: 46.7 | BD198: 46.7 | BE198: 46.7 | BF198: 46.7 | BG198: 46.69 | BH198: 46.69 | BI198: 46.69 | BJ198: 46.69 | BK198: 46.69 | BL198: 46.69 | BM198: 46.69 | BN198: 46.69 | BO198: 46.69 | BP198: 46.69 | BQ198: 46.69 | BR198: 46.69 | BS198: 46.69 | BT198: 46.69 | BU198: 46.69 | BV198: 46.68 | BW198: 46.68 | BX198: 46.68 | BY198: 46.68 | BZ198: 46.68 | CA198: 46.68 | CB198: 46.68 | CC198: 46.68 | CD198: 46.68 | CE198: 46.68
A199: 23 | B199: 45.6 | C199: 45.67 | D199: 45.73 | E199: 45.79 | F199: 45.85 | G199: 45.91 | H199: 45.97 | I199: 46.02 | J199: 46.07 | K199: 46.12 | L199: 46.17 | M199: 46.21 | N199: 46.25 | O199: 46.29 | P199: 46.33 | Q199: 46.37 | R199: 46.4 | S199: 46.44 | T199: 46.47 | U199: 46.5 | V199: 46.53 | W199: 46.55 | X199: 46.57 | Y199: 46.6 | Z199: 46.62 | AA199: 46.64 | AB199: 46.66 | AC199: 46.67 | AD199: 46.69 | AE199: 46.7 | AF199: 46.72 | AG199: 46.73 | AH199: 46.74 | AI199: 46.75 | AJ199: 46.76 | AK199: 46.77 | AL199: 46.77 | AM199: 46.78 | AN199: 46.79 | AO199: 46.79 | AP199: 46.79 | AQ199: 46.8 | AR199: 46.8 | AS199: 46.81 | AT199: 46.81 | AU199: 46.81 | AV199: 46.81 | AW199: 46.81 | AX199: 46.81 | AY199: 46.81 | AZ199: 46.81 | BA199: 46.81 | BB199: 46.81 | BC199: 46.81 | BD199: 46.81 | BE199: 46.81 | BF199: 46.81 | BG199: 46.81 | BH199: 46.81 | BI199: 46.81 | BJ199: 46.81 | BK199: 46.81 | BL199: 46.81 | BM199: 46.81 | BN199: 46.81 | BO199: 46.81 | BP199: 46.81 | BQ199: 46.8 | BR199: 46.8 | BS199: 46.8 | BT199: 46.8 | BU199: 46.8 | BV199: 46.8 | BW199: 46.8 | BX199: 46.8 | BY199: 46.8 | BZ199: 46.8 | CA199: 46.8 | CB199: 46.8 | CC199: 46.8 | CD199: 46.8 | CE199: 46.8
A200: 24 | B200: 45.65 | C200: 45.71 | D200: 45.78 | E200: 45.84 | F200: 45.91 | G200: 45.97 | H200: 46.02 | I200: 46.08 | J200: 46.13 | K200: 46.19 | L200: 46.24 | M200: 46.28 | N200: 46.33 | O200: 46.37 | P200: 46.41 | Q200: 46.45 | R200: 46.49 | S200: 46.52 | T200: 46.56 | U200: 46.59 | V200: 46.62 | W200: 46.65 | X200: 46.67 | Y200: 46.7 | Z200: 46.72 | AA200: 46.74 | AB200: 46.76 | AC200: 46.78 | AD200: 46.79 | AE200: 46.81 | AF200: 46.82 | AG200: 46.84 | AH200: 46.85 | AI200: 46.86 | AJ200: 46.87 | AK200: 46.88 | AL200: 46.89 | AM200: 46.89 | AN200: 46.9 | AO200: 46.91 | AP200: 46.91 | AQ200: 46.91 | AR200: 46.92 | AS200: 46.92 | AT200: 46.92 | AU200: 46.93 | AV200: 46.93 | AW200: 46.93 | AX200: 46.93 | AY200: 46.93 | AZ200: 46.93 | BA200: 46.93 | BB200: 46.93 | BC200: 46.93 | BD200: 46.93 | BE200: 46.93 | BF200: 46.93 | BG200: 46.93 | BH200: 46.93 | BI200: 46.93 | BJ200: 46.93 | BK200: 46.93 | BL200: 46.93 | BM200: 46.92 | BN200: 46.92 | BO200: 46.92 | BP200: 46.92 | BQ200: 46.92 | BR200: 46.92 | BS200: 46.92 | BT200: 46.92 | BU200: 46.92 | BV200: 46.92 | BW200: 46.92 | BX200: 46.92 | BY200: 46.92 | BZ200: 46.92 | CA200: 46.92 | CB200: 46.92 | CC200: 46.92 | CD200: 46.92 | CE200: 46.92
A201: 25 | B201: 45.69 | C201: 45.76 | D201: 45.83 | E201: 45.89 | F201: 45.96 | G201: 46.02 | H201: 46.08 | I201: 46.14 | J201: 46.2 | K201: 46.25 | L201: 46.3 | M201: 46.35 | N201: 46.4 | O201: 46.45 | P201: 46.49 | Q201: 46.53 | R201: 46.57 | S201: 46.61 | T201: 46.64 | U201: 46.68 | V201: 46.71 | W201: 46.74 | X201: 46.77 | Y201: 46.79 | Z201: 46.82 | AA201: 46.84 | AB201: 46.86 | AC201: 46.88 | AD201: 46.9 | AE201: 46.92 | AF201: 46.93 | AG201: 46.95 | AH201: 46.96 | AI201: 46.97 | AJ201: 46.98 | AK201: 46.99 | AL201: 47 | AM201: 47.01 | AN201: 47.01 | AO201: 47.02 | AP201: 47.03 | AQ201: 47.03 | AR201: 47.03 | AS201: 47.04 | AT201: 47.04 | AU201: 47.04 | AV201: 47.05 | AW201: 47.05 | AX201: 47.05 | AY201: 47.05 | AZ201: 47.05 | BA201: 47.05 | BB201: 47.05 | BC201: 47.05 | BD201: 47.05 | BE201: 47.05 | BF201: 47.05 | BG201: 47.05 | BH201: 47.05 | BI201: 47.05 | BJ201: 47.05 | BK201: 47.05 | BL201: 47.04 | BM201: 47.04 | BN201: 47.04 | BO201: 47.04 | BP201: 47.04 | BQ201: 47.04 | BR201: 47.04 | BS201: 47.04 | BT201: 47.04 | BU201: 47.04 | BV201: 47.04 | BW201: 47.04 | BX201: 47.04 | BY201: 47.04 | BZ201: 47.04 | CA201: 47.04 | CB201: 47.04 | CC201: 47.03 | CD201: 47.03 | CE201: 47.03
A202: 26 | B202: 45.72 | C202: 45.8 | D202: 45.87 | E202: 45.94 | F202: 46.01 | G202: 46.07 | H202: 46.13 | I202: 46.2 | J202: 46.25 | K202: 46.31 | L202: 46.37 | M202: 46.42 | N202: 46.47 | O202: 46.52 | P202: 46.56 | Q202: 46.61 | R202: 46.65 | S202: 46.69 | T202: 46.73 | U202: 46.76 | V202: 46.8 | W202: 46.83 | X202: 46.86 | Y202: 46.89 | Z202: 46.92 | AA202: 46.94 | AB202: 46.96 | AC202: 46.98 | AD202: 47 | AE202: 47.02 | AF202: 47.04 | AG202: 47.06 | AH202: 47.07 | AI202: 47.08 | AJ202: 47.09 | AK202: 47.1 | AL202: 47.11 | AM202: 47.12 | AN202: 47.13 | AO202: 47.14 | AP202: 47.14 | AQ202: 47.15 | AR202: 47.15 | AS202: 47.16 | AT202: 47.16 | AU202: 47.16 | AV202: 47.16 | AW202: 47.17 | AX202: 47.17 | AY202: 47.17 | AZ202: 47.17 | BA202: 47.17 | BB202: 47.17 | BC202: 47.17 | BD202: 47.17 | BE202: 47.17 | BF202: 47.17 | BG202: 47.17 | BH202: 47.17 | BI202: 47.17 | BJ202: 47.17 | BK202: 47.16 | BL202: 47.16 | BM202: 47.16 | BN202: 47.16 | BO202: 47.16 | BP202: 47.16 | BQ202: 47.16 | BR202: 47.16 | BS202: 47.16 | BT202: 47.16 | BU202: 47.16 | BV202: 47.16 | BW202: 47.16 | BX202: 47.16 | BY202: 47.16 | BZ202: 47.16 | CA202: 47.16 | CB202: 47.15 | CC202: 47.15 | CD202: 47.15 | CE202: 47.15
A203: 27 | B203: 45.76 | C203: 45.84 | D203: 45.91 | E203: 45.98 | F203: 46.05 | G203: 46.12 | H203: 46.19 | I203: 46.25 | J203: 46.31 | K203: 46.37 | L203: 46.43 | M203: 46.48 | N203: 46.54 | O203: 46.59 | P203: 46.64 | Q203: 46.68 | R203: 46.73 | S203: 46.77 | T203: 46.81 | U203: 46.85 | V203: 46.89 | W203: 46.92 | X203: 46.95 | Y203: 46.98 | Z203: 47.01 | AA203: 47.04 | AB203: 47.06 | AC203: 47.09 | AD203: 47.11 | AE203: 47.13 | AF203: 47.15 | AG203: 47.16 | AH203: 47.18 | AI203: 47.19 | AJ203: 47.21 | AK203: 47.22 | AL203: 47.23 | AM203: 47.24 | AN203: 47.25 | AO203: 47.25 | AP203: 47.26 | AQ203: 47.27 | AR203: 47.27 | AS203: 47.28 | AT203: 47.28 | AU203: 47.28 | AV203: 47.28 | AW203: 47.29 | AX203: 47.29 | AY203: 47.29 | AZ203: 47.29 | BA203: 47.29 | BB203: 47.29 | BC203: 47.29 | BD203: 47.29 | BE203: 47.29 | BF203: 47.29 | BG203: 47.29 | BH203: 47.29 | BI203: 47.29 | BJ203: 47.29 | BK203: 47.29 | BL203: 47.28 | BM203: 47.28 | BN203: 47.28 | BO203: 47.28 | BP203: 47.28 | BQ203: 47.28 | BR203: 47.28 | BS203: 47.28 | BT203: 47.28 | BU203: 47.28 | BV203: 47.28 | BW203: 47.28 | BX203: 47.28 | BY203: 47.28 | BZ203: 47.28 | CA203: 47.28 | CB203: 47.28 | CC203: 47.27 | CD203: 47.27 | CE203: 47.27
A204: 28 | B204: 45.8 | C204: 45.87 | D204: 45.95 | E204: 46.02 | F204: 46.1 | G204: 46.17 | H204: 46.24 | I204: 46.3 | J204: 46.37 | K204: 46.43 | L204: 46.49 | M204: 46.55 | N204: 46.6 | O204: 46.66 | P204: 46.71 | Q204: 46.76 | R204: 46.81 | S204: 46.85 | T204: 46.9 | U204: 46.94 | V204: 46.98 | W204: 47.01 | X204: 47.05 | Y204: 47.08 | Z204: 47.11 | AA204: 47.14 | AB204: 47.17 | AC204: 47.19 | AD204: 47.21 | AE204: 47.24 | AF204: 47.26 | AG204: 47.27 | AH204: 47.29 | AI204: 47.31 | AJ204: 47.32 | AK204: 47.33 | AL204: 47.34 | AM204: 47.35 | AN204: 47.36 | AO204: 47.37 | AP204: 47.38 | AQ204: 47.38 | AR204: 47.39 | AS204: 47.39 | AT204: 47.4 | AU204: 47.4 | AV204: 47.4 | AW204: 47.41 | AX204: 47.41 | AY204: 47.41 | AZ204: 47.41 | BA204: 47.41 | BB204: 47.41 | BC204: 47.41 | BD204: 47.41 | BE204: 47.41 | BF204: 47.41 | BG204: 47.41 | BH204: 47.41 | BI204: 47.41 | BJ204: 47.41 | BK204: 47.41 | BL204: 47.41 | BM204: 47.41 | BN204: 47.4 | BO204: 47.4 | BP204: 47.4 | BQ204: 47.4 | BR204: 47.4 | BS204: 47.4 | BT204: 47.4 | BU204: 47.4 | BV204: 47.4 | BW204: 47.4 | BX204: 47.4 | BY204: 47.4 | BZ204: 47.4 | CA204: 47.4 | CB204: 47.4 | CC204: 47.4 | CD204: 47.4 | CE204: 47.4
A205: 29 | B205: 45.83 | C205: 45.91 | D205: 45.99 | E205: 46.06 | F205: 46.14 | G205: 46.21 | H205: 46.28 | I205: 46.35 | J205: 46.42 | K205: 46.48 | L205: 46.55 | M205: 46.61 | N205: 46.67 | O205: 46.72 | P205: 46.78 | Q205: 46.83 | R205: 46.88 | S205: 46.93 | T205: 46.98 | U205: 47.02 | V205: 47.06 | W205: 47.1 | X205: 47.14 | Y205: 47.17 | Z205: 47.21 | AA205: 47.24 | AB205: 47.27 | AC205: 47.29 | AD205: 47.32 | AE205: 47.34 | AF205: 47.36 | AG205: 47.38 | AH205: 47.4 | AI205: 47.42 | AJ205: 47.43 | AK205: 47.45 | AL205: 47.46 | AM205: 47.47 | AN205: 47.48 | AO205: 47.49 | AP205: 47.5 | AQ205: 47.5 | AR205: 47.51 | AS205: 47.52 | AT205: 47.52 | AU205: 47.52 | AV205: 47.53 | AW205: 47.53 | AX205: 47.53 | AY205: 47.53 | AZ205: 47.53 | BA205: 47.53 | BB205: 47.53 | BC205: 47.53 | BD205: 47.53 | BE205: 47.53 | BF205: 47.53 | BG205: 47.53 | BH205: 47.53 | BI205: 47.53 | BJ205: 47.53 | BK205: 47.53 | BL205: 47.53 | BM205: 47.53 | BN205: 47.53 | BO205: 47.53 | BP205: 47.53 | BQ205: 47.53 | BR205: 47.52 | BS205: 47.52 | BT205: 47.52 | BU205: 47.52 | BV205: 47.52 | BW205: 47.52 | BX205: 47.52 | BY205: 47.52 | BZ205: 47.52 | CA205: 47.52 | CB205: 47.52 | CC205: 47.52 | CD205: 47.52 | CE205: 47.52
A206: 30 | B206: 45.86 | C206: 45.94 | D206: 46.02 | E206: 46.1 | F206: 46.18 | G206: 46.25 | H206: 46.33 | I206: 46.4 | J206: 46.47 | K206: 46.54 | L206: 46.6 | M206: 46.67 | N206: 46.73 | O206: 46.79 | P206: 46.85 | Q206: 46.9 | R206: 46.96 | S206: 47.01 | T206: 47.06 | U206: 47.1 | V206: 47.15 | W206: 47.19 | X206: 47.23 | Y206: 47.27 | Z206: 47.3 | AA206: 47.33 | AB206: 47.37 | AC206: 47.39 | AD206: 47.42 | AE206: 47.45 | AF206: 47.47 | AG206: 47.49 | AH206: 47.51 | AI206: 47.53 | AJ206: 47.55 | AK206: 47.56 | AL206: 47.58 | AM206: 47.59 | AN206: 47.6 | AO206: 47.61 | AP206: 47.62 | AQ206: 47.62 | AR206: 47.63 | AS206: 47.64 | AT206: 47.64 | AU206: 47.65 | AV206: 47.65 | AW206: 47.65 | AX206: 47.65 | AY206: 47.65 | AZ206: 47.66 | BA206: 47.66 | BB206: 47.66 | BC206: 47.66 | BD206: 47.66 | BE206: 47.66 | BF206: 47.66 | BG206: 47.66 | BH206: 47.66 | BI206: 47.66 | BJ206: 47.65 | BK206: 47.65 | BL206: 47.65 | BM206: 47.65 | BN206: 47.65 | BO206: 47.65 | BP206: 47.65 | BQ206: 47.65 | BR206: 47.65 | BS206: 47.65 | BT206: 47.65 | BU206: 47.65 | BV206: 47.65 | BW206: 47.65 | BX206: 47.64 | BY206: 47.64 | BZ206: 47.64 | CA206: 47.64 | CB206: 47.64 | CC206: 47.64 | CD206: 47.64 | CE206: 47.64
A207: 31 | B207: 45.89 | C207: 45.97 | D207: 46.06 | E207: 46.14 | F207: 46.22 | G207: 46.29 | H207: 46.37 | I207: 46.45 | J207: 46.52 | K207: 46.59 | L207: 46.66 | M207: 46.72 | N207: 46.79 | O207: 46.85 | P207: 46.91 | Q207: 46.97 | R207: 47.03 | S207: 47.08 | T207: 47.13 | U207: 47.18 | V207: 47.23 | W207: 47.27 | X207: 47.32 | Y207: 47.36 | Z207: 47.39 | AA207: 47.43 | AB207: 47.46 | AC207: 47.5 | AD207: 47.53 | AE207: 47.55 | AF207: 47.58 | AG207: 47.6 | AH207: 47.62 | AI207: 47.64 | AJ207: 47.66 | AK207: 47.68 | AL207: 47.69 | AM207: 47.71 | AN207: 47.72 | AO207: 47.73 | AP207: 47.74 | AQ207: 47.75 | AR207: 47.75 | AS207: 47.76 | AT207: 47.76 | AU207: 47.77 | AV207: 47.77 | AW207: 47.78 | AX207: 47.78 | AY207: 47.78 | AZ207: 47.78 | BA207: 47.78 | BB207: 47.78 | BC207: 47.78 | BD207: 47.78 | BE207: 47.78 | BF207: 47.78 | BG207: 47.78 | BH207: 47.78 | BI207: 47.78 | BJ207: 47.78 | BK207: 47.78 | BL207: 47.78 | BM207: 47.78 | BN207: 47.78 | BO207: 47.78 | BP207: 47.77 | BQ207: 47.77 | BR207: 47.77 | BS207: 47.77 | BT207: 47.77 | BU207: 47.77 | BV207: 47.77 | BW207: 47.77 | BX207: 47.77 | BY207: 47.77 | BZ207: 47.77 | CA207: 47.77 | CB207: 47.77 | CC207: 47.77 | CD207: 47.77 | CE207: 47.77
A208: 32 | B208: 45.92 | C208: 46 | D208: 46.09 | E208: 46.17 | F208: 46.25 | G208: 46.33 | H208: 46.41 | I208: 46.49 | J208: 46.56 | K208: 46.64 | L208: 46.71 | M208: 46.78 | N208: 46.85 | O208: 46.91 | P208: 46.98 | Q208: 47.04 | R208: 47.1 | S208: 47.15 | T208: 47.21 | U208: 47.26 | V208: 47.31 | W208: 47.36 | X208: 47.4 | Y208: 47.45 | Z208: 47.49 | AA208: 47.53 | AB208: 47.56 | AC208: 47.6 | AD208: 47.63 | AE208: 47.66 | AF208: 47.68 | AG208: 47.71 | AH208: 47.73 | AI208: 47.75 | AJ208: 47.77 | AK208: 47.79 | AL208: 47.81 | AM208: 47.82 | AN208: 47.84 | AO208: 47.85 | AP208: 47.86 | AQ208: 47.87 | AR208: 47.88 | AS208: 47.88 | AT208: 47.89 | AU208: 47.89 | AV208: 47.9 | AW208: 47.9 | AX208: 47.9 | AY208: 47.9 | AZ208: 47.91 | BA208: 47.91 | BB208: 47.91 | BC208: 47.91 | BD208: 47.91 | BE208: 47.91 | BF208: 47.91 | BG208: 47.91 | BH208: 47.91 | BI208: 47.91 | BJ208: 47.91 | BK208: 47.9 | BL208: 47.9 | BM208: 47.9 | BN208: 47.9 | BO208: 47.9 | BP208: 47.9 | BQ208: 47.9 | BR208: 47.9 | BS208: 47.9 | BT208: 47.9 | BU208: 47.9 | BV208: 47.9 | BW208: 47.9 | BX208: 47.9 | BY208: 47.89 | BZ208: 47.89 | CA208: 47.89 | CB208: 47.89 | CC208: 47.89 | CD208: 47.89 | CE208: 47.89
A209: 33 | B209: 45.94 | C209: 46.03 | D209: 46.12 | E209: 46.2 | F209: 46.29 | G209: 46.37 | H209: 46.45 | I209: 46.53 | J209: 46.61 | K209: 46.68 | L209: 46.76 | M209: 46.83 | N209: 46.9 | O209: 46.97 | P209: 47.04 | Q209: 47.1 | R209: 47.16 | S209: 47.22 | T209: 47.28 | U209: 47.34 | V209: 47.39 | W209: 47.44 | X209: 47.49 | Y209: 47.54 | Z209: 47.58 | AA209: 47.62 | AB209: 47.66 | AC209: 47.7 | AD209: 47.73 | AE209: 47.76 | AF209: 47.79 | AG209: 47.82 | AH209: 47.84 | AI209: 47.87 | AJ209: 47.89 | AK209: 47.91 | AL209: 47.93 | AM209: 47.94 | AN209: 47.96 | AO209: 47.97 | AP209: 47.98 | AQ209: 47.99 | AR209: 48 | AS209: 48.01 | AT209: 48.01 | AU209: 48.02 | AV209: 48.02 | AW209: 48.03 | AX209: 48.03 | AY209: 48.03 | AZ209: 48.03 | BA209: 48.03 | BB209: 48.04 | BC209: 48.04 | BD209: 48.04 | BE209: 48.04 | BF209: 48.04 | BG209: 48.03 | BH209: 48.03 | BI209: 48.03 | BJ209: 48.03 | BK209: 48.03 | BL209: 48.03 | BM209: 48.03 | BN209: 48.03 | BO209: 48.03 | BP209: 48.03 | BQ209: 48.03 | BR209: 48.03 | BS209: 48.03 | BT209: 48.02 | BU209: 48.02 | BV209: 48.02 | BW209: 48.02 | BX209: 48.02 | BY209: 48.02 | BZ209: 48.02 | CA209: 48.02 | CB209: 48.02 | CC209: 48.02 | CD209: 48.02 | CE209: 48.02
A210: 34 | B210: 45.97 | C210: 46.06 | D210: 46.15 | E210: 46.23 | F210: 46.32 | G210: 46.4 | H210: 46.49 | I210: 46.57 | J210: 46.65 | K210: 46.73 | L210: 46.81 | M210: 46.88 | N210: 46.96 | O210: 47.03 | P210: 47.1 | Q210: 47.16 | R210: 47.23 | S210: 47.29 | T210: 47.35 | U210: 47.41 | V210: 47.47 | W210: 47.52 | X210: 47.57 | Y210: 47.62 | Z210: 47.67 | AA210: 47.71 | AB210: 47.75 | AC210: 47.79 | AD210: 47.83 | AE210: 47.86 | AF210: 47.9 | AG210: 47.93 | AH210: 47.95 | AI210: 47.98 | AJ210: 48 | AK210: 48.02 | AL210: 48.04 | AM210: 48.06 | AN210: 48.08 | AO210: 48.09 | AP210: 48.1 | AQ210: 48.11 | AR210: 48.12 | AS210: 48.13 | AT210: 48.14 | AU210: 48.14 | AV210: 48.15 | AW210: 48.15 | AX210: 48.16 | AY210: 48.16 | AZ210: 48.16 | BA210: 48.16 | BB210: 48.16 | BC210: 48.16 | BD210: 48.16 | BE210: 48.16 | BF210: 48.16 | BG210: 48.16 | BH210: 48.16 | BI210: 48.16 | BJ210: 48.16 | BK210: 48.16 | BL210: 48.16 | BM210: 48.16 | BN210: 48.16 | BO210: 48.16 | BP210: 48.16 | BQ210: 48.16 | BR210: 48.15 | BS210: 48.15 | BT210: 48.15 | BU210: 48.15 | BV210: 48.15 | BW210: 48.15 | BX210: 48.15 | BY210: 48.15 | BZ210: 48.15 | CA210: 48.15 | CB210: 48.15 | CC210: 48.15 | CD210: 48.15 | CE210: 48.15
A211: 35 | B211: 45.99 | C211: 46.08 | D211: 46.17 | E211: 46.26 | F211: 46.35 | G211: 46.44 | H211: 46.52 | I211: 46.61 | J211: 46.69 | K211: 46.77 | L211: 46.85 | M211: 46.93 | N211: 47.01 | O211: 47.08 | P211: 47.15 | Q211: 47.22 | R211: 47.29 | S211: 47.36 | T211: 47.42 | U211: 47.48 | V211: 47.54 | W211: 47.6 | X211: 47.66 | Y211: 47.71 | Z211: 47.76 | AA211: 47.8 | AB211: 47.85 | AC211: 47.89 | AD211: 47.93 | AE211: 47.97 | AF211: 48 | AG211: 48.03 | AH211: 48.06 | AI211: 48.09 | AJ211: 48.12 | AK211: 48.14 | AL211: 48.16 | AM211: 48.18 | AN211: 48.2 | AO211: 48.21 | AP211: 48.22 | AQ211: 48.24 | AR211: 48.25 | AS211: 48.26 | AT211: 48.26 | AU211: 48.27 | AV211: 48.28 | AW211: 48.28 | AX211: 48.28 | AY211: 48.29 | AZ211: 48.29 | BA211: 48.29 | BB211: 48.29 | BC211: 48.29 | BD211: 48.29 | BE211: 48.29 | BF211: 48.29 | BG211: 48.29 | BH211: 48.29 | BI211: 48.29 | BJ211: 48.29 | BK211: 48.29 | BL211: 48.29 | BM211: 48.29 | BN211: 48.29 | BO211: 48.29 | BP211: 48.28 | BQ211: 48.28 | BR211: 48.28 | BS211: 48.28 | BT211: 48.28 | BU211: 48.28 | BV211: 48.28 | BW211: 48.28 | BX211: 48.28 | BY211: 48.28 | BZ211: 48.28 | CA211: 48.28 | CB211: 48.28 | CC211: 48.28 | CD211: 48.28 | CE211: 48.27
A212: 36 | B212: 46.01 | C212: 46.11 | D212: 46.2 | E212: 46.29 | F212: 46.38 | G212: 46.47 | H212: 46.56 | I212: 46.64 | J212: 46.73 | K212: 46.81 | L212: 46.9 | M212: 46.98 | N212: 47.06 | O212: 47.13 | P212: 47.21 | Q212: 47.28 | R212: 47.35 | S212: 47.42 | T212: 47.49 | U212: 47.55 | V212: 47.62 | W212: 47.68 | X212: 47.74 | Y212: 47.79 | Z212: 47.84 | AA212: 47.89 | AB212: 47.94 | AC212: 47.99 | AD212: 48.03 | AE212: 48.07 | AF212: 48.1 | AG212: 48.14 | AH212: 48.17 | AI212: 48.2 | AJ212: 48.23 | AK212: 48.25 | AL212: 48.28 | AM212: 48.3 | AN212: 48.31 | AO212: 48.33 | AP212: 48.35 | AQ212: 48.36 | AR212: 48.37 | AS212: 48.38 | AT212: 48.39 | AU212: 48.4 | AV212: 48.4 | AW212: 48.41 | AX212: 48.41 | AY212: 48.42 | AZ212: 48.42 | BA212: 48.42 | BB212: 48.42 | BC212: 48.42 | BD212: 48.42 | BE212: 48.42 | BF212: 48.42 | BG212: 48.42 | BH212: 48.42 | BI212: 48.42 | BJ212: 48.42 | BK212: 48.42 | BL212: 48.42 | BM212: 48.42 | BN212: 48.42 | BO212: 48.42 | BP212: 48.41 | BQ212: 48.41 | BR212: 48.41 | BS212: 48.41 | BT212: 48.41 | BU212: 48.41 | BV212: 48.41 | BW212: 48.41 | BX212: 48.41 | BY212: 48.41 | BZ212: 48.41 | CA212: 48.41 | CB212: 48.41 | CC212: 48.41 | CD212: 48.4 | CE212: 48.4
A213: 37 | B213: 46.03 | C213: 46.13 | D213: 46.22 | E213: 46.31 | F213: 46.41 | G213: 46.5 | H213: 46.59 | I213: 46.68 | J213: 46.76 | K213: 46.85 | L213: 46.94 | M213: 47.02 | N213: 47.1 | O213: 47.18 | P213: 47.26 | Q213: 47.34 | R213: 47.41 | S213: 47.48 | T213: 47.55 | U213: 47.62 | V213: 47.69 | W213: 47.75 | X213: 47.81 | Y213: 47.87 | Z213: 47.93 | AA213: 47.98 | AB213: 48.03 | AC213: 48.08 | AD213: 48.12 | AE213: 48.17 | AF213: 48.21 | AG213: 48.24 | AH213: 48.28 | AI213: 48.31 | AJ213: 48.34 | AK213: 48.37 | AL213: 48.39 | AM213: 48.41 | AN213: 48.43 | AO213: 48.45 | AP213: 48.47 | AQ213: 48.48 | AR213: 48.5 | AS213: 48.51 | AT213: 48.52 | AU213: 48.52 | AV213: 48.53 | AW213: 48.54 | AX213: 48.54 | AY213: 48.55 | AZ213: 48.55 | BA213: 48.55 | BB213: 48.55 | BC213: 48.55 | BD213: 48.55 | BE213: 48.55 | BF213: 48.55 | BG213: 48.55 | BH213: 48.55 | BI213: 48.55 | BJ213: 48.55 | BK213: 48.55 | BL213: 48.55 | BM213: 48.55 | BN213: 48.55 | BO213: 48.55 | BP213: 48.55 | BQ213: 48.54 | BR213: 48.54 | BS213: 48.54 | BT213: 48.54 | BU213: 48.54 | BV213: 48.54 | BW213: 48.54 | BX213: 48.54 | BY213: 48.54 | BZ213: 48.54 | CA213: 48.54 | CB213: 48.54 | CC213: 48.53 | CD213: 48.53 | CE213: 48.53
A214: 38 | B214: 46.05 | C214: 46.15 | D214: 46.24 | E214: 46.34 | F214: 46.43 | G214: 46.53 | H214: 46.62 | I214: 46.71 | J214: 46.8 | K214: 46.89 | L214: 46.98 | M214: 47.06 | N214: 47.15 | O214: 47.23 | P214: 47.31 | Q214: 47.39 | R214: 47.47 | S214: 47.54 | T214: 47.62 | U214: 47.69 | V214: 47.76 | W214: 47.82 | X214: 47.89 | Y214: 47.95 | Z214: 48.01 | AA214: 48.07 | AB214: 48.12 | AC214: 48.17 | AD214: 48.22 | AE214: 48.26 | AF214: 48.31 | AG214: 48.35 | AH214: 48.38 | AI214: 48.42 | AJ214: 48.45 | AK214: 48.48 | AL214: 48.51 | AM214: 48.53 | AN214: 48.55 | AO214: 48.57 | AP214: 48.59 | AQ214: 48.61 | AR214: 48.62 | AS214: 48.63 | AT214: 48.64 | AU214: 48.65 | AV214: 48.66 | AW214: 48.67 | AX214: 48.67 | AY214: 48.68 | AZ214: 48.68 | BA214: 48.68 | BB214: 48.68 | BC214: 48.68 | BD214: 48.68 | BE214: 48.69 | BF214: 48.69 | BG214: 48.68 | BH214: 48.68 | BI214: 48.68 | BJ214: 48.68 | BK214: 48.68 | BL214: 48.68 | BM214: 48.68 | BN214: 48.68 | BO214: 48.68 | BP214: 48.68 | BQ214: 48.68 | BR214: 48.67 | BS214: 48.67 | BT214: 48.67 | BU214: 48.67 | BV214: 48.67 | BW214: 48.67 | BX214: 48.67 | BY214: 48.67 | BZ214: 48.67 | CA214: 48.67 | CB214: 48.67 | CC214: 48.67 | CD214: 48.66 | CE214: 48.66
... 61 more rows
